Body Name,Service Area,Expenses Type,Invoice Payment Date,Transaction Number,Net Amount,Supplier Name
Manchester City Council,Manchester Leisure,Grant and subscriptions awarded,03.01.2017,5100896788,"4,000.00",NWFED
Manchester City Council,Manchester Leisure,Grant and subscriptions awarded,03.01.2017,5100896797,"2,500.00",Somali Golden Centre of Opps
Manchester City Council,Manchester Leisure,Professional fees,03.01.2017,1905398432,790.00,305 Media
Manchester City Council,Hospitality + Trading Services,Professional fees,03.01.2017,1905418146,"25,000.00",GG Machinery Ltd c/o Taylors Sol
Manchester City Council,Hospitality + Trading Services,Rents,03.01.2017,1905409069,"28,182.25",CBRE Ltd
Manchester City Council,Hospitality + Trading Services,Vehicle Repairs,03.01.2017,5100896773,"1,209.00",Fleet Dynamic Consultancy Ltd
Manchester City Council,Environment and Operations,Construction Works,03.01.2017,5100896806,"28,361.30",Gaist Solutions Ltd
Manchester City Council,Adult Social Care,Equipment,03.01.2017,5100896795,"4,366.50",Drive Devilbiss Healthcare Ltd
Manchester City Council,Adult Social Care,Equipment,03.01.2017,5100896833,574.00,Bentley Fielden Ltd
Manchester City Council,Adult Social Care,External repairs and maintenance for buildings,03.01.2017,5100896776,-563.01,Keepmoat Regeneration (Bramall) Ltd
Manchester City Council,Adult Social Care,Furniture,03.01.2017,5100896821,553.75,The Furnishing Service Ltd
Manchester City Council,Adult Social Care,Grant and subscriptions awarded,03.01.2017,5100896842,"9,108.00",Learning Partnerships
Manchester City Council,Adult Social Care,Payments for services,03.01.2017,5100877314,937.12,The Together Trust
Manchester City Council,Adult Social Care,Professional fees,03.01.2017,1905418180,"34,880.00",MTFC Innovation LLP
Manchester City Council,Adult Social Care,Professional fees,03.01.2017,1905410259,816.00,Bromleys Solicitors LLP
Manchester City Council,Adult Social Care,Professional fees,03.01.2017,1905392365,800.00,Redacted Personal Information
Manchester City Council,Adult Social Care,Professional fees,03.01.2017,1905371830,735.00,Otten Penna Solicitors
Manchester City Council,Adult Social Care,Professional fees,03.01.2017,5100896840,716.63,Creative Support Ltd
Manchester City Council,Adult Social Care,Public Transport,03.01.2017,5100896789,"1,120.00",Transport for Greater Manchester
Manchester City Council,Adult Social Care,Rents,03.01.2017,1905415602,600.00,Manchester Letting
Manchester City Council,Adult Social Care,Third party payments to Health Authority,03.01.2017,1905415230,"6,393.00",Royal Liverpool & B/green UH NHS T
Manchester City Council,Adult Social Care,Third party payments to Health Authority,03.01.2017,1905415231,864.08,Calderdale and Huddersfield NHS FT
Manchester City Council,Adult Social Care,Legal Fees,03.01.2017,1905418179,"2,870.00",Liberata
Manchester City Council,Adult Social Care,Legal Fees,03.01.2017,1905418178,"5,030.00",Liberata
Manchester City Council,Adult Social Care,Legal Fees,03.01.2017,1905418177,"6,620.00",Liberata
Manchester City Council,Adult Social Care,Legal Fees,03.01.2017,1905418169,"22,030.00",Liberata
Manchester City Council,Housing General Fund,Capital Receipts,03.01.2017,1905415648,"12,862.50",Redrow Homes Lancashire
Manchester City Council,Housing General Fund,Surplus property Fees,03.01.2017,1905415202,"4,800.00",Tony Broad Associates
Manchester City Council,Housing General Fund,Surplus property Fees,03.01.2017,1905415218,"1,989.60",Redacted Personal Information
Manchester City Council,Housing General Fund,Surplus property Fees,03.01.2017,1905415220,"1,741.20",Redacted Personal Information
Manchester City Council,Housing General Fund,Surplus property Fees,03.01.2017,1905415221,898.80,Gortonvilla Walk Management Co Ltd
Manchester City Council,Housing Revenue Account,Council Dwelling Adaptations,03.01.2017,5100896787,"2,008.40",Pts Plumbing Trade Supplies
Manchester City Council,Housing Revenue Account,Council Dwelling Adaptations,03.01.2017,5100896778,651.37,Pts Plumbing Trade Supplies
Manchester City Council,Chief Executives,I T Provision,03.01.2017,5100896829,"3,680.00",XMA Limited
Manchester City Council,Chief Executives,Landline Telephone Charges,03.01.2017,1905398421,762.15,Daisy Communications Ltd
Manchester City Council,Chief Executives,Mobilephone Charges,03.01.2017,1905364010,"21,890.45",EE/T-Mobile
Manchester City Council,Chief Executives,Payments to Sub-Contractors,03.01.2017,1905415211,550.00,All Tomorrow's Pixels
Manchester City Council,Chief Executives,Legal Fees,03.01.2017,5100896779,600.00,Redacted Personal Information
Manchester City Council,Chief Executives,Legal Fees,03.01.2017,1905418170,"7,022.48",Liberata
Manchester City Council,Chief Executives,Compensation Payments,03.01.2017,1905418174,"15,795.00",Liberata
Manchester City Council,Regeneration Finance,Professional fees,03.01.2017,5100896780,"2,956.80",P Mcguinness & Co Ltd
Manchester City Council,Collection Fund,NNDR Receipts,03.01.2017,1905418167,"3,734,643.00",DCLG
Manchester City Council,General Fund,COM085 Enterprise Zone Relief Grant,03.01.2017,1905418167,"-893,895.00",DCLG
Manchester City Council,Manchester Leisure,Equipment,04.01.2017,5100896871,"4,290.00",Biffa Municipal Limited
Manchester City Council,Manchester Leisure,Equipment,04.01.2017,5100896903,"1,951.60",Biffa Municipal Limited
Manchester City Council,Manchester Leisure,Equipment,04.01.2017,5100896915,"1,026.00",B & S Chains (Midlands) Ltd
Manchester City Council,Manchester Leisure,Goods purchased for resale in Council outlets,04.01.2017,5100896865,555.00,Cornflower Ltd
Manchester City Council,Manchester Leisure,Grant and subscriptions awarded,04.01.2017,5100896917,"2,500.00",Community Minded Ltd
Manchester City Council,Manchester Leisure,Grant Payments,04.01.2017,1905409383,"4,000.00",N-Gage Project
Manchester City Council,Manchester Leisure,Grant Payments,04.01.2017,1905415061,"3,756.00",Community Minded Ltd
Manchester City Council,Manchester Leisure,Grant Payments,04.01.2017,1905415062,"3,000.00",Wythenshawe Amateurs F C
Manchester City Council,Manchester Leisure,Grant Payments,04.01.2017,1905409903,"2,391.98",Royal Oak Community Centre
Manchester City Council,Manchester Leisure,Grounds Maintenance Costs,04.01.2017,5100896845,"1,246.60",E Smith & Son (Nurserymen)
Manchester City Council,Manchester Leisure,Grounds Maintenance Costs,04.01.2017,5100896846,"1,138.20",E Smith & Son (Nurserymen)
Manchester City Council,Manchester Leisure,Library Materials Acquisition,04.01.2017,1905418214,938.29,Nelson Microfilm Ltd
Manchester City Council,Manchester Leisure,Library Materials Acquisition,04.01.2017,1905418199,612.37,Askews and Holts
Manchester City Council,Manchester Leisure,Payments to Sub-Contractors,04.01.2017,5100896910,"1,100.00",GTS Steam Cleaners
Manchester City Council,Manchester Leisure,Special Events,04.01.2017,5100893254,"1,540.00",Redacted Personal Information
Manchester City Council,Environment and Operations,Construction Works,04.01.2017,5100896884,500.00,Transport for Greater Manchester
Manchester City Council,Adult Social Care,Supporting People Payments,04.01.2017,5100896796,"4,166.67",ACORN Recovery Projects
Manchester City Council,Adult Social Care,Supporting People Payments,04.01.2017,5100896798,"4,166.67",ACORN Recovery Projects
Manchester City Council,Adult Social Care,Supporting People Payments,04.01.2017,5100896800,"4,166.67",ACORN Recovery Projects
Manchester City Council,Adult Social Care,Supporting People Payments,04.01.2017,5100896851,817.84,St.Vincent'S Housing Association
Manchester City Council,Adult Social Care,Third party payments relating to Voluntary Organisations,04.01.2017,5100896890,"25,036.65",Remedi
Manchester City Council,Adult Social Care,Travel,04.01.2017,1905364312,"2,729.75",R.S.P. Ltd Br Business Systems Ltd
Manchester City Council,Adult Social Care,Travel,04.01.2017,1905364312,"1,364.85",R.S.P. Ltd Br Business Systems Ltd
Manchester City Council,Adult Social Care,Legal Fees,04.01.2017,1905415060,"1,215.00",Redacted Personal Information
Manchester City Council,Adult Social Care,Legal Fees,04.01.2017,1905417860,"2,820.00",Cheadle Medicolegal Services Ltd
Manchester City Council,Adult Social Care,Compensation Payments,04.01.2017,1905411290,"9,300.00",Simpson Millar LLP
Manchester City Council,Adult Social Care,Compensation Payments,04.01.2017,1905415604,"10,000.00",Simpson Millar LLP
Manchester City Council,Adult Social Care,Compensation Payments,04.01.2017,1905415603,"18,000.00",Simpson Millar LLP
Manchester City Council,Corporate Services,Travel Season Ticket Loan Scheme,04.01.2017,5100896877,"1,055.45",Transport for Greater Manchester
Manchester City Council,Corporate Services,Travel Season Ticket Loan Scheme,04.01.2017,5100896877,900.00,Transport for Greater Manchester
Manchester City Council,Corporate Services,Travel Season Ticket Loan Scheme,04.01.2017,5100896877,646.00,Transport for Greater Manchester
Manchester City Council,Corporate Services,Travel Season Ticket Loan Scheme,04.01.2017,5100896877,522.00,Transport for Greater Manchester
Manchester City Council,Chief Executives,Agency staff provision,04.01.2017,5100896785,"1,643.58",Bs Project Services Ltd T/A
Manchester City Council,Chief Executives,Grant and subscriptions awarded,04.01.2017,5100896850,"23,000.00",Manchester Craft and Design Ltd
Manchester City Council,Regeneration Finance,Equipment,04.01.2017,5100896841,"5,390.00",Falcon Foodservice Equipment
Manchester City Council,Regeneration Finance,Consultants Fees,04.01.2017,5100896899,"3,500.00",Ekos Consulting (Uk) Ltd
Manchester City Council,Regeneration Finance,Professional fees,04.01.2017,5100896853,540.30,McKenzie Sports Architecture Ltd
Manchester City Council,Regeneration Finance,Rents,04.01.2017,1905415959,"10,468.36",Danish UK Property Management Ltd
Manchester City Council,Manchester Leisure,Building Materials for direct delivery,05.01.2017,5100896924,"4,938.00",Ebsford Environmental Ltd
Manchester City Council,Manchester Leisure,Building Materials for direct delivery,05.01.2017,5100896932,"1,543.28",United Utilities Water Plc
Manchester City Council,Manchester Leisure,Building Materials for direct delivery,05.01.2017,5100896922,"-4,938.00",Ebsford Environmental Ltd
Manchester City Council,Manchester Leisure,Construction Works,05.01.2017,5100897077,"6,554.00",Jupiter Play & Leisure Ltd
Manchester City Council,Manchester Leisure,Construction Works,05.01.2017,5100897074,"-6,554.00",Jupiter Play & Leisure Ltd
Manchester City Council,Manchester Leisure,Equipment,05.01.2017,5100897049,794.50,Framing Manchester Ltd
Manchester City Council,Manchester Leisure,Goods purchased for resale in Council outlets,05.01.2017,5100896977,"2,227.64",Manchester Jewellers Network
Manchester City Council,Manchester Leisure,Grant Payments,05.01.2017,1905422012,"3,500.00",Close Neighbours Residents Assoc
Manchester City Council,Manchester Leisure,Grant Payments,05.01.2017,1905421912,"2,200.00",Wythenshawe Forum Trust Ltd
Manchester City Council,Manchester Leisure,Grant Payments,05.01.2017,1905422009,"1,800.00",The Willows Primary School Academy
Manchester City Council,Manchester Leisure,Grant Payments,05.01.2017,1905421911,"1,000.00",Proud 2 b Parents CIC
Manchester City Council,Manchester Leisure,Professional fees,05.01.2017,5100897050,"8,538.00",Cheshire Contracts
Manchester City Council,Manchester Leisure,Professional fees,05.01.2017,5100897048,973.00,Framing Manchester Ltd
Manchester City Council,Hospitality + Trading Services,Hire of Machinery,05.01.2017,5100897146,"9,748.30",H & C Plant Hire Ltd
Manchester City Council,Environment and Operations,Construction Works,05.01.2017,5100897073,"15,996.00",Lock It Safe Ltd
Manchester City Council,Environment and Operations,Construction Works,05.01.2017,5100897076,605.00,Lock It Safe Ltd
Manchester City Council,Environment and Operations,Construction Works,05.01.2017,5100897075,-605.00,Lock It Safe Ltd
Manchester City Council,Environment and Operations,Construction Works,05.01.2017,5100897072,"-15,996.00",Lock It Safe Ltd
Manchester City Council,Adult Social Care,Bed and Breakfast Accommodation Expenditure,05.01.2017,5100896939,"14,306.00",Redacted Personal Information
Manchester City Council,Adult Social Care,Compensation Payments,05.01.2017,1905421910,"2,500.00",Thompsons Solicitors
Manchester City Council,Adult Social Care,External repairs and maintenance for buildings,05.01.2017,5100897066,675.00,Ashbury Meadow Primary School
Manchester City Council,Adult Social Care,Grant and subscriptions awarded,05.01.2017,5100897058,"213,812.08",Refugee Action
Manchester City Council,Adult Social Care,Grant and subscriptions awarded,05.01.2017,5100897056,"50,277.84",Refugee Action
Manchester City Council,Adult Social Care,Grant and subscriptions awarded,05.01.2017,5100897039,"1,426.50",Wrixon Care
Manchester City Council,Adult Social Care,Payments for services,05.01.2017,5100896991,"2,684.20",The Together Trust
Manchester City Council,Adult Social Care,Payments for services,05.01.2017,5100896994,"2,684.20",The Together Trust
Manchester City Council,Adult Social Care,Payments for services,05.01.2017,5100897022,"2,684.20",The Together Trust
Manchester City Council,Adult Social Care,Payments for services,05.01.2017,5100897023,"2,684.20",The Together Trust
Manchester City Council,Adult Social Care,Payments for services,05.01.2017,5100897024,"2,684.20",The Together Trust
Manchester City Council,Adult Social Care,Payments for services,05.01.2017,5100897025,"2,684.20",The Together Trust
Manchester City Council,Adult Social Care,Payments for services,05.01.2017,5100897026,"2,684.20",The Together Trust
Manchester City Council,Adult Social Care,Payments for services,05.01.2017,5100897027,"2,684.20",The Together Trust
Manchester City Council,Adult Social Care,Payments for services,05.01.2017,5100897028,"2,684.20",The Together Trust
Manchester City Council,Adult Social Care,Payments for services,05.01.2017,5100897029,"2,684.20",The Together Trust
Manchester City Council,Adult Social Care,Payments for services,05.01.2017,5100897030,"2,684.20",The Together Trust
Manchester City Council,Adult Social Care,Payments for services,05.01.2017,5100897031,"2,684.20",The Together Trust
Manchester City Council,Adult Social Care,Payments for services,05.01.2017,5100897032,"2,684.20",The Together Trust
Manchester City Council,Adult Social Care,Payments for services,05.01.2017,5100897033,"2,684.20",The Together Trust
Manchester City Council,Adult Social Care,Payments for services,05.01.2017,5100897034,"2,684.20",The Together Trust
Manchester City Council,Adult Social Care,Payments for services,05.01.2017,5100897035,"2,684.20",The Together Trust
Manchester City Council,Adult Social Care,Payments for services,05.01.2017,5100896943,"2,052.60",The Together Trust
Manchester City Council,Adult Social Care,Payments for services,05.01.2017,5100896945,"2,052.60",The Together Trust
Manchester City Council,Adult Social Care,Payments for services,05.01.2017,5100896947,"2,052.60",The Together Trust
Manchester City Council,Adult Social Care,Payments for services,05.01.2017,5100896949,"2,052.60",The Together Trust
Manchester City Council,Adult Social Care,Payments for services,05.01.2017,5100896950,"2,052.60",The Together Trust
Manchester City Council,Adult Social Care,Payments for services,05.01.2017,5100896953,"2,052.60",The Together Trust
Manchester City Council,Adult Social Care,Payments for services,05.01.2017,5100896955,"2,052.60",The Together Trust
Manchester City Council,Adult Social Care,Payments for services,05.01.2017,5100896956,"2,052.60",The Together Trust
Manchester City Council,Adult Social Care,Payments for services,05.01.2017,5100896965,"2,052.60",The Together Trust
Manchester City Council,Adult Social Care,Payments for services,05.01.2017,5100896967,"2,052.60",The Together Trust
Manchester City Council,Adult Social Care,Payments for services,05.01.2017,5100896970,"2,052.60",The Together Trust
Manchester City Council,Adult Social Care,Payments for services,05.01.2017,5100896978,"2,052.60",The Together Trust
Manchester City Council,Adult Social Care,Payments for services,05.01.2017,5100896980,"2,052.60",The Together Trust
Manchester City Council,Adult Social Care,Payments for services,05.01.2017,5100896981,"2,052.60",The Together Trust
Manchester City Council,Adult Social Care,Payments for services,05.01.2017,5100896982,"2,052.60",The Together Trust
Manchester City Council,Adult Social Care,Payments for services,05.01.2017,5100896989,"2,052.60",The Together Trust
Manchester City Council,Adult Social Care,Payments for services,05.01.2017,5100896993,"2,052.60",The Together Trust
Manchester City Council,Adult Social Care,Professional fees,05.01.2017,5100897069,"8,675.00",Penna PLC
Manchester City Council,Adult Social Care,Professional fees,05.01.2017,5100897071,"4,650.00",Penna PLC
Manchester City Council,Adult Social Care,Professional fees,05.01.2017,5100897080,"2,212.50",Museum of Science & Industry
Manchester City Council,Adult Social Care,Professional fees,05.01.2017,1905411288,663.23,Advanced Child Care Assessments
Manchester City Council,Adult Social Care,Training and Development,05.01.2017,5100897114,"4,116.00",One Education Ltd
Manchester City Council,Adult Social Care,Transport Coach Hire,05.01.2017,5100897036,"4,704.00",Galaxy Cars
Manchester City Council,Adult Social Care,Transport Coach Hire,05.01.2017,5100897070,"3,771.00",Redacted Personal Information
Manchester City Council,Adult Social Care,Transport Coach Hire,05.01.2017,5100897052,"2,625.00",Community Transport
Manchester City Council,Adult Social Care,Transport Coach Hire,05.01.2017,5100897043,"1,870.00",DMC Travel
Manchester City Council,Adult Social Care,Transport Coach Hire,05.01.2017,5100897044,"1,568.00",DMC Travel
Manchester City Council,Adult Social Care,Transport Coach Hire,05.01.2017,5100897041,"1,040.00",DMC Travel
Manchester City Council,Adult Social Care,Travel,05.01.2017,1905417863,"2,129.50",R.S.P. Ltd Br Business Systems Ltd
Manchester City Council,Adult Social Care,Travel,05.01.2017,1905417863,673.80,R.S.P. Ltd Br Business Systems Ltd
Manchester City Council,Corporate Services,Compensation,05.01.2017,1905422840,"3,750.00",Redacted Personal Information
Manchester City Council,Corporate Services,Landline Telephone Charges,05.01.2017,1905417819,"4,036.70",Vodafone (Ex C&W)
Manchester City Council,Corporate Services,Professional fees,05.01.2017,5100896875,"44,286.26",Turner & Townsend Project
Manchester City Council,Corporate Services,Professional fees,05.01.2017,5100896888,"1,650.00",Keelagher Okey Associates Ltd t/a
Manchester City Council,Corporate Services,Tele Conferencing,05.01.2017,1905409112,"1,608.68",BT Conferencing Services
Manchester City Council,Corporate Services,Transport Taxis,05.01.2017,1905423012,"5,000.00",Street Cars
Manchester City Council,Corporate Services,Transport Taxis,05.01.2017,1905423013,"5,000.00",Street Cars
Manchester City Council,Corporate Services,Transport Taxis,05.01.2017,1905423014,"5,000.00",Street Cars
Manchester City Council,Corporate Services,Transport Taxis,05.01.2017,1905423011,"2,605.30",Street Cars
Manchester City Council,Corporate Services,Works and associated costs for Land and Buildings,05.01.2017,5100897112,"-12,707.67",Turner & Townsend Cost
Manchester City Council,Housing Revenue Account,Professional fees,05.01.2017,5100897046,"7,575.00",Roger Hannah & Co
Manchester City Council,Chief Executives,Advertising,05.01.2017,5100897067,"4,700.00",North West Media Ltd
Manchester City Council,Chief Executives,Agency staff provision,05.01.2017,5100897082,"2,747.93",Semester Recruitment Ltd
Manchester City Council,Chief Executives,Funeral and coroner related services,05.01.2017,1905417864,"2,660.00",Redacted Personal Information
Manchester City Council,Chief Executives,Funeral and coroner related services,05.01.2017,1905417867,"2,400.00",Stephen Saltissi Med/ Services Ltd
Manchester City Council,Chief Executives,Funeral and coroner related services,05.01.2017,1905415600,"1,148.10",Redacted Personal Information
Manchester City Council,Chief Executives,Funeral and coroner related services,05.01.2017,1905409906,665.85,Redacted Personal Information
Manchester City Council,Chief Executives,Funeral and coroner related services,05.01.2017,1905409915,654.25,Redacted Personal Information
Manchester City Council,Chief Executives,Funeral and coroner related services,05.01.2017,1905409908,622.60,Redacted Personal Information
Manchester City Council,Chief Executives,Funeral and coroner related services,05.01.2017,1905417855,500.00,Redacted Personal Information
Manchester City Council,Chief Executives,Mobilephone Charges,05.01.2017,1905085139,546.89,EE/T-Mobile
Manchester City Council,Chief Executives,Printing,05.01.2017,5100897064,"3,225.00",Mighty Giant Ltd
Manchester City Council,Chief Executives,Printing,05.01.2017,5100897062,"3,050.00",Mighty Giant Ltd
Manchester City Council,Chief Executives,Vehicle Plant Furniture and Equipment,05.01.2017,5100897057,"9,042.24",GS Systems Ltd
Manchester City Council,Chief Executives,Vehicle Plant Furniture and Equipment,05.01.2017,5100897059,"-9,042.24",GS Systems Ltd
Manchester City Council,Chief Executives,Compensation Payments,05.01.2017,1905415964,582.52,Redacted Personal Information
Manchester City Council,Regeneration Finance,Cleaning Equipment and Materials,05.01.2017,5100897084,"1,413.50",Alliance Disposables Ltd
Manchester City Council,Regeneration Finance,Contract Cleaning External,05.01.2017,5100897017,"6,435.00",Mitie Cleaning & Environmental
Manchester City Council,Regeneration Finance,Contract Cleaning External,05.01.2017,5100897016,"-6,435.00",Mitie Cleaning & Environmental
Manchester City Council,Regeneration Finance,Equipment,05.01.2017,5100872776,615.00,E Jordon (Refrigeration) Ltd
Manchester City Council,Highways Services,Building Materials for direct delivery,05.01.2017,5100897083,"4,438.20",Marshalls Mono Ltd
Manchester City Council,Highways Services,Payments to Sub-Contractors,05.01.2017,5100897021,"19,354.50",Lock It Safe Ltd
Manchester City Council,Highways Services,Payments to Sub-Contractors,05.01.2017,5100897109,"9,602.77",Fairway Landscapes Ltd
Manchester City Council,Highways Services,Payments to Sub-Contractors,05.01.2017,5100897019,"4,900.50",Lock It Safe Ltd
Manchester City Council,Highways Services,Payments to Sub-Contractors,05.01.2017,5100897018,"-4,900.50",Lock It Safe Ltd
Manchester City Council,Highways Services,Payments to Sub-Contractors,05.01.2017,5100897020,"-19,354.50",Lock It Safe Ltd
Manchester City Council,Insurance Fund,Insurance,05.01.2017,1905415210,"6,750.00",berrymans Lace Mawer
Manchester City Council,Manchester Leisure,Construction Works,06.01.2017,5100897165,"5,380.00",Groundwork & Leisure Services Ltd
Manchester City Council,Manchester Leisure,Construction Works,06.01.2017,5100897163,950.00,Groundwork & Leisure Services Ltd
Manchester City Council,Manchester Leisure,Grant and subscriptions awarded,06.01.2017,5100897318,"13,000.00",Bolton Mbc
Manchester City Council,Manchester Leisure,Grant Payments,06.01.2017,1905422992,500.00,North Manchester Work Clubs
Manchester City Council,Manchester Leisure,Grant Payments,06.01.2017,1905422993,500.00,Unity Play Project
Manchester City Council,Manchester Leisure,Hire of Equipment,06.01.2017,5100897199,"5,010.00",Event Solution Ltd
Manchester City Council,Manchester Leisure,Hire of Equipment,06.01.2017,5100897054,"1,684.00",The Manchester Light & Stage
Manchester City Council,Manchester Leisure,Payments for services,06.01.2017,5100897229,"8,895.00",The Fitness Training Academy Ltd
Manchester City Council,Manchester Leisure,Security,06.01.2017,5100897310,"48,556.38",Showsec International Ltd
Manchester City Council,Manchester Leisure,Security,06.01.2017,5100897149,"-48,556.38",Showsec International Ltd
Manchester City Council,Manchester Leisure,Special Events,06.01.2017,5100897144,900.00,Biffa Municipal Limited
Manchester City Council,Manchester Leisure,Legal Fees,06.01.2017,5100897169,500.00,Redacted Personal Information
Manchester City Council,Hospitality + Trading Services,Catering Provisions,06.01.2017,1905423058,"55,261.48",Ralph Livesey Ltd
Manchester City Council,Hospitality + Trading Services,Catering Provisions,06.01.2017,1905423043,643.12,Brake Bros Foodservice Ltd
Manchester City Council,Hospitality + Trading Services,Catering Provisions,06.01.2017,1905423039,616.40,Brake Bros Foodservice Ltd
Manchester City Council,Environment and Operations,Grant Payments,06.01.2017,5100897172,696.00,Resolute Systems (UK) Ltd
Manchester City Council,Adult Social Care,Bed and Breakfast Accommodation Expenditure,06.01.2017,5100897322,"9,780.00",Redacted Personal Information
Manchester City Council,Adult Social Care,Bed and Breakfast Accommodation Expenditure,06.01.2017,5100897154,"9,330.00",Redacted Personal Information
Manchester City Council,Adult Social Care,Bed and Breakfast Accommodation Expenditure,06.01.2017,5100897151,"8,480.00",Redacted Personal Information
Manchester City Council,Adult Social Care,Bed and Breakfast Accommodation Expenditure,06.01.2017,5100897323,"7,950.00",Redacted Personal Information
Manchester City Council,Adult Social Care,Bed and Breakfast Accommodation Expenditure,06.01.2017,5100897234,"4,935.00",Redacted Personal Information
Manchester City Council,Adult Social Care,Building Materials for direct delivery,06.01.2017,5100897171,676.00,Tunstall Healthcare (UK) Ltd
Manchester City Council,Adult Social Care,Equipment,06.01.2017,5100897167,"6,000.00",Invacare Limited
Manchester City Council,Adult Social Care,Equipment,06.01.2017,5100897157,"2,700.00",Ultimate Healthcare
Manchester City Council,Adult Social Care,Equipment,06.01.2017,5100897217,"2,224.00",NRS Healthcare
Manchester City Council,Adult Social Care,Equipment,06.01.2017,5100897224,"1,197.00",Invacare Limited
Manchester City Council,Adult Social Care,Equipment,06.01.2017,5100897219,"1,022.50",NRS Healthcare
Manchester City Council,Adult Social Care,Payments for services,06.01.2017,5100897148,"30,135.75",Creative Support Ltd
Manchester City Council,Adult Social Care,Payments for services,06.01.2017,5100897289,"23,349.00",St John Vianney School
Manchester City Council,Adult Social Care,Payments for services,06.01.2017,5100897132,"8,796.98",The Together Trust
Manchester City Council,Adult Social Care,Payments for services,06.01.2017,5100897284,"8,099.05",Embrace All Ltd
Manchester City Council,Adult Social Care,Payments for services,06.01.2017,5100897290,"5,368.40",The Together Trust
Manchester City Council,Adult Social Care,Payments for services,06.01.2017,5100897312,"4,436.72",Rossendale School Priory
Manchester City Council,Adult Social Care,Payments for services,06.01.2017,5100897294,"4,250.00",The Together Trust
Manchester City Council,Adult Social Care,Payments for services,06.01.2017,5100897292,"4,105.20",The Together Trust
Manchester City Council,Adult Social Care,Payments for services,06.01.2017,5100897297,"3,654.50",St John Vianney School
Manchester City Council,Adult Social Care,Professional fees,06.01.2017,5100897121,"1,050.00",Action First iPeople Ltd
Manchester City Council,Adult Social Care,Professional fees,06.01.2017,5100897125,700.00,Action First iPeople Ltd
Manchester City Council,Adult Social Care,Professional fees,06.01.2017,5100897127,700.00,Action First iPeople Ltd
Manchester City Council,Adult Social Care,Professional fees,06.01.2017,5100897130,700.00,Action First iPeople Ltd
Manchester City Council,Adult Social Care,Rents,06.01.2017,5100897140,"2,688.64",Mosscare Housing Ltd
Manchester City Council,Adult Social Care,Supporting People Payments,06.01.2017,5100897231,"5,000.00",The Depaul Trust
Manchester City Council,Adult Social Care,Third party payments relating to Voluntary Organisations,06.01.2017,5100897134,"17,071.00",Breakthrough Uk Ltd
Manchester City Council,Adult Social Care,Third party payments relating to Voluntary Organisations,06.01.2017,5100897180,"4,889.00",Adactus Housing Group Ltd
Manchester City Council,Adult Social Care,Third party payments relating to Voluntary Organisations,06.01.2017,5100897203,"4,453.25",Whitemoss Club For Young People
Manchester City Council,Adult Social Care,Third party payments relating to Voluntary Organisations,06.01.2017,5100897180,"2,780.00",Adactus Housing Group Ltd
Manchester City Council,Adult Social Care,Third party payments to Health Authority,06.01.2017,5100896951,"488,333.11",Central Manchester University Hosp
Manchester City Council,Adult Social Care,Third party payments to Health Authority,06.01.2017,5100896928,"312,808.00",Central Manchester University Hosp
Manchester City Council,Adult Social Care,Third party payments to Health Authority,06.01.2017,5100896931,"75,000.00",Central Manchester University Hosp
Manchester City Council,Adult Social Care,Third party payments to Health Authority,06.01.2017,1905415962,684.00,Royal Liverpool & B/green UH NHS T
Manchester City Council,Adult Social Care,Third party payments to Health Authority,06.01.2017,5100897293,"-312,808.00",Central Manchester University Hosp
Manchester City Council,Adult Social Care,Training and Development,06.01.2017,5100896941,"4,487.50",Central Manchester University Hosp
Manchester City Council,Corporate Services,Travel Season Ticket Loan Scheme,06.01.2017,5100896881,"1,098.50",Transport for Greater Manchester
Manchester City Council,Corporate Services,Travel Season Ticket Loan Scheme,06.01.2017,5100896881,900.00,Transport for Greater Manchester
Manchester City Council,Corporate Services,Travel Season Ticket Loan Scheme,06.01.2017,5100896881,747.00,Transport for Greater Manchester
Manchester City Council,Corporate Services,Travel Season Ticket Loan Scheme,06.01.2017,5100896881,646.00,Transport for Greater Manchester
Manchester City Council,Housing Revenue Account,Professional fees,06.01.2017,5100897153,"12,648.28",Northwards Housing Limited
Manchester City Council,Chief Executives,Agency staff provision,06.01.2017,5100897283,"13,289.04",Resolve Personnel Ltd
Manchester City Council,Chief Executives,Machinery and equipment repairs,06.01.2017,5100897311,552.61,Alphatec 2000 Ltd
Manchester City Council,Chief Executives,Postage,06.01.2017,5100897174,"12,399.96",Bowe Systec
Manchester City Council,Chief Executives,Postage,06.01.2017,5100896894,725.59,Royal Mail Group Plc
Manchester City Council,Chief Executives,Professional fees,06.01.2017,5100897230,"12,263.00",SQW
Manchester City Council,Chief Executives,Professional fees,06.01.2017,5100897230,613.00,SQW
Manchester City Council,Chief Executives,Professional fees,06.01.2017,5100897227,-613.00,SQW
Manchester City Council,Chief Executives,Publications,06.01.2017,5100897237,"1,365.94",John Smith & Son (Glasgow) Ltd T/A
Manchester City Council,Chief Executives,Vehicle Plant Furniture and Equipment,06.01.2017,5100897129,"3,500.00",Advanced Security Systems Limited
Manchester City Council,Chief Executives,Works and associated costs for Land and Buildings,06.01.2017,5100897138,"28,000.00",Gardiner & Theobald LLP
Manchester City Council,Chief Executives,Works and associated costs for Land and Buildings,06.01.2017,5100897188,"12,000.00",Ove Arup & Partners Ltd
Manchester City Council,Regeneration Finance,Grounds Maintenance Costs,06.01.2017,5100896911,"1,500.00",Arboricultural Services Treework
Manchester City Council,Highways Services,Grounds Maintenance Costs,06.01.2017,5100897079,"1,154.50",The Fountain Company Ltd
Manchester City Council,Highways Services,Grounds Maintenance Costs,06.01.2017,5100897233,"1,107.00",The Fountain Company Ltd
Manchester City Council,Highways Services,Grounds Maintenance Costs,06.01.2017,5100897232,"-1,107.00",The Fountain Company Ltd
Manchester City Council,Highways Services,Grounds Maintenance Costs,06.01.2017,5100897078,"-1,154.50",The Fountain Company Ltd
Manchester City Council,Highways Services,Payments to Sub-Contractors,06.01.2017,5100897235,"51,602.28",Rosgal Ltd
Manchester City Council,Highways Services,Purchase of stores for re-distribution,06.01.2017,5100897214,587.90,P.F. Cusack (Tools Supplies) Ltd
Manchester City Council,Insurance Fund,Insurance,06.01.2017,5100897206,"2,000.00",Gallagher Bassett International Ltd
Manchester City Council,Manchester Leisure,Agency staff provision,09.01.2017,5100897630,"-1,105.45",Levenshulme High School For Girls
Manchester City Council,Manchester Leisure,Grant Payments,09.01.2017,1905422008,"1,000.00",Carrill & Worsley Grove Res Assoc
Manchester City Council,Manchester Leisure,Hire of Premises,09.01.2017,5100897420,646.00,Cresta World Travel Ltd
Manchester City Council,Manchester Leisure,Payments to Sub-Contractors,09.01.2017,5100897412,"2,637.84",Manchester Dogs Home
Manchester City Council,Manchester Leisure,Professional fees,09.01.2017,5100896194,"1,650.00",Wates Construction Ltd
Manchester City Council,Manchester Leisure,Professional fees,09.01.2017,5100897400,671.38,ForWorks
Manchester City Council,Hospitality + Trading Services,Catering Provisions,09.01.2017,1905425004,668.45,Brake Bros Foodservice Ltd
Manchester City Council,Hospitality + Trading Services,Furniture,09.01.2017,5100897436,564.00,Egan Reid Stationery Co Ltd
Manchester City Council,Hospitality + Trading Services,Hire of Machinery,09.01.2017,5100897495,726.00,Gibsons Garden Machinery Limited
Manchester City Council,Hospitality + Trading Services,Vehicle Hire Costs,09.01.2017,5100897195,"2,470.00",Gullivers Truck Hire Ltd
Manchester City Council,Hospitality + Trading Services,Vehicle Hire Costs,09.01.2017,5100897193,"2,375.00",Gullivers Truck Hire Ltd
Manchester City Council,Adult Social Care,Bed and Breakfast Accommodation Expenditure,09.01.2017,5100897492,"16,594.60",G & A Taylor Hotels Ltd
Manchester City Council,Adult Social Care,Bed and Breakfast Accommodation Expenditure,09.01.2017,5100897374,"16,268.96",G & A Taylor Hotels Ltd
Manchester City Council,Adult Social Care,Bed and Breakfast Accommodation Expenditure,09.01.2017,5100896937,"13,970.00",Redacted Personal Information
Manchester City Council,Adult Social Care,Equipment,09.01.2017,5100897222,"1,029.60",Invacare Limited
Manchester City Council,Adult Social Care,External repairs and maintenance for buildings,09.01.2017,5100897327,"1,741.74",Manchester Working Ltd
Manchester City Council,Adult Social Care,Funeral and coroner related services,09.01.2017,5100897500,"1,746.67",Funeral Prtnrs t/a Michael Kennedy
Manchester City Council,Adult Social Care,Funeral and coroner related services,09.01.2017,5100897380,"1,347.00",Funeral Prtnrs t/a Michael Kennedy
Manchester City Council,Adult Social Care,Funeral and coroner related services,09.01.2017,5100897471,"1,295.00",Funeral Prtnrs t/a Michael Kennedy
Manchester City Council,Adult Social Care,Funeral and coroner related services,09.01.2017,5100897506,"1,258.00",Funeral Prtnrs t/a Michael Kennedy
Manchester City Council,Adult Social Care,Funeral and coroner related services,09.01.2017,5100897503,698.00,Funeral Prtnrs t/a Michael Kennedy
Manchester City Council,Adult Social Care,Grant and subscriptions awarded,09.01.2017,5100897329,"8,750.00",The Lesbian & Gay Foundation
Manchester City Council,Adult Social Care,Payments for services,09.01.2017,5100897387,"13,216.00",The Youth Justice Board
Manchester City Council,Adult Social Care,Payments for services,09.01.2017,5100897386,"9,440.00",The Youth Justice Board
Manchester City Council,Adult Social Care,Payments for services,09.01.2017,5100897493,"9,212.22",The Together Trust
Manchester City Council,Adult Social Care,Payments for services,09.01.2017,5100897384,"9,184.00",The Youth Justice Board
Manchester City Council,Adult Social Care,Payments for services,09.01.2017,5100897382,"7,080.00",The Youth Justice Board
Manchester City Council,Adult Social Care,Payments for services,09.01.2017,5100897383,"3,894.00",The Youth Justice Board
Manchester City Council,Adult Social Care,Payments for services,09.01.2017,5100897501,"2,921.32",Scope
Manchester City Council,Adult Social Care,Payments for services,09.01.2017,5100897353,"2,300.80",The Together Trust
Manchester City Council,Adult Social Care,Payments for services,09.01.2017,1905418160,"2,072.00",West Timperley Playgroup
Manchester City Council,Adult Social Care,Payments for services,09.01.2017,5100897363,"1,908.05",The Together Trust
Manchester City Council,Adult Social Care,Payments for services,09.01.2017,1905415216,"1,800.00",Little Petals Day Nursery
Manchester City Council,Adult Social Care,Payments for services,09.01.2017,5100897504,"1,056.96",Scope
Manchester City Council,Adult Social Care,Payments for services,09.01.2017,5100897355,763.22,The Together Trust
Manchester City Council,Adult Social Care,Payments for services,09.01.2017,5100897365,555.00,Randstad Education
Manchester City Council,Adult Social Care,Payments for services,09.01.2017,5100897368,555.00,Randstad Education
Manchester City Council,Adult Social Care,Payments for services,09.01.2017,5100897354,533.12,The Together Trust
Manchester City Council,Adult Social Care,Personal needs of client,09.01.2017,5100896940,"2,475.00",Mangar International Ltd
Manchester City Council,Adult Social Care,Professional fees,09.01.2017,5100882452,"873,116.17",Central Manchester University Hosp
Manchester City Council,Adult Social Care,Professional fees,09.01.2017,5100887599,"873,116.17",Central Manchester University Hosp
Manchester City Council,Adult Social Care,Professional fees,09.01.2017,5100891723,"873,116.17",Central Manchester University Hosp
Manchester City Council,Adult Social Care,Professional fees,09.01.2017,5100897349,"9,071.21",Central Manchester University Hosp
Manchester City Council,Adult Social Care,Professional fees,09.01.2017,5100897375,"3,150.00",David Blackburne Consultancy Ltd
Manchester City Council,Adult Social Care,Professional fees,09.01.2017,5100897415,750.00,Redacted Personal Information
Manchester City Council,Adult Social Care,Professional fees,09.01.2017,1905415057,625.08,Advanced Child Care Assessments
Manchester City Council,Adult Social Care,Professional fees,09.01.2017,5100897338,519.99,Chancellors Hotel & Conf Centre
Manchester City Council,Adult Social Care,Rents,09.01.2017,5100897376,"41,886.73",Mack Residential Letting Ltd
Manchester City Council,Adult Social Care,Rents,09.01.2017,5100897477,"21,000.00",Wythenshawe Community Housing Group
Manchester City Council,Adult Social Care,Supporting People Payments,09.01.2017,5100897320,"2,309.22",Copperdale Trust
Manchester City Council,Adult Social Care,Third party payments relating to Voluntary Organisations,09.01.2017,5100897413,"498,000.00","CGL - Change, Grow, Live"
Manchester City Council,Adult Social Care,Third party payments relating to Voluntary Organisations,09.01.2017,5100897208,"75,261.50",The Big Life Company
Manchester City Council,Adult Social Care,Third party payments relating to Voluntary Organisations,09.01.2017,5100897334,"14,803.30",The Lesbian & Gay Foundation
Manchester City Council,Adult Social Care,Third party payments relating to Voluntary Organisations,09.01.2017,5100897347,"14,803.30",The Lesbian & Gay Foundation
Manchester City Council,Adult Social Care,Third party payments relating to Voluntary Organisations,09.01.2017,5100897348,"14,803.30",The Lesbian & Gay Foundation
Manchester City Council,Adult Social Care,Third party payments relating to Voluntary Organisations,09.01.2017,5100897205,"4,453.25",Whitemoss Club For Young People
Manchester City Council,Adult Social Care,Third party payments relating to Voluntary Organisations,09.01.2017,5100897330,"2,000.00",The Lesbian & Gay Foundation
Manchester City Council,Adult Social Care,Third party payments relating to Voluntary Organisations,09.01.2017,5100897332,"2,000.00",The Lesbian & Gay Foundation
Manchester City Council,Adult Social Care,Third party payments relating to Voluntary Organisations,09.01.2017,5100897228,"1,357.66",The Stroke Association
Manchester City Council,Adult Social Care,Third party payments relating to Voluntary Organisations,09.01.2017,5100897343,"1,079.87",The Stroke Association
Manchester City Council,Adult Social Care,Third party payments relating to Voluntary Organisations,09.01.2017,5100897336,675.00,The Lesbian & Gay Foundation
Manchester City Council,Adult Social Care,Third party payments relating to Voluntary Organisations,09.01.2017,5100897498,601.88,Scope
Manchester City Council,Adult Social Care,Third party payments to Health Authority,09.01.2017,5100897300,"293,223.16",Central Manchester University Hosp
Manchester City Council,Adult Social Care,Third party payments to Health Authority,09.01.2017,5100897300,"15,206.09",Central Manchester University Hosp
Manchester City Council,Adult Social Care,Third party payments to Health Authority,09.01.2017,5100897300,"4,378.75",Central Manchester University Hosp
Manchester City Council,Adult Social Care,Third party payments to other Local Authorities,09.01.2017,5100897369,"12,532.09",Cheshire West and Chester
Manchester City Council,Adult Social Care,Training and Development,09.01.2017,5100897474,"2,400.00",SafeLives
Manchester City Council,Adult Social Care,Training and Development,09.01.2017,5100897183,"1,980.00",Right 2 Write Ltd
Manchester City Council,Adult Social Care,Training and Development,09.01.2017,5100896925,"1,980.00",Right 2 Write Ltd
Manchester City Council,Adult Social Care,Training and Development,09.01.2017,5100897168,972.00,North West Employers Ltd
Manchester City Council,Adult Social Care,Transport Coach Hire,09.01.2017,5100897397,"8,759.00",Communitytransportservices.co.uk
Manchester City Council,Adult Social Care,Transport Coach Hire,09.01.2017,5100897201,"3,515.00",Redacted Personal Information
Manchester City Council,Adult Social Care,Transport Coach Hire,09.01.2017,5100897207,"3,510.00",Redacted Personal Information
Manchester City Council,Adult Social Care,Transport Coach Hire,09.01.2017,5100897200,"3,200.00",Redacted Personal Information
Manchester City Council,Adult Social Care,Transport Coach Hire,09.01.2017,5100897337,"2,200.00",Choices Home 4 Children Ltd
Manchester City Council,Adult Social Care,Transport Coach Hire,09.01.2017,5100897333,"1,440.00",Connect Cars Ltd
Manchester City Council,Adult Social Care,Compensation Payments,09.01.2017,1905425893,"2,192.00",Liberata
Manchester City Council,Corporate Services,Cash Collection,09.01.2017,1905425904,"21,051.05",Cardnet Merchant Services
Manchester City Council,Corporate Services,Collection Commission,09.01.2017,5100897401,"19,928.00",Capacity Grid
Manchester City Council,Corporate Services,CRB Fees,09.01.2017,5100897476,"26,946.00",Disclosure & Barring Service
Manchester City Council,Corporate Services,CRB Fees,09.01.2017,5100897475,"-26,568.00",Disclosure & Barring Service
Manchester City Council,Corporate Services,Fees,09.01.2017,1905424988,"1,793.20",Bristow & Sutor
Manchester City Council,Corporate Services,Fees,09.01.2017,1905424988,"-1,793.20",Bristow & Sutor
Manchester City Council,Corporate Services,Postage,09.01.2017,5100897133,"5,566.32",Royal Mail Group Plc
Manchester City Council,Corporate Services,Postage,09.01.2017,5100897107,"3,599.00",Royal Mail Group Plc
Manchester City Council,Corporate Services,Postage,09.01.2017,5100897110,"1,615.11",Royal Mail Group Plc
Manchester City Council,Corporate Services,Professional fees,09.01.2017,5100892934,"5,190.00",Turner & Townsend Cost
Manchester City Council,Housing Revenue Account,Council Dwelling Adaptations,09.01.2017,5100897328,"62,230.38",Manchester Working Ltd
Manchester City Council,Housing Revenue Account,Council Dwelling Adaptations,09.01.2017,5100897190,"3,198.63",Northwards Housing Limited
Manchester City Council,Chief Executives,Agency staff provision,09.01.2017,5100897315,"50,489.55",NES UK Limited
Manchester City Council,Chief Executives,Agency staff provision,09.01.2017,5100897279,"4,631.28",LAW Absolute
Manchester City Council,Chief Executives,Agency staff provision,09.01.2017,5100896786,"4,094.01",Barker Ross Health & Social Care
Manchester City Council,Chief Executives,Agency staff provision,09.01.2017,5100897457,"1,087.00",Randstad Care
Manchester City Council,Chief Executives,ICT Support & Maintenance,09.01.2017,5100896995,"9,950.00",Computacenter (UK) Ltd
Manchester City Council,Chief Executives,Travel,09.01.2017,5100897442,"1,754.98",Cresta World Travel Ltd
Manchester City Council,Chief Executives,Vehicle Hire Costs,09.01.2017,5100897239,522.00,Manchester Van Hire Ltd
Manchester City Council,Chief Executives,Works and associated costs for Land and Buildings,09.01.2017,5100897399,"19,500.00",Our Studio Ltd
Manchester City Council,Chief Executives,Works and associated costs for Land and Buildings,09.01.2017,5100897342,"7,000.00",Gillespies LLP
Manchester City Council,Regeneration Finance,External repairs and maintenance for buildings,09.01.2017,5100897358,"2,529.89",SMG (Europe) Ltd
Manchester City Council,Regeneration Finance,Non Housing Rent Receipts,09.01.2017,1905418141,"1,167.47",Redacted Personal Information
Manchester City Council,Regeneration Finance,Professional fees,09.01.2017,5100896921,"8,097.53",Turner & Townsend Project
Manchester City Council,Regeneration Finance,Rents,09.01.2017,5100892114,"154,609.69",Regus Management (UK) Ltd
Manchester City Council,Regeneration Finance,Rents,09.01.2017,1905425881,910.00,Regus Management (UK) Ltd
Manchester City Council,Regeneration Finance,Subsistence and Conference Expenses,09.01.2017,1905415961,"1,885.07",Dovetail Foks
Manchester City Council,Highways Services,Bank Charges,09.01.2017,1905425904,"1,067.18",Cardnet Merchant Services
Manchester City Council,Highways Services,Building Materials for direct delivery,09.01.2017,5100897482,"2,940.00",Hitex Traffic safety Ltd
Manchester City Council,Highways Services,Compensation Payments,09.01.2017,1905421887,"16,000.00",Redacted Personal Information
Manchester City Council,Highways Services,Compensation Payments,09.01.2017,1905421889,"12,000.00",Redacted Personal Information
Manchester City Council,Highways Services,Compensation Payments,09.01.2017,1905411289,"5,500.00",Simpson Millar LLP
Manchester City Council,Highways Services,Compensation Payments,09.01.2017,1905415073,"5,250.00",Redacted Personal Information
Manchester City Council,Highways Services,Compensation Payments,09.01.2017,1905421891,"2,750.00",Peasegoods
Manchester City Council,Highways Services,Compensation Payments,09.01.2017,1905421909,"2,500.00",CFG Law
Manchester City Council,Highways Services,Compensation Payments,09.01.2017,1905415226,"1,750.00",Bradshaw Legal Ltd
Manchester City Council,Highways Services,Payments to Contractors,09.01.2017,5100897350,"5,549.11",NSL Ltd
Manchester City Council,Highways Services,Payments to Sub-Contractors,09.01.2017,5100896873,"8,442.50",Urban Vision Partnership Ltd
Manchester City Council,Highways Services,Tipping Charges - Tonnage,09.01.2017,5100897366,"1,560.00",J.Hopkins (Contractors) Ltd.
Manchester City Council,Highways Services,Tipping Charges - Tonnage,09.01.2017,5100897352,881.76,J.Hopkins (Contractors) Ltd.
Manchester City Council,Highways Services,Legal Fees,09.01.2017,1905421889,"4,018.00",Redacted Personal Information
Manchester City Council,Highways Services,Compensation Payments,09.01.2017,1905421893,627.00,Department For Work & Pensions
Manchester City Council,Highways Services,Compensation Payments,09.01.2017,1905421908,627.00,Department For Work & Pensions
Manchester City Council,Highways Services,Compensation Payments,09.01.2017,1905415059,637.00,Department For Work & Pensions
Manchester City Council,Highways Services,Compensation Payments,09.01.2017,1905421895,637.00,Department For Work & Pensions
Manchester City Council,Highways Services,Compensation Payments,09.01.2017,1905415072,647.00,Department For Work & Pensions
Manchester City Council,Highways Services,Compensation Payments,09.01.2017,1905421894,770.00,Department For Work & Pensions
Manchester City Council,Highways Services,Compensation Payments,09.01.2017,1905415219,"2,625.00",DLG Legal Services
Manchester City Council,Highways Services,Compensation Payments,09.01.2017,1905411286,"5,304.00",Simpson Millar LLP
Manchester City Council,Highways Services,Compensation Payments,09.01.2017,1905415225,"5,876.00",Bradshaw Legal Ltd
Manchester City Council,Highways Services,Compensation Payments,09.01.2017,1905421892,"6,290.50",Peasegoods
Manchester City Council,Insurance Fund,Engineering Insurance Premium,09.01.2017,5100897395,"79,600.08",Zurich Insurance
Manchester City Council,Insurance Fund,Engineering Insurance Premium,09.01.2017,5100897392,"4,454.58",Zurich Insurance
Manchester City Council,Manchester Leisure,Equipment,10.01.2017,5100897883,747.50,The Helping Hand Company Ltd
Manchester City Council,Manchester Leisure,Grant Payments,10.01.2017,5100897645,"7,659.00",Ladybarn Community Association
Manchester City Council,Manchester Leisure,Grant Payments,10.01.2017,1905425886,"2,976.00",Alexandra Rd Sth Allotment Society
Manchester City Council,Manchester Leisure,Grant Payments,10.01.2017,1905425018,800.00,Friends of Birchfields Park
Manchester City Council,Manchester Leisure,Grant Payments,10.01.2017,1905424993,650.00,steps2success
Manchester City Council,Manchester Leisure,Grounds Maintenance Costs,10.01.2017,5100897403,"2,357.25",Iss Facility Services Limited
Manchester City Council,Manchester Leisure,Payments for services,10.01.2017,1905417851,500.00,Master Chu's Lion&Dragon Dance Club
Manchester City Council,Manchester Leisure,Payments to Sub-Contractors,10.01.2017,5100897849,"4,580.22",Community Security (North West)
Manchester City Council,Manchester Leisure,Payments to Sub-Contractors,10.01.2017,5100897873,515.12,Fast Hire UK
Manchester City Council,Manchester Leisure,Professional fees,10.01.2017,5100897594,"72,750.00",Wythenshawe Forum Trust Ltd
Manchester City Council,Manchester Leisure,Professional fees,10.01.2017,5100897698,"15,000.00",The Fitness Training Academy Ltd
Manchester City Council,Manchester Leisure,Professional fees,10.01.2017,5100896834,"2,945.25",Amey OW Limited
Manchester City Council,Manchester Leisure,Professional fees,10.01.2017,5100897839,"1,546.28",Daly Drains Ltd
Manchester City Council,Hospitality + Trading Services,Agency staff provision,10.01.2017,5100897516,"1,320.00",Redacted Personal Information
Manchester City Council,Hospitality + Trading Services,Agency staff provision,10.01.2017,5100897520,"1,320.00",Redacted Personal Information
Manchester City Council,Hospitality + Trading Services,"Clothes, Uniform and Laundry",10.01.2017,5100897884,866.85,Image@Work Ltd
Manchester City Council,Hospitality + Trading Services,Goods purchased for resale in Council outlets,10.01.2017,5100897405,"7,700.00",Thomas Group (Marble & Granite) Ltd
Manchester City Council,Hospitality + Trading Services,Hire of Machinery,10.01.2017,5100897876,"10,981.65",Fast Hire UK
Manchester City Council,Hospitality + Trading Services,Security,10.01.2017,5100897481,"45,716.47",Showsec International Ltd
Manchester City Council,Hospitality + Trading Services,Vehicle contract hire and leases,10.01.2017,5100897548,"8,125.00",S G Equipment Finance Ltd
Manchester City Council,Environment and Operations,Construction Works,10.01.2017,5100897561,"3,600.00",Utilities Design & Planning Ltd
Manchester City Council,Adult Social Care,Carer Support Payments ,10.01.2017,5100897570,"20,236.32",Homecare Support
Manchester City Council,Adult Social Care,Cleaning Equipment and Materials,10.01.2017,1905426142,633.96,PHS Group
Manchester City Council,Adult Social Care,Cleaning Equipment and Materials,10.01.2017,1905426169,549.12,PHS Group
Manchester City Council,Adult Social Care,Cleaning Equipment and Materials,10.01.2017,1905426143,525.88,PHS Group
Manchester City Council,Adult Social Care,Cleaning Equipment and Materials,10.01.2017,1905426154,507.00,PHS Group
Manchester City Council,Adult Social Care,Contract Cleaning External,10.01.2017,5100897708,"4,500.00",Tiddlywinks Nursery-Clayton No.4 Ac
Manchester City Council,Adult Social Care,Contract Cleaning External,10.01.2017,5100897710,"2,700.00",Tiddlywinks Day Nursery Ltd
Manchester City Council,Adult Social Care,Contract Cleaning External,10.01.2017,5100897703,"1,800.00",Tiddlywinks Day Nursery
Manchester City Council,Adult Social Care,Equipment,10.01.2017,5100897554,"1,120.00",Tiptoes Child Therapy Services Ltd
Manchester City Council,Adult Social Care,Equipment,10.01.2017,5100897546,"1,110.00",Tiptoes Child Therapy Services Ltd
Manchester City Council,Adult Social Care,Equipment,10.01.2017,5100897551,"1,110.00",Tiptoes Child Therapy Services Ltd
Manchester City Council,Adult Social Care,Equipment,10.01.2017,5100897552,854.00,Tiptoes Child Therapy Services Ltd
Manchester City Council,Adult Social Care,Equipment,10.01.2017,5100897550,560.00,Tiptoes Child Therapy Services Ltd
Manchester City Council,Adult Social Care,Funeral and coroner related services,10.01.2017,5100897331,"4,170.00",Funeral Prtnrs t/a Michael Kennedy
Manchester City Council,Adult Social Care,Funeral and coroner related services,10.01.2017,5100897596,"1,285.00",Funeral Prtnrs t/a Michael Kennedy
Manchester City Council,Adult Social Care,Funeral and coroner related services,10.01.2017,5100897678,"1,285.00",Funeral Prtnrs t/a Michael Kennedy
Manchester City Council,Adult Social Care,Gas,10.01.2017,5100897822,-785.83,The Manchester College
Manchester City Council,Adult Social Care,Grounds Maintenance Costs,10.01.2017,5100897714,787.25,Tiddlywinks Nursery-Clayton No.4 Ac
Manchester City Council,Adult Social Care,Home Care ,10.01.2017,5100897647,984.00,Tiddlywinks Nursery-Clayton No.4 Ac
Manchester City Council,Adult Social Care,Payments for services,10.01.2017,5100897565,"34,253.00",St John Vianney School
Manchester City Council,Adult Social Care,Payments for services,10.01.2017,5100897580,"26,665.43",Care Concepts Ltd
Manchester City Council,Adult Social Care,Payments for services,10.01.2017,5100897593,"26,665.43",Care Concepts Ltd
Manchester City Council,Adult Social Care,Payments for services,10.01.2017,5100897595,"26,665.43",Care Concepts Ltd
Manchester City Council,Adult Social Care,Payments for services,10.01.2017,5100897639,"26,281.61",Seashell trust
Manchester City Council,Adult Social Care,Payments for services,10.01.2017,5100897521,"13,110.23",Scope
Manchester City Council,Adult Social Care,Payments for services,10.01.2017,5100897641,"12,567.77",Seashell trust
Manchester City Council,Adult Social Care,Payments for services,10.01.2017,5100897663,"12,127.50",Time Specialist Support Ltd
Manchester City Council,Adult Social Care,Payments for services,10.01.2017,5100897665,"8,692.50",Time Specialist Support Ltd
Manchester City Council,Adult Social Care,Payments for services,10.01.2017,5100897611,"6,330.19",The Together Trust
Manchester City Council,Adult Social Care,Payments for services,10.01.2017,5100897607,"3,204.39",The Together Trust
Manchester City Council,Adult Social Care,Payments for services,10.01.2017,5100897620,"2,720.00",Keys Childcare Ltd
Manchester City Council,Adult Social Care,Payments for services,10.01.2017,5100897622,"2,720.00",Keys Childcare Ltd
Manchester City Council,Adult Social Care,Payments for services,10.01.2017,5100897624,"2,720.00",Keys Childcare Ltd
Manchester City Council,Adult Social Care,Payments for services,10.01.2017,5100897619,"2,550.00",Keys Childcare Ltd
Manchester City Council,Adult Social Care,Payments for services,10.01.2017,5100897508,"1,000.00",The Factory Youth Zone
Manchester City Council,Adult Social Care,Payments for services,10.01.2017,5100897724,600.00,The Factory Youth Zone
Manchester City Council,Adult Social Care,Payments for services,10.01.2017,5100897566,"-1,892.00",St John Vianney School
Manchester City Council,Adult Social Care,Personal needs of client,10.01.2017,5100897159,"3,743.59",Aidapt Bathrooms Ltd
Manchester City Council,Adult Social Care,Professional fees,10.01.2017,5100897697,"1,750.00",Liquid Personnel Ltd
Manchester City Council,Adult Social Care,Professional fees,10.01.2017,5100897623,"1,371.70",Resolutions Consultancy Pty Ltd
Manchester City Council,Adult Social Care,Professional fees,10.01.2017,1905417866,"1,080.00",Alt Payee Positive Cashflow
Manchester City Council,Adult Social Care,Professional fees,10.01.2017,1905415204,777.60,Redacted Personal Information
Manchester City Council,Adult Social Care,Professional fees,10.01.2017,5100897695,700.00,Liquid Personnel Ltd
Manchester City Council,Adult Social Care,Professional fees,10.01.2017,1905424990,574.00,Anglia DNA Services Ltd
Manchester City Council,Adult Social Care,Removal and Storage of Furniture,10.01.2017,5100896887,"2,483.83",Master Moves Ltd
Manchester City Council,Adult Social Care,Subsistence and Conference Expenses,10.01.2017,5100897686,"3,000.00",Peoples Voice Media
Manchester City Council,Adult Social Care,Supporting People Payments,10.01.2017,5100897536,"11,666.66",The Depaul Trust
Manchester City Council,Adult Social Care,Supporting People Payments,10.01.2017,5100897568,"6,259.80",Saheli
Manchester City Council,Adult Social Care,Supporting People Payments,10.01.2017,5100897538,"5,000.00",The Depaul Trust
Manchester City Council,Adult Social Care,Third party payments relating to Voluntary Organisations,10.01.2017,5100897651,"73,750.00",Man. Citizens Advice Bureaux
Manchester City Council,Adult Social Care,Third party payments relating to Voluntary Organisations,10.01.2017,5100897640,"9,933.80",Man. Citizens Advice Bureaux
Manchester City Council,Adult Social Care,Third party payments relating to Voluntary Organisations,10.01.2017,5100897592,"6,496.33",Shelter
Manchester City Council,Adult Social Care,Third party payments relating to Voluntary Organisations,10.01.2017,5100897604,"1,062.08",MCCR
Manchester City Council,Adult Social Care,Third party payments relating to Voluntary Organisations,10.01.2017,5100897610,947.00,MCCR
Manchester City Council,Adult Social Care,Third party payments relating to Voluntary Organisations,10.01.2017,5100897466,524.00,University Hospital of South Mcr
Manchester City Council,Adult Social Care,Transport Coach Hire,10.01.2017,5100897646,"4,262.90",Parkway Cabs & Cars
Manchester City Council,Adult Social Care,Transport Coach Hire,10.01.2017,5100897321,"2,180.50",Nelson Transport
Manchester City Council,Adult Social Care,Transport Coach Hire,10.01.2017,5100897733,"-3,698.40",Cresta Car Hire
Manchester City Council,Adult Social Care,Transport Coach Hire,10.01.2017,5100897745,"-4,962.60",Cresta Car Hire
Manchester City Council,Corporate Services,Fees,10.01.2017,5100897317,"6,171.25",Pannone Corporate LLP
Manchester City Council,Corporate Services,I T Provision,10.01.2017,5100896990,683.16,Computacenter (UK) Ltd
Manchester City Council,Corporate Services,Welfare Provision Service Awards,10.01.2017,5100897852,724.71,The Furnishing Service Ltd
Manchester City Council,Corporate Services,Welfare Provision Service Awards,10.01.2017,5100897851,706.31,The Furnishing Service Ltd
Manchester City Council,Corporate Services,Welfare Provision Service Awards,10.01.2017,5100897860,593.75,The Furnishing Service Ltd
Manchester City Council,Corporate Services,Welfare Provision Service Awards,10.01.2017,5100897857,535.18,The Furnishing Service Ltd
Manchester City Council,Corporate Services,Works and associated costs for Land and Buildings,10.01.2017,5100897737,"17,955.00",Pierre Angulaire Limited
Manchester City Council,Corporate Services,Works and associated costs for Land and Buildings,10.01.2017,5100897734,"12,825.00",Pierre Angulaire Limited
Manchester City Council,Housing General Fund,Building Works,10.01.2017,1905425995,"7,084.58",UPS Building & Maintenance Ltd
Manchester City Council,Housing General Fund,Building Works,10.01.2017,1905425989,"5,701.00",Stannah Lift Services Ltd
Manchester City Council,Housing General Fund,Building Works,10.01.2017,1905425996,"4,632.34",UPS Building & Maintenance Ltd
Manchester City Council,Housing General Fund,Building Works,10.01.2017,1905425990,"4,546.50",UPS Building & Maintenance Ltd
Manchester City Council,Housing General Fund,Building Works,10.01.2017,1905425991,"4,206.32",UPS Building & Maintenance Ltd
Manchester City Council,Housing General Fund,Building Works,10.01.2017,1905425984,"4,182.00",Stannah Lift Services Ltd
Manchester City Council,Housing General Fund,Building Works,10.01.2017,1905425994,"4,120.13",UPS Building & Maintenance Ltd
Manchester City Council,Housing General Fund,Building Works,10.01.2017,1905426003,"4,116.22",Kier Services Ltd - Maint West
Manchester City Council,Housing General Fund,Building Works,10.01.2017,1905425992,"3,830.42",UPS Building & Maintenance Ltd
Manchester City Council,Housing General Fund,Building Works,10.01.2017,1905425993,"3,790.73",UPS Building & Maintenance Ltd
Manchester City Council,Housing General Fund,Building Works,10.01.2017,1905426002,"2,657.00",Stannah Lift Services Ltd
Manchester City Council,Housing General Fund,Building Works,10.01.2017,1905425997,"2,512.74",UPS Building & Maintenance Ltd
Manchester City Council,Housing General Fund,Building Works,10.01.2017,1905425998,"2,197.50",UPS Building & Maintenance Ltd
Manchester City Council,Housing General Fund,Building Works,10.01.2017,1905425986,"2,194.00",Stannah Lift Services Ltd
Manchester City Council,Housing General Fund,Building Works,10.01.2017,1905426004,"2,173.00",Stannah Lift Services Ltd
Manchester City Council,Housing General Fund,Building Works,10.01.2017,1905425988,"1,705.95",Stannah Lift Services Ltd
Manchester City Council,Housing General Fund,Building Works,10.01.2017,1905425985,"1,428.00",Stannah Lift Services Ltd
Manchester City Council,Housing General Fund,Building Works,10.01.2017,1905426001,"1,406.00",Stannah Lift Services Ltd
Manchester City Council,Housing General Fund,Building Works,10.01.2017,1905425999,511.00,Stannah Lift Services Ltd
Manchester City Council,Housing General Fund,Building Works,10.01.2017,1905426000,511.00,Stannah Lift Services Ltd
Manchester City Council,Housing General Fund,Building Works,10.01.2017,1905426005,511.00,Stannah Lift Services Ltd
Manchester City Council,Housing General Fund,Building Works,10.01.2017,1905425987,500.00,Stannah Lift Services Ltd
Manchester City Council,Chief Executives,Agency staff provision,10.01.2017,5100897291,"24,759.76",Triad Resourcing
Manchester City Council,Chief Executives,Agency staff provision,10.01.2017,5100897723,"9,418.60",Hays Personnel
Manchester City Council,Chief Executives,"CD-ROMs, Software, etc",10.01.2017,5100897360,"17,940.62",Imerja Limited
Manchester City Council,Chief Executives,"CD-ROMs, Software, etc",10.01.2017,5100897359,"1,250.00",Imerja Limited
Manchester City Council,Chief Executives,Grant Payments,10.01.2017,5100897540,"6,250.00",Centre for Chinese Contemporary
Manchester City Council,Chief Executives,Grant Payments,10.01.2017,5100897652,"4,000.00",Manchester Jewish Museum
Manchester City Council,Chief Executives,Hire of Premises,10.01.2017,5100897614,530.00,Quaker Trading Ltd
Manchester City Council,Chief Executives,I T Provision,10.01.2017,5100897517,"6,190.00",Agency for Educational Support Ltd
Manchester City Council,Chief Executives,I T Provision,10.01.2017,5100897717,"4,000.00",Zipporah Ltd
Manchester City Council,Chief Executives,ICT Support & Maintenance,10.01.2017,5100897309,"4,989.00",Esteem
Manchester City Council,Chief Executives,Signers/Interpreters Fees,10.01.2017,5100897535,"2,600.00",Interpreter Booking Services
Manchester City Council,Chief Executives,Signers/Interpreters Fees,10.01.2017,5100897574,"1,837.10",Interpreter Booking Services
Manchester City Council,Chief Executives,Signers/Interpreters Fees,10.01.2017,5100897547,"1,703.80",Interpreter Booking Services
Manchester City Council,Chief Executives,Vehicle Plant Furniture and Equipment,10.01.2017,5100896988,"9,887.16",Computacenter (UK) Ltd
Manchester City Council,Chief Executives,Vehicle Plant Furniture and Equipment,10.01.2017,5100897063,"9,042.24",GS Systems Ltd
Manchester City Council,Chief Executives,Vehicle Plant Furniture and Equipment,10.01.2017,5100897051,"2,800.00",Northgate Public Services (UK) Ltd
Manchester City Council,Chief Executives,Works and associated costs for Land and Buildings,10.01.2017,5100881971,"14,000.00",Buro Happold Limited
Manchester City Council,Chief Executives,Works and associated costs for Land and Buildings,10.01.2017,5100886710,"10,000.00",Buro Happold Limited
Manchester City Council,Chief Executives,Works and associated costs for Land and Buildings,10.01.2017,5100892182,"10,000.00",Buro Happold Limited
Manchester City Council,Chief Executives,Works and associated costs for Land and Buildings,10.01.2017,5100897274,"7,875.00",Integra Consulting Engineers Ltd
Manchester City Council,Chief Executives,Compensation Payments,10.01.2017,5100897669,825.00,Redacted Personal Information
Manchester City Council,Regeneration Finance,Cleaning Equipment and Materials,10.01.2017,1905426153,"1,234.68",PHS Group
Manchester City Council,Regeneration Finance,Cleaning Equipment and Materials,10.01.2017,1905426126,"1,092.00",PHS Group
Manchester City Council,Regeneration Finance,Cleaning Equipment and Materials,10.01.2017,1905426124,977.60,PHS Group
Manchester City Council,Regeneration Finance,Cleaning Equipment and Materials,10.01.2017,1905426132,911.94,PHS Group
Manchester City Council,Regeneration Finance,Cleaning Equipment and Materials,10.01.2017,1905426125,546.00,PHS Group
Manchester City Council,Regeneration Finance,Cleaning Equipment and Materials,10.01.2017,1905426185,537.07,PHS Group
Manchester City Council,Regeneration Finance,Contract Cleaning External,10.01.2017,5100897525,"1,710.19",M & M Cleaning Services Ltd
Manchester City Council,Regeneration Finance,Contract Cleaning External,10.01.2017,5100897556,857.25,M & M Cleaning Services Ltd
Manchester City Council,Regeneration Finance,Professional fees,10.01.2017,5100897539,"5,606.00",GVA Grimley Ltd
Manchester City Council,Regeneration Finance,Professional fees,10.01.2017,1905425010,"5,000.00",Redacted Personal Information
Manchester City Council,Regeneration Finance,Professional fees,10.01.2017,5100897739,"3,750.00",Lambert Smith Hampton
Manchester City Council,Regeneration Finance,Professional fees,10.01.2017,5100897530,"-5,606.00",GVA Grimley Ltd
Manchester City Council,Regeneration Finance,Professional Services Provision,10.01.2017,5100896839,640.00,Integrated Water Services Ltd
Manchester City Council,Highways Services,Agency staff provision,10.01.2017,5100897126,"5,569.20",Turner & Townsend Project
Manchester City Council,Highways Services,Payments to Sub-Contractors,10.01.2017,5100897326,"6,850.00",Kenny Bros (Civil Eng) Ltd
Manchester City Council,Highways Services,Payments to Sub-Contractors,10.01.2017,5100897683,"5,410.00",Kenny Bros (Civil Eng) Ltd
Manchester City Council,Highways Services,Payments to Sub-Contractors,10.01.2017,5100897682,"5,110.00",Kenny Bros (Civil Eng) Ltd
Manchester City Council,Highways Services,Payments to Sub-Contractors,10.01.2017,5100897325,"4,560.00",Kenny Bros (Civil Eng) Ltd
Manchester City Council,Highways Services,Payments to Sub-Contractors,10.01.2017,5100897684,"3,160.00",Kenny Bros (Civil Eng) Ltd
Manchester City Council,Highways Services,Payments to Sub-Contractors,10.01.2017,5100897111,"2,170.00",Kenny Bros (Civil Eng) Ltd
Manchester City Council,Highways Services,Professional fees,10.01.2017,5100897211,"6,035.66",Turner & Townsend Project
Manchester City Council,Highways Services,Legal Fees,10.01.2017,5100897716,600.00,Redacted Personal Information
Manchester City Council,Manchester Leisure,Building Materials for direct delivery,11.01.2017,5100897837,"2,326.65",Weedfree Ltd
Manchester City Council,Manchester Leisure,Building Materials for direct delivery,11.01.2017,5100897837,606.75,Weedfree Ltd
Manchester City Council,Manchester Leisure,Equipment,11.01.2017,1905415212,"3,288.00",Lighting Motions
Manchester City Council,Manchester Leisure,Hire of Machinery,11.01.2017,5100897672,708.35,SHB T/A Golf Buggy Hire UK
Manchester City Council,Manchester Leisure,Professional fees,11.01.2017,5100896897,750.00,Manchester Literature Festival
Manchester City Council,Manchester Leisure,Refuse Collection,11.01.2017,5100897778,833.33,Biffa Municipal Limited
Manchester City Council,Manchester Leisure,Rents,11.01.2017,5100897185,"35,000.00",The Manchester College
Manchester City Council,Manchester Leisure,Special Events,11.01.2017,5100897935,"25,000.00",Bridge
Manchester City Council,Manchester Leisure,Special Events,11.01.2017,5100897726,"12,347.00",The Manchester Light & Stage
Manchester City Council,Manchester Leisure,Special Events,11.01.2017,5100897727,"9,128.48",The Manchester Light & Stage
Manchester City Council,Manchester Leisure,Special Events,11.01.2017,5100897932,"3,500.00",MK Illuminations UK Ltd
Manchester City Council,Manchester Leisure,Training and Development,11.01.2017,1905409516,560.00,The Hub Events Ltd
Manchester City Council,Manchester Leisure,Variation Orders,11.01.2017,5100897781,"3,000.00",Biffa Municipal Limited
Manchester City Council,Hospitality + Trading Services,Catering Provisions,11.01.2017,1905430772,"1,066.36",Brake Bros Foodservice Ltd
Manchester City Council,Hospitality + Trading Services,Catering Provisions,11.01.2017,1905430816,958.17,Brake Bros Foodservice Ltd
Manchester City Council,Hospitality + Trading Services,Catering Provisions,11.01.2017,1905430734,871.35,Brake Bros Foodservice Ltd
Manchester City Council,Hospitality + Trading Services,Catering Provisions,11.01.2017,1905430791,672.23,Brake Bros Foodservice Ltd
Manchester City Council,Hospitality + Trading Services,Catering Provisions,11.01.2017,1905430784,646.65,Pasta King (Uk) Ltd
Manchester City Council,Hospitality + Trading Services,Catering Provisions,11.01.2017,1905430758,617.55,Brake Bros Foodservice Ltd
Manchester City Council,Hospitality + Trading Services,Catering Provisions,11.01.2017,1905430821,578.44,Brake Bros Foodservice Ltd
Manchester City Council,Hospitality + Trading Services,Catering Provisions,11.01.2017,1905430798,575.21,Brake Bros Foodservice Ltd
Manchester City Council,Hospitality + Trading Services,Catering Provisions,11.01.2017,1905430831,565.05,Brake Bros Foodservice Ltd
Manchester City Council,Hospitality + Trading Services,Catering Provisions,11.01.2017,1905430832,552.25,Brake Bros Foodservice Ltd
Manchester City Council,Hospitality + Trading Services,Catering Provisions,11.01.2017,1905430810,533.45,Brake Bros Foodservice Ltd
Manchester City Council,Hospitality + Trading Services,Electricity,11.01.2017,5100897887,"17,185.00",FTS Event Power Ltd
Manchester City Council,Hospitality + Trading Services,Hire of Equipment,11.01.2017,5100897659,"5,000.00",Marks & Spencer
Manchester City Council,Hospitality + Trading Services,Hire of Machinery,11.01.2017,5100897875,"-10,981.65",H & C Plant Hire Ltd
Manchester City Council,Hospitality + Trading Services,Machinery and equipment repairs,11.01.2017,5100897958,"18,935.90",F.R.Sharrock Ltd
Manchester City Council,Hospitality + Trading Services,Machinery and equipment repairs,11.01.2017,5100897961,"2,328.18",F.R.Sharrock Ltd
Manchester City Council,Hospitality + Trading Services,Security,11.01.2017,5100897484,"70,615.39",Showsec International Ltd
Manchester City Council,Hospitality + Trading Services,Vehicle Hire Costs,11.01.2017,5100898027,"1,700.00",Peter Douglass Platforms
Manchester City Council,Hospitality + Trading Services,Vehicle Hire Costs,11.01.2017,5100898029,"1,200.00",Peter Douglass Platforms
Manchester City Council,Environment and Operations,Construction Works,11.01.2017,5100897220,"5,458.13",Transport for Greater Manchester
Manchester City Council,Adult Social Care,Bed and Breakfast Accommodation Expenditure,11.01.2017,5100897989,"22,222.44",Cromwood Ltd
Manchester City Council,Adult Social Care,Carer Support Payments ,11.01.2017,5100897519,"16,972.61",DH Homecare Ltd (Direct Health)
Manchester City Council,Adult Social Care,Compensation Payments,11.01.2017,1905417862,"4,400.00",Simpson Millar LLP
Manchester City Council,Adult Social Care,Foster Payments,11.01.2017,1905431792,"1,215.44",Redacted Personal Information
Manchester City Council,Adult Social Care,Foster Payments,11.01.2017,1905431828,"1,200.72",Redacted Personal Information
Manchester City Council,Adult Social Care,Foster Payments,11.01.2017,1905431843,"1,008.00",Redacted Personal Information
Manchester City Council,Adult Social Care,Foster Payments,11.01.2017,1905431834,688.80,Redacted Personal Information
Manchester City Council,Adult Social Care,Foster Payments,11.01.2017,1905431831,561.32,Redacted Personal Information
Manchester City Council,Adult Social Care,Foster Payments,11.01.2017,1905431836,556.00,Redacted Personal Information
Manchester City Council,Adult Social Care,Foster Payments,11.01.2017,1905431844,506.52,Redacted Personal Information
Manchester City Council,Adult Social Care,Gas,11.01.2017,5100897819,785.83,The Manchester College
Manchester City Council,Adult Social Care,Payments for services,11.01.2017,5100897885,"29,643.55",United Response
Manchester City Council,Adult Social Care,Payments for services,11.01.2017,5100898011,"27,089.69",The Together Trust
Manchester City Council,Adult Social Care,Payments for services,11.01.2017,5100897826,"14,878.00",Mary Hare School
Manchester City Council,Adult Social Care,Payments for services,11.01.2017,5100897829,"14,878.00",Mary Hare School
Manchester City Council,Adult Social Care,Payments for services,11.01.2017,5100897824,"13,878.00",Mary Hare School
Manchester City Council,Adult Social Care,Payments for services,11.01.2017,5100898007,"5,462.96",The Together Trust
Manchester City Council,Adult Social Care,Payments for services,11.01.2017,5100897886,"3,898.00",United Response
Manchester City Council,Adult Social Care,Payments for services,11.01.2017,5100898009,"3,280.75",The Together Trust
Manchester City Council,Adult Social Care,Payments for services,11.01.2017,5100898012,"2,924.00",St John Vianney School
Manchester City Council,Adult Social Care,Payments for services,11.01.2017,5100897810,"1,987.00",Redacted Personal Information
Manchester City Council,Adult Social Care,Payments for services,11.01.2017,5100897827,"-13,878.00",Mary Hare School
Manchester City Council,Adult Social Care,Payments for services,11.01.2017,5100897828,"-13,878.00",Mary Hare School
Manchester City Council,Adult Social Care,Payments for services,11.01.2017,5100897825,"-14,878.00",Mary Hare School
Manchester City Council,Adult Social Care,Rents,11.01.2017,5100897779,"24,718.03",United Property Management Ltd
Manchester City Council,Adult Social Care,Storage Costs,11.01.2017,5100897988,"1,467.02",PHS Records Management
Manchester City Council,Adult Social Care,Third party payments relating to Voluntary Organisations,11.01.2017,5100897801,"59,098.50",The Big Life Company
Manchester City Council,Adult Social Care,Third party payments relating to Voluntary Organisations,11.01.2017,5100897797,"39,759.75",The Big Life Company
Manchester City Council,Adult Social Care,Third party payments relating to Voluntary Organisations,11.01.2017,5100897469,"7,500.00",Southway Housing Trust
Manchester City Council,Adult Social Care,Third party payments relating to Voluntary Organisations,11.01.2017,5100897987,"6,737.00",Great Places Housing Association
Manchester City Council,Adult Social Care,Third party payments relating to Voluntary Organisations,11.01.2017,5100897971,"3,074.25",LMCP Care Link
Manchester City Council,Adult Social Care,Third party payments relating to Voluntary Organisations,11.01.2017,5100897803,"1,401.15",Barlow Moor Community Association
Manchester City Council,Adult Social Care,Third party payments relating to Voluntary Organisations,11.01.2017,5100897339,675.00,The Lesbian & Gay Foundation
Manchester City Council,Adult Social Care,Third party payments to Health Authority,11.01.2017,5100897388,"31,057.00",The Pennine Acute Hospital Nhs Trus
Manchester City Council,Adult Social Care,Third party payments to other Local Authorities,11.01.2017,5100897789,"1,837.50",Cheadle Royal Healthcare
Manchester City Council,Adult Social Care,Third party payments to other Local Authorities,11.01.2017,5100897790,"1,750.00",Cheadle Royal Healthcare
Manchester City Council,Adult Social Care,Training and Development,11.01.2017,5100897996,965.00,Compass Computer Consultants Ltd
Manchester City Council,Adult Social Care,Transport Coach Hire,11.01.2017,5100897735,"3,698.40",Cresta Car Hire
Manchester City Council,Adult Social Care,Transport Coach Hire,11.01.2017,5100897118,"1,530.00",Exec-Coach Services
Manchester City Council,Childrens Services,Works and associated costs for Land and Buildings,11.01.2017,5100897223,"3,000.00",Godfrey Syrett Ltd
Manchester City Council,Childrens Services,Works and associated costs for Land and Buildings,11.01.2017,5100896792,"1,300.00",GMCA
Manchester City Council,Corporate Services,Storage Costs,11.01.2017,5100897187,"4,992.18",Box-It (NW)
Manchester City Council,Corporate Services,Training and Development,11.01.2017,5100897821,676.00,The Skills Company
Manchester City Council,Corporate Services,Travel Season Ticket Loan Scheme,11.01.2017,5100897780,900.00,Transport for Greater Manchester
Manchester City Council,Corporate Services,Travel Season Ticket Loan Scheme,11.01.2017,5100897791,900.00,Transport for Greater Manchester
Manchester City Council,Corporate Services,Travel Season Ticket Loan Scheme,11.01.2017,5100897791,900.00,Transport for Greater Manchester
Manchester City Council,Corporate Services,Travel Season Ticket Loan Scheme,11.01.2017,5100897780,646.00,Transport for Greater Manchester
Manchester City Council,Corporate Services,Travel Season Ticket Loan Scheme,11.01.2017,5100897780,646.00,Transport for Greater Manchester
Manchester City Council,Corporate Services,Travel Season Ticket Loan Scheme,11.01.2017,5100897780,558.00,Transport for Greater Manchester
Manchester City Council,Corporate Services,Travel Season Ticket Loan Scheme,11.01.2017,5100896983,-646.00,Transport for Greater Manchester
Manchester City Council,Corporate Services,Works and associated costs for Land and Buildings,11.01.2017,1905424998,"3,818.95",Ondrives Limited
Manchester City Council,Housing Revenue Account,Council Dwelling Adaptations,11.01.2017,5100897959,"61,031.88",Northwards Housing Limited
Manchester City Council,Housing Revenue Account,Council Dwelling Adaptations,11.01.2017,5100897963,"28,951.35",Northwards Housing Limited
Manchester City Council,Housing Revenue Account,Council Dwelling Adaptations,11.01.2017,5100897960,"16,848.71",Northwards Housing Limited
Manchester City Council,Housing Revenue Account,Council Dwelling Adaptations,11.01.2017,5100897750,"4,245.00",Thyssenkrupp Encasa
Manchester City Council,Housing Revenue Account,Council Dwelling Adaptations,11.01.2017,5100897954,"4,131.35",Northwards Housing Limited
Manchester City Council,Housing Revenue Account,Northwards Management Fee,11.01.2017,5100897982,"27,472.50",Northwards Housing Limited
Manchester City Council,Housing Revenue Account,Northwards Repairs Fee,11.01.2017,5100897979,"1,789,541.17",Northwards Housing Limited
Manchester City Council,Housing Revenue Account,Professional fees,11.01.2017,5100898010,"2,148.50",Southway Housing Trust
Manchester City Council,Chief Executives,Agency staff provision,11.01.2017,5100897296,"16,072.20",HCL Social Care
Manchester City Council,Chief Executives,Agency staff provision,11.01.2017,5100897945,"13,204.71",Hays Personnel
Manchester City Council,Chief Executives,Agency staff provision,11.01.2017,5100897458,"7,967.16",Reed Employment Plc
Manchester City Council,Chief Executives,Agency staff provision,11.01.2017,5100897302,"4,377.31",Ashberry Recruitment Ltd
Manchester City Council,Chief Executives,Agency staff provision,11.01.2017,5100897808,"1,961.50",Entrust Social Care
Manchester City Council,Chief Executives,Examination Fees,11.01.2017,5100891704,"1,514.64",Central Manchester University Hosp
Manchester City Council,Chief Executives,Funeral and coroner related services,11.01.2017,5100897226,"44,804.57",Central Manchester University Hosp
Manchester City Council,Chief Executives,Funeral and coroner related services,11.01.2017,5100891704,"24,231.45",Central Manchester University Hosp
Manchester City Council,Chief Executives,Funeral and coroner related services,11.01.2017,5100891704,"6,945.37",Central Manchester University Hosp
Manchester City Council,Chief Executives,Funeral and coroner related services,11.01.2017,5100891704,678.49,Central Manchester University Hosp
Manchester City Council,Chief Executives,Funeral and coroner related services,11.01.2017,5100897834,"-32,009.66",Central Manchester University Hosp
Manchester City Council,Chief Executives,Funeral and coroner related services,11.01.2017,5100897835,"-43,596.43",Central Manchester University Hosp
Manchester City Council,Chief Executives,Funeral and coroner related services,11.01.2017,5100897838,"-44,804.57",Central Manchester University Hosp
Manchester City Council,Chief Executives,Grant Payments,11.01.2017,5100897807,"7,500.00",Contact Theatre Company
Manchester City Council,Chief Executives,Grant Payments,11.01.2017,5100897934,"3,750.00",Manchester Digital Laboratory
Manchester City Council,Chief Executives,I T Provision,11.01.2017,1905423060,"9,104.98",Vodafone (Ex C&W)
Manchester City Council,Chief Executives,I T Provision,11.01.2017,1905423061,"6,059.01",Vodafone (Ex C&W)
Manchester City Council,Chief Executives,Mobilephone Charges,11.01.2017,1905430976,"78,585.31",EE / Orange
Manchester City Council,Chief Executives,Printing,11.01.2017,5100897916,823.00,Astra Signs
Manchester City Council,Chief Executives,Third party payments relating to Voluntary Organisations,11.01.2017,5100897933,"114,032.83",HOME
Manchester City Council,Chief Executives,Vehicle Hire Costs,11.01.2017,5100897766,"1,019.00",CD Chauffeur Hire
Manchester City Council,Chief Executives,Vehicle Hire Costs,11.01.2017,5100897814,"1,019.00",CD Chauffeur Hire
Manchester City Council,Chief Executives,Vehicle Hire Costs,11.01.2017,5100897812,"-1,019.00",CD Chauffeur Hire
Manchester City Council,Chief Executives,Vehicle Plant Furniture and Equipment,11.01.2017,5100897771,"19,900.00",Esteem
Manchester City Council,Regeneration Finance,External repairs and maintenance for buildings,11.01.2017,5100897952,"11,243.30",Manchester Working Ltd
Manchester City Council,Regeneration Finance,Internal Repairs and Maintenance for buildings,11.01.2017,5100897831,785.00,Sitewatch Fire & Surveillance Ltd
Manchester City Council,Regeneration Finance,Professional fees,11.01.2017,1905431789,"10,000.00",Manchester Creative Digital Assets
Manchester City Council,Highways Services,Building Materials for direct delivery,11.01.2017,5100897917,"6,641.20",Marshalls Mono Ltd
Manchester City Council,Highways Services,Payments to Sub-Contractors,11.01.2017,5100897783,"24,250.00",V J Donegan & Co Limited
Manchester City Council,Highways Services,Payments to Sub-Contractors,11.01.2017,5100897685,"1,010.00",Kenny Bros (Civil Eng) Ltd
Manchester City Council,Highways Services,Payments to Sub-Contractors,11.01.2017,5100897755,520.00,Kenny Bros (Civil Eng) Ltd
Manchester City Council,Highways Services,Professional fees,11.01.2017,5100897213,"5,811.96",Turner & Townsend Project
Manchester City Council,Highways Services,Professional fees,11.01.2017,5100897212,"3,410.98",Turner & Townsend Project
Manchester City Council,Highways Services,Purchase of stores for re-distribution,11.01.2017,5100897964,754.07,P.F. Cusack (Tools Supplies) Ltd
Manchester City Council,General Fund,Levies - Cash Limit,11.01.2017,1905075439,"3,603,875.80",GMCA
Manchester City Council,Manchester Leisure,Contract Cleaning External,12.01.2017,5100897637,"10,000.00",Manchester Working Ltd
Manchester City Council,Manchester Leisure,Equipment,12.01.2017,5100898134,"36,723.30",Biffa Municipal Limited
Manchester City Council,Manchester Leisure,Equipment,12.01.2017,5100898086,"7,675.20",Biffa Municipal Limited
Manchester City Council,Manchester Leisure,Equipment,12.01.2017,5100898161,"4,855.20",Biffa Municipal Limited
Manchester City Council,Manchester Leisure,Personal needs of client,12.01.2017,5100898041,980.00,Hemingways Marketing Services Ltd
Manchester City Council,Manchester Leisure,Refuse Collection,12.01.2017,5100898126,"25,000.00",Biffa Municipal Limited
Manchester City Council,Manchester Leisure,Refuse Collection,12.01.2017,5100898071,"18,750.00",Biffa Municipal Limited
Manchester City Council,Manchester Leisure,Refuse Collection,12.01.2017,5100898143,"18,750.00",Biffa Municipal Limited
Manchester City Council,Manchester Leisure,Refuse Collection,12.01.2017,5100898139,833.33,Biffa Municipal Limited
Manchester City Council,Manchester Leisure,Rents,12.01.2017,5100898127,841.47,Wythenshawe Forum Trust Ltd
Manchester City Council,Manchester Leisure,Variation Orders,12.01.2017,5100898052,"3,000.00",Biffa Municipal Limited
Manchester City Council,Hospitality + Trading Services,Catering Provisions,12.01.2017,1905432165,749.28,Brake Bros Foodservice Ltd
Manchester City Council,Hospitality + Trading Services,Catering Provisions,12.01.2017,1905432166,705.92,Brake Bros Foodservice Ltd
Manchester City Council,Hospitality + Trading Services,Catering Provisions,12.01.2017,1905432193,630.99,Brake Bros Foodservice Ltd
Manchester City Council,Hospitality + Trading Services,Catering Provisions,12.01.2017,1905432192,581.15,Brake Bros Foodservice Ltd
Manchester City Council,Hospitality + Trading Services,Catering Provisions,12.01.2017,1905432198,578.92,Brake Bros Foodservice Ltd
Manchester City Council,Hospitality + Trading Services,Catering Provisions,12.01.2017,1905432161,555.16,Brake Bros Foodservice Ltd
Manchester City Council,Hospitality + Trading Services,Catering Provisions,12.01.2017,1905432189,544.80,Pasta King (Uk) Ltd
Manchester City Council,Hospitality + Trading Services,Courier Costs,12.01.2017,5100897881,"3,332.00",Scalamander Business Services Ltd
Manchester City Council,Hospitality + Trading Services,Electricity,12.01.2017,1905432238,"25,215.82",Npower
Manchester City Council,Hospitality + Trading Services,Electricity,12.01.2017,1905432245,"12,283.65",Npower
Manchester City Council,Hospitality + Trading Services,Electricity,12.01.2017,1905432246,"5,244.54",Npower
Manchester City Council,Hospitality + Trading Services,Electricity,12.01.2017,1905432240,"3,001.43",Npower
Manchester City Council,Hospitality + Trading Services,Electricity,12.01.2017,1905432236,"2,086.38",Npower
Manchester City Council,Hospitality + Trading Services,Electricity,12.01.2017,1905432244,"1,561.00",Npower
Manchester City Council,Hospitality + Trading Services,Vehicle Fuel Costs,12.01.2017,5100896857,"14,250.00",Carlton Fuels Ltd
Manchester City Council,Hospitality + Trading Services,Vehicle Fuel Costs,12.01.2017,5100896855,"13,777.85",Carlton Fuels Ltd
Manchester City Council,Hospitality + Trading Services,Vehicle Hire Costs,12.01.2017,5100897313,"7,637.50",S G Equipment Finance Ltd
Manchester City Council,Environment and Operations,Construction Works,12.01.2017,5100898094,"-10,424.00",Wilde Consultants Ltd
Manchester City Council,Adult Social Care,Childrens Allowances,12.01.2017,1905387685,"3,020.80",Barnardos Manchester Leaving Care S
Manchester City Council,Adult Social Care,Childrens Allowances,12.01.2017,1905380000,"2,084.40",Barnardos Manchester Leaving Care S
Manchester City Council,Adult Social Care,Childrens Allowances,12.01.2017,1905409118,"1,869.60",Barnardos Manchester Leaving Care S
Manchester City Council,Adult Social Care,Childrens Allowances,12.01.2017,1905401175,694.80,Barnardos Manchester Leaving Care S
Manchester City Council,Adult Social Care,Childrens Allowances,12.01.2017,1905425884,521.10,Barnardos Manchester Leaving Care S
Manchester City Council,Adult Social Care,Cleaning Equipment and Materials,12.01.2017,5100898107,587.81,Alliance Disposables Ltd
Manchester City Council,Adult Social Care,Fixtures and Fittings,12.01.2017,1905409118,"6,795.90",Barnardos Manchester Leaving Care S
Manchester City Council,Adult Social Care,Fixtures and Fittings,12.01.2017,1905380000,"5,940.50",Barnardos Manchester Leaving Care S
Manchester City Council,Adult Social Care,Fixtures and Fittings,12.01.2017,1905401175,"5,229.98",Barnardos Manchester Leaving Care S
Manchester City Council,Adult Social Care,Fixtures and Fittings,12.01.2017,1905387685,"3,529.37",Barnardos Manchester Leaving Care S
Manchester City Council,Adult Social Care,Fixtures and Fittings,12.01.2017,1905422014,"2,793.98",Barnardos Manchester Leaving Care S
Manchester City Council,Adult Social Care,Fixtures and Fittings,12.01.2017,1905425884,"1,150.00",Barnardos Manchester Leaving Care S
Manchester City Council,Adult Social Care,Funeral and coroner related services,12.01.2017,5100898056,"1,183.00",Funeral Prtnrs t/a Michael Kennedy
Manchester City Council,Adult Social Care,Grant and subscriptions awarded,12.01.2017,5100897944,"30,363.25",The Booth Centre
Manchester City Council,Adult Social Care,Hire of Premises,12.01.2017,5100898080,-615.00,The Skills Company
Manchester City Council,Adult Social Care,Internal Repairs and Maintenance for buildings,12.01.2017,1905430980,500.00,ATA UL R L Chaudry
Manchester City Council,Adult Social Care,Payments for services,12.01.2017,5100897615,"62,748.58",ABL Health Ltd
Manchester City Council,Adult Social Care,Payments for services,12.01.2017,5100897612,"27,500.00",ABL Health Ltd
Manchester City Council,Adult Social Care,Personal needs of client,12.01.2017,1905409118,"3,147.04",Barnardos Manchester Leaving Care S
Manchester City Council,Adult Social Care,Personal needs of client,12.01.2017,1905401175,"1,694.56",Barnardos Manchester Leaving Care S
Manchester City Council,Adult Social Care,Personal needs of client,12.01.2017,1905425884,726.24,Barnardos Manchester Leaving Care S
Manchester City Council,Adult Social Care,Personal Needs of Residents - Other Amenities,12.01.2017,1905409118,"9,232.45",Barnardos Manchester Leaving Care S
Manchester City Council,Adult Social Care,Personal Needs of Residents - Other Amenities,12.01.2017,1905422014,"6,049.95",Barnardos Manchester Leaving Care S
Manchester City Council,Adult Social Care,Personal Needs of Residents - Other Amenities,12.01.2017,1905380000,"4,678.73",Barnardos Manchester Leaving Care S
Manchester City Council,Adult Social Care,Personal Needs of Residents - Other Amenities,12.01.2017,1905401175,"4,561.30",Barnardos Manchester Leaving Care S
Manchester City Council,Adult Social Care,Personal Needs of Residents - Other Amenities,12.01.2017,1905387685,"3,937.59",Barnardos Manchester Leaving Care S
Manchester City Council,Adult Social Care,Personal Needs of Residents - Other Amenities,12.01.2017,1905425884,"3,018.80",Barnardos Manchester Leaving Care S
Manchester City Council,Adult Social Care,Professional fees,12.01.2017,1905383673,707.70,Redacted Personal Information
Manchester City Council,Adult Social Care,Rents,12.01.2017,5100898096,"27,017.49",M & Q Properties Management Ltd
Manchester City Council,Adult Social Care,Rents,12.01.2017,1905409118,"2,493.50",Barnardos Manchester Leaving Care S
Manchester City Council,Adult Social Care,Supporting People Payments,12.01.2017,5100897998,"11,407.94",DISC Ltd
Manchester City Council,Adult Social Care,Supporting People Payments,12.01.2017,5100897967,"6,259.80",Saheli
Manchester City Council,Adult Social Care,Supporting People Payments,12.01.2017,5100897995,"3,200.33",DISC Ltd
Manchester City Council,Adult Social Care,Third party payments to other Local Authorities,12.01.2017,5100897489,"14,103.25",Rochdale Mbc
Manchester City Council,Adult Social Care,Training and Development,12.01.2017,1905409118,"15,456.00",Barnardos Manchester Leaving Care S
Manchester City Council,Adult Social Care,Training and Development,12.01.2017,1905387685,"13,936.40",Barnardos Manchester Leaving Care S
Manchester City Council,Adult Social Care,Training and Development,12.01.2017,1905380000,"8,226.00",Barnardos Manchester Leaving Care S
Manchester City Council,Adult Social Care,Training and Development,12.01.2017,1905401175,"5,948.40",Barnardos Manchester Leaving Care S
Manchester City Council,Adult Social Care,Training and Development,12.01.2017,1905422014,"4,580.40",Barnardos Manchester Leaving Care S
Manchester City Council,Adult Social Care,Training and Development,12.01.2017,1905425884,"1,135.20",Barnardos Manchester Leaving Care S
Manchester City Council,Adult Social Care,Transport Coach Hire,12.01.2017,5100898081,"14,167.22",MCR Blackcab Ltd
Manchester City Council,Adult Social Care,Transport Coach Hire,12.01.2017,5100898083,"13,126.90",MCR Blackcab Ltd
Manchester City Council,Adult Social Care,Transport Coach Hire,12.01.2017,5100898073,"10,330.10",MCR Blackcab Ltd
Manchester City Council,Adult Social Care,Transport Coach Hire,12.01.2017,5100898078,"9,241.21",MCR Blackcab Ltd
Manchester City Council,Adult Social Care,Transport Coach Hire,12.01.2017,5100898077,"5,859.42",MCR Blackcab Ltd
Manchester City Council,Adult Social Care,Transport Coach Hire,12.01.2017,5100898076,"2,867.61",MCR Blackcab Ltd
Manchester City Council,Adult Social Care,Transport Coach Hire,12.01.2017,5100898067,"2,455.93",MCR Blackcab Ltd
Manchester City Council,Adult Social Care,Transport Coach Hire,12.01.2017,5100898060,"2,349.64",MCR Blackcab Ltd
Manchester City Council,Adult Social Care,Transport Coach Hire,12.01.2017,5100898079,"1,640.32",MCR Blackcab Ltd
Manchester City Council,Adult Social Care,Transport Coach Hire,12.01.2017,5100898069,"1,192.96",MCR Blackcab Ltd
Manchester City Council,Adult Social Care,Water Service Charges - Metered,12.01.2017,1905432259,619.96,United Utilities Water Plc
Manchester City Council,Corporate Services,Capital Receipts,12.01.2017,1700068032,"-32,184.46",Rochdale Mbc
Manchester City Council,Corporate Services,Electricity,12.01.2017,1905432229,"3,189.25",Npower
Manchester City Council,Corporate Services,Electricity,12.01.2017,1905432221,"1,049.80",Scottish & Southern Energy Plc
Manchester City Council,Corporate Services,Electricity,12.01.2017,1905432225,"1,049.80",Scottish & Southern Energy Plc
Manchester City Council,Corporate Services,Electricity,12.01.2017,1905432226,"1,038.86",Scottish & Southern Energy Plc
Manchester City Council,Corporate Services,Fees,12.01.2017,1905425878,"26,500.69",Equita Ltd
Manchester City Council,Corporate Services,Fees,12.01.2017,1905425020,"17,444.66",Equita Ltd
Manchester City Council,Corporate Services,Fees,12.01.2017,1905425873,"15,473.89",Equita Ltd
Manchester City Council,Corporate Services,Fees,12.01.2017,1905425871,"14,770.28",Equita Ltd
Manchester City Council,Corporate Services,Fees,12.01.2017,1905425021,"6,967.42",Equita Ltd
Manchester City Council,Corporate Services,Fees,12.01.2017,1905425019,"4,197.08",Equita Ltd
Manchester City Council,Corporate Services,Fees,12.01.2017,1905425019,"-4,197.08",Equita Ltd
Manchester City Council,Corporate Services,Fees,12.01.2017,1905425021,"-6,967.42",Equita Ltd
Manchester City Council,Corporate Services,Fees,12.01.2017,1905425871,"-14,770.28",Equita Ltd
Manchester City Council,Corporate Services,Fees,12.01.2017,1905425873,"-15,473.89",Equita Ltd
Manchester City Council,Corporate Services,Fees,12.01.2017,1905425020,"-17,444.66",Equita Ltd
Manchester City Council,Corporate Services,Fees,12.01.2017,1905425878,"-26,500.69",Equita Ltd
Manchester City Council,Corporate Services,Works and associated costs for Land and Buildings,12.01.2017,5100898091,"11,772.00",Pierre Angulaire Limited
Manchester City Council,Corporate Services,Works and associated costs for Land and Buildings,12.01.2017,5100898092,"11,068.00",Pierre Angulaire Limited
Manchester City Council,Housing Revenue Account,Gas,12.01.2017,1905432342,651.60,Scottish & Southern Energy Plc
Manchester City Council,Housing Revenue Account,Gas,12.01.2017,1905432314,571.04,Scottish & Southern Energy Plc
Manchester City Council,Housing Revenue Account,Gas,12.01.2017,1905432329,509.41,Scottish & Southern Energy Plc
Manchester City Council,Housing Revenue Account,Professional fees,12.01.2017,5100898055,"6,260.00",Roger Hannah & Co
Manchester City Council,Chief Executives,Agency staff provision,12.01.2017,5100898103,"5,487.58",Semester Recruitment Ltd
Manchester City Council,Chief Executives,Agency staff provision,12.01.2017,5100898172,"3,244.67",Resolve Personnel Ltd
Manchester City Council,Chief Executives,Agency staff provision,12.01.2017,5100898138,762.15,Bs Project Services Ltd T/A
Manchester City Council,Chief Executives,Grant and subscriptions awarded,12.01.2017,5100898150,"17,906.00",Millenium Quarter Trust Admin Acct
Manchester City Council,Chief Executives,Hire of Premises,12.01.2017,5100898110,525.00,Manchester Central
Manchester City Council,Chief Executives,Postage,12.01.2017,5100898125,"1,400.00",Royal Mail Group Plc
Manchester City Council,Regeneration Finance,Electricity,12.01.2017,1905432249,"16,257.27",Npower
Manchester City Council,Regeneration Finance,Electricity,12.01.2017,1905432248,"15,833.22",Npower
Manchester City Council,Regeneration Finance,Electricity,12.01.2017,1905432231,"14,498.45",Npower
Manchester City Council,Regeneration Finance,Electricity,12.01.2017,1905432237,"13,061.35",Npower
Manchester City Council,Regeneration Finance,Electricity,12.01.2017,1905432227,"12,457.40",Npower
Manchester City Council,Regeneration Finance,Electricity,12.01.2017,1905432228,"11,318.95",Npower
Manchester City Council,Regeneration Finance,Electricity,12.01.2017,1905432232,"10,778.87",Npower
Manchester City Council,Regeneration Finance,Electricity,12.01.2017,1905432243,"6,609.83",Npower
Manchester City Council,Regeneration Finance,Electricity,12.01.2017,1905432230,"5,867.62",Npower
Manchester City Council,Regeneration Finance,Electricity,12.01.2017,1905432251,"5,167.93",Npower
Manchester City Council,Regeneration Finance,Electricity,12.01.2017,1905432234,"4,261.43",Npower
Manchester City Council,Regeneration Finance,Electricity,12.01.2017,1905432254,"3,561.69",Npower
Manchester City Council,Regeneration Finance,Electricity,12.01.2017,1905432233,"2,330.69",Npower
Manchester City Council,Regeneration Finance,Electricity,12.01.2017,1905432252,"2,144.88",Npower
Manchester City Council,Regeneration Finance,Electricity,12.01.2017,1905432241,"1,845.45",Npower
Manchester City Council,Regeneration Finance,Electricity,12.01.2017,1905432235,"1,824.69",Npower
Manchester City Council,Regeneration Finance,Electricity,12.01.2017,1905432256,"1,354.85",E-On
Manchester City Council,Regeneration Finance,Electricity,12.01.2017,1905432247,"1,343.86",Npower
Manchester City Council,Regeneration Finance,Electricity,12.01.2017,1905432250,"1,262.31",Npower
Manchester City Council,Regeneration Finance,Electricity,12.01.2017,1905432224,"1,049.80",Scottish & Southern Energy Plc
Manchester City Council,Regeneration Finance,Electricity,12.01.2017,1905432223,"1,038.86",Scottish & Southern Energy Plc
Manchester City Council,Regeneration Finance,Electricity,12.01.2017,1905432258,646.98,British Gas Plc
Manchester City Council,Regeneration Finance,Electricity,12.01.2017,1905432222,562.53,Scottish & Southern Energy Plc
Manchester City Council,Regeneration Finance,Gas,12.01.2017,1905432261,"1,155.98",Total Gas & Power
Manchester City Council,Regeneration Finance,I T Provision,12.01.2017,5100898135,"4,500.00",Concerto Support Services
Manchester City Council,Regeneration Finance,Security,12.01.2017,5100898119,"367,765.18",Group 4 Total Security Ltd T/A G4S
Manchester City Council,Regeneration Finance,Security,12.01.2017,5100898121,"34,903.21",Group 4 Total Security Ltd T/A G4S
Manchester City Council,Highways Services,Building Materials for direct delivery,12.01.2017,5100898105,"9,584.31",Marshalls Mono Ltd
Manchester City Council,Highways Services,Electricity,12.01.2017,1905432242,782.06,Npower
Manchester City Council,Highways Services,Payments to Sub-Contractors,12.01.2017,5100897736,"2,207.00",Utilities Design & Planning Ltd
Manchester City Council,GMIST (Greater Mcr Integrated),Agency staff provision,12.01.2017,5100898039,"19,278.89",Commission for the New Economy
Manchester City Council,Manchester Leisure,Building Materials for direct delivery,13.01.2017,5100896960,"1,180.35",Fleet (Line Markers) Ltd
Manchester City Council,Manchester Leisure,Building Materials for direct delivery,13.01.2017,5100896961,"1,180.35",Fleet (Line Markers) Ltd
Manchester City Council,Manchester Leisure,Building Materials for direct delivery,13.01.2017,5100896964,"1,180.35",Fleet (Line Markers) Ltd
Manchester City Council,Manchester Leisure,Catering,13.01.2017,5100898377,561.50,Manchester Central
Manchester City Council,Manchester Leisure,Equipment,13.01.2017,1905432852,"2,348.92",Redacted Personal Information
Manchester City Council,Manchester Leisure,Goods purchased for resale in Council outlets,13.01.2017,1905430973,517.20,Kikkerland Europe BV
Manchester City Council,Manchester Leisure,Labour Charges,13.01.2017,5100898155,"13,582.79",Trafford M B C
Manchester City Council,Manchester Leisure,Professional fees,13.01.2017,5100898350,"20,100.00",Belle Vue Manchester
Manchester City Council,Manchester Leisure,Professional fees,13.01.2017,5100898148,"6,833.62",Biffa Municipal Limited
Manchester City Council,Manchester Leisure,Refuse Collection,13.01.2017,5100898131,"57,932.66",Biffa Municipal Limited
Manchester City Council,Manchester Leisure,Refuse Collection,13.01.2017,5100898142,"37,500.00",Biffa Municipal Limited
Manchester City Council,Manchester Leisure,Refuse Collection,13.01.2017,5100898144,"18,750.00",Biffa Municipal Limited
Manchester City Council,Manchester Leisure,Refuse Collection,13.01.2017,5100898140,833.33,Biffa Municipal Limited
Manchester City Council,Manchester Leisure,Special Events,13.01.2017,5100897721,"4,850.00",Skyline Ltd
Manchester City Council,Manchester Leisure,Special Events,13.01.2017,5100898093,"1,540.00",DY Lighting Ltd
Manchester City Council,Manchester Leisure,Special Events,13.01.2017,5100897973,"1,112.00",Showmed
Manchester City Council,Manchester Leisure,Variation Orders,13.01.2017,5100898146,"3,000.00",Biffa Municipal Limited
Manchester City Council,Libraries and Theatres,Vehicle Plant Furniture and Equipment,13.01.2017,5100898300,595.00,Opening The Book Furniture Ltd
Manchester City Council,Hospitality + Trading Services,Catering Provisions,13.01.2017,1905432681,902.04,Brake Bros Foodservice Ltd
Manchester City Council,Hospitality + Trading Services,Catering Provisions,13.01.2017,1905432673,884.76,Brake Bros Foodservice Ltd
Manchester City Council,Hospitality + Trading Services,Catering Provisions,13.01.2017,1905432665,672.96,Brake Bros Foodservice Ltd
Manchester City Council,Hospitality + Trading Services,Catering Provisions,13.01.2017,1905432693,616.57,Brake Bros Foodservice Ltd
Manchester City Council,Hospitality + Trading Services,Catering Provisions,13.01.2017,1905432651,592.34,Brake Bros Foodservice Ltd
Manchester City Council,Hospitality + Trading Services,Catering Provisions,13.01.2017,1905432678,528.35,Brake Bros Foodservice Ltd
Manchester City Council,Hospitality + Trading Services,Catering Provisions,13.01.2017,1905432668,506.97,Brake Bros Foodservice Ltd
Manchester City Council,Hospitality + Trading Services,Equipment,13.01.2017,5100898293,"5,428.60",John F Hunt Power Services
Manchester City Council,Hospitality + Trading Services,Equipment,13.01.2017,5100898292,"3,094.40",John F Hunt Power Services
Manchester City Council,Hospitality + Trading Services,Equipment,13.01.2017,5100898289,"2,288.20",John F Hunt Power Services
Manchester City Council,Hospitality + Trading Services,Equipment,13.01.2017,5100898287,"2,085.40",John F Hunt Power Services
Manchester City Council,Hospitality + Trading Services,Equipment,13.01.2017,5100898290,"2,068.40",John F Hunt Power Services
Manchester City Council,Hospitality + Trading Services,Equipment,13.01.2017,5100898288,"2,010.00",John F Hunt Power Services
Manchester City Council,Hospitality + Trading Services,Equipment,13.01.2017,5100898291,"1,810.80",John F Hunt Power Services
Manchester City Council,Hospitality + Trading Services,External repairs and maintenance for buildings,13.01.2017,5100898219,"2,556.87",Manchester Working Ltd
Manchester City Council,Hospitality + Trading Services,Hire of Machinery,13.01.2017,5100898337,880.00,Kensite Services Ltd
Manchester City Council,Hospitality + Trading Services,Hire of Machinery,13.01.2017,5100898334,711.70,Kensite Services Ltd
Manchester City Council,Hospitality + Trading Services,Hire of Machinery,13.01.2017,5100898338,704.00,Kensite Services Ltd
Manchester City Council,Hospitality + Trading Services,Hire of Machinery,13.01.2017,5100898333,550.00,Kensite Services Ltd
Manchester City Council,Hospitality + Trading Services,Professional fees,13.01.2017,5100898341,"3,197.50",Kensite Services Ltd
Manchester City Council,Hospitality + Trading Services,Vehicle Hire Costs,13.01.2017,5100897505,"2,720.82",Dawson Rentals Sweepers
Manchester City Council,Hospitality + Trading Services,Legal Fees,13.01.2017,5100898213,500.00,Redacted Personal Information
Manchester City Council,Environment and Operations,Construction Works,13.01.2017,5100897753,"22,253.15",CityFibre Limited
Manchester City Council,Environment and Operations,Construction Works,13.01.2017,5100898188,807.54,Excalon Limited
Manchester City Council,Adult Social Care,Bed and Breakfast Accommodation Expenditure,13.01.2017,5100897997,"5,610.00",Redacted Personal Information
Manchester City Council,Adult Social Care,Building Materials for direct delivery,13.01.2017,5100897416,"1,120.00",Illingworth Ingham (M/cR)
Manchester City Council,Adult Social Care,Building Materials for direct delivery,13.01.2017,5100898204,638.16,UPS Building & Maintenance Ltd
Manchester City Council,Adult Social Care,Contract Cleaning External,13.01.2017,5100898203,"1,399.36",The Manchester College
Manchester City Council,Adult Social Care,Equipment,13.01.2017,5100898278,"3,747.00",Tunstall Healthcare (UK) Ltd
Manchester City Council,Adult Social Care,Equipment,13.01.2017,5100898277,"1,500.00",Tunstall Healthcare (UK) Ltd
Manchester City Council,Adult Social Care,Furniture,13.01.2017,5100898323,645.60,Brighter Beginnings (Cheetham)
Manchester City Council,Adult Social Care,I T Provision,13.01.2017,5100897649,"1,353.68",Computacenter (UK) Ltd
Manchester City Council,Adult Social Care,Payments for services,13.01.2017,5100898198,"29,643.55",United Response
Manchester City Council,Adult Social Care,Payments for services,13.01.2017,5100898196,"10,035.00",Cais Ltd
Manchester City Council,Adult Social Care,Payments for services,13.01.2017,5100898205,"3,898.00",United Response
Manchester City Council,Adult Social Care,Payments for services,13.01.2017,5100897567,"2,514.12",Jump Space Ltd
Manchester City Council,Adult Social Care,Payments for services,13.01.2017,5100898201,592.00,Eam Home Care Ltd
Manchester City Council,Adult Social Care,Personal needs of client,13.01.2017,5100898423,"1,193.00",Drive Devilbiss Healthcare Ltd
Manchester City Council,Adult Social Care,Professional fees,13.01.2017,5100897787,"3,410.00",One Education Ltd
Manchester City Council,Adult Social Care,Professional fees,13.01.2017,1905432558,"1,413.10",Advanced Child Care Assessments
Manchester City Council,Adult Social Care,Third party payments relating to Voluntary Organisations,13.01.2017,5100898234,"42,954.00",Gaddum Centre
Manchester City Council,Adult Social Care,Third party payments relating to Voluntary Organisations,13.01.2017,5100898245,"4,275.00",Caritas Diocese of Salford
Manchester City Council,Adult Social Care,Third party payments relating to Voluntary Organisations,13.01.2017,5100897617,"2,523.16",St Lukes Art Project
Manchester City Council,Adult Social Care,Third party payments to other Local Authorities,13.01.2017,5100898194,"3,216.50",Denton West End Primary School
Manchester City Council,Adult Social Care,Training and Development,13.01.2017,5100898404,675.00,Salford Professional Development
Manchester City Council,Adult Social Care,Transport Coach Hire,13.01.2017,5100897794,"57,915.50",Westfield Minibuses
Manchester City Council,Adult Social Care,Transport Coach Hire,13.01.2017,5100898209,"1,440.00",G.M Travel
Manchester City Council,Corporate Services,CRB Fees,13.01.2017,5100898058,883.50,United Medicare Ltd
Manchester City Council,Corporate Services,Fees,13.01.2017,1905425960,"39,624.37",Marston Group Limited
Manchester City Council,Corporate Services,Fees,13.01.2017,1905425965,"36,150.73",Marston Group Limited
Manchester City Council,Corporate Services,Fees,13.01.2017,1905425955,"32,854.08",Marston Group Limited
Manchester City Council,Corporate Services,Fees,13.01.2017,1905425956,"28,851.68",Marston Group Limited
Manchester City Council,Corporate Services,Fees,13.01.2017,1905425956,"-28,851.68",Marston Group Limited
Manchester City Council,Corporate Services,Fees,13.01.2017,1905425955,"-32,854.08",Marston Group Limited
Manchester City Council,Corporate Services,Fees,13.01.2017,1905425965,"-36,150.73",Marston Group Limited
Manchester City Council,Corporate Services,Fees,13.01.2017,1905425960,"-39,624.37",Marston Group Limited
Manchester City Council,Housing Revenue Account,Council Dwelling Fees,13.01.2017,5100897377,"4,770.00",Northwards Housing Limited
Manchester City Council,Housing Revenue Account,Council Dwelling Fees,13.01.2017,5100897379,"3,520.52",Northwards Housing Limited
Manchester City Council,Chief Executives,Advertising,13.01.2017,5100898190,"6,000.00",Clicky Media Ltd
Manchester City Council,Chief Executives,Advertising,13.01.2017,5100898193,"4,000.00",Clicky Media Ltd
Manchester City Council,Chief Executives,Advertising,13.01.2017,5100897948,"1,000.00",Centaur Communications Limited
Manchester City Council,Chief Executives,Advertising,13.01.2017,5100898200,643.03,The Skinny
Manchester City Council,Chief Executives,Agency staff provision,13.01.2017,5100896958,"22,150.19",Capita  Resourcing Ltd
Manchester City Council,Chief Executives,Agency staff provision,13.01.2017,5100896966,"13,990.37",Gian Healthcare Ltd
Manchester City Council,Chief Executives,Agency staff provision,13.01.2017,5100896963,"4,719.95",Medicare First
Manchester City Council,Chief Executives,Agency staff provision,13.01.2017,5100898405,580.65,Randstad Care
Manchester City Council,Chief Executives,Catering,13.01.2017,5100898371,"15,811.19",Manchester Central
Manchester City Council,Chief Executives,Electricity,13.01.2017,5100897719,"1,177.83",Principal Agent Management Ltd
Manchester City Council,Chief Executives,Examination Fees,13.01.2017,5100898243,"1,257.50",ROAR Forensics Ltd
Manchester City Council,Chief Executives,Examination Fees,13.01.2017,5100898230,"1,015.00",University Hospital of South Mcr
Manchester City Council,Chief Executives,Examination Fees,13.01.2017,5100898240,990.00,ROAR Forensics Ltd
Manchester City Council,Chief Executives,Examination Fees,13.01.2017,5100898244,990.00,ROAR Forensics Ltd
Manchester City Council,Chief Executives,Funeral and coroner related services,13.01.2017,5100898312,"2,696.90",Redacted Personal Information
Manchester City Council,Chief Executives,Funeral and coroner related services,13.01.2017,5100898229,"1,816.00",University Hospital of South Mcr
Manchester City Council,Chief Executives,Funeral and coroner related services,13.01.2017,5100898271,"1,237.50",Middleton Funeralcare
Manchester City Council,Chief Executives,Funeral and coroner related services,13.01.2017,5100898311,"1,121.10",Redacted Personal Information
Manchester City Council,Chief Executives,Funeral and coroner related services,13.01.2017,5100898260,841.50,Middleton Funeralcare
Manchester City Council,Chief Executives,Funeral and coroner related services,13.01.2017,5100898269,693.00,Middleton Funeralcare
Manchester City Council,Chief Executives,Funeral and coroner related services,13.01.2017,5100898267,643.50,Middleton Funeralcare
Manchester City Council,Chief Executives,Grant Payments,13.01.2017,5100898422,"5,000.00",Manchester Camerata
Manchester City Council,Chief Executives,Postage,13.01.2017,5100898145,"27,514.07",Royal Mail Group Plc
Manchester City Council,Chief Executives,Professional fees,13.01.2017,5100896906,"7,000.00",Manchester Metropolitan University
Manchester City Council,Chief Executives,Professional fees,13.01.2017,5100897836,625.00,Manchester Bike Hire
Manchester City Council,Chief Executives,Professional fees,13.01.2017,5100898152,"-7,000.00",Manchester Metropolitan University
Manchester City Council,Chief Executives,Vehicle Plant Furniture and Equipment,13.01.2017,5100897522,865.08,FTS Facilities
Manchester City Council,Regeneration Finance,Car Parking Permits,13.01.2017,5100898180,"1,172.10",National Car Parks Ltd Season Ticke
Manchester City Council,Highways Services,Hire of Machinery,13.01.2017,5100897955,"1,777.54",A T G Access Ltd
Manchester City Council,Highways Services,Machinery and equipment repairs,13.01.2017,5100897389,550.00,Mouchel Limited
Manchester City Council,Highways Services,Payments to Contractors,13.01.2017,5100898327,"1,833.33",NSL Ltd
Manchester City Council,Highways Services,Payments to Contractors,13.01.2017,5100898325,"-1,833.33",NSL Ltd
Manchester City Council,Highways Services,Professional fees,13.01.2017,5100897210,"7,206.30",Turner & Townsend Project
Manchester City Council,Highways Services,Professional fees,13.01.2017,5100898236,"3,855.60",Turner & Townsend Project
Manchester City Council,Highways Services,Professional fees,13.01.2017,5100898235,"-4,626.72",Turner & Townsend Project
Manchester City Council,Highways Services,Purchase of stores for re-distribution,13.01.2017,5100898544,"1,690.00",E & E Workwear
Manchester City Council,Highways Services,Legal Fees,13.01.2017,5100898318,710.00,Redacted Personal Information
Manchester City Council,Highways Services,Compensation Payments,13.01.2017,1905432578,615.00,Department For Work & Pensions
Manchester City Council,Highways Services,Compensation Payments,13.01.2017,1905432608,"5,000.00",Amanda Cunliffee Solicitors
Manchester City Council,GMIST (Greater Mcr Integrated),Catering,13.01.2017,5100898374,521.25,Manchester Central
Manchester City Council,Manchester Leisure,Agency staff provision,16.01.2017,5100898160,"12,000.00",Leeds City Council
Manchester City Council,Manchester Leisure,Agency staff provision,16.01.2017,5100898569,"3,015.00",Redacted Personal Information
Manchester City Council,Manchester Leisure,Contract Cleaning External,16.01.2017,5100898567,"1,663.60",Clearview Event Services Limited
Manchester City Council,Manchester Leisure,Contract Cleaning External,16.01.2017,5100898568,"1,629.70",Clearview Event Services Limited
Manchester City Council,Manchester Leisure,Contract Cleaning External,16.01.2017,5100898566,"1,309.90",Clearview Event Services Limited
Manchester City Council,Manchester Leisure,Contract Cleaning External,16.01.2017,5100898565,"1,109.70",Clearview Event Services Limited
Manchester City Council,Manchester Leisure,Equipment,16.01.2017,1905435745,"3,283.50",VOUCHER EXPRESS B2B MO
Manchester City Council,Manchester Leisure,Equipment,16.01.2017,5100898063,"1,869.00",Groundwork Landscapes Ltd
Manchester City Council,Manchester Leisure,Equipment,16.01.2017,5100898061,"1,150.00",Groundwork Landscapes Ltd
Manchester City Council,Manchester Leisure,Grant and subscriptions awarded,16.01.2017,5100898558,"24,750.00",The White Room Consultancy Ltd
Manchester City Council,Manchester Leisure,Grant and subscriptions awarded,16.01.2017,5100898449,500.00,Withington Civic Society
Manchester City Council,Manchester Leisure,Grant Payments,16.01.2017,1905432695,"1,666.17",Community Forest Trust
Manchester City Council,Manchester Leisure,Grant Payments,16.01.2017,1905432695,"1,666.15",Community Forest Trust
Manchester City Council,Manchester Leisure,Grounds Maintenance Costs,16.01.2017,5100898062,"1,235.00",Groundwork Landscapes Ltd
Manchester City Council,Manchester Leisure,I T Provision,16.01.2017,5100896626,900.00,Teamkinetic Ltd
Manchester City Council,Manchester Leisure,Litter Bins - repair/ replacement,16.01.2017,5100898440,"3,140.00",Biffa Municipal Limited
Manchester City Council,Manchester Leisure,Payments to Sub-Contractors,16.01.2017,5100898001,878.80,Biffa Municipal Limited
Manchester City Council,Manchester Leisure,Professional fees,16.01.2017,5100898470,"1,850.00",Arboricultural Services Treework
Manchester City Council,Manchester Leisure,Professional fees,16.01.2017,5100898472,"1,500.00",Arboricultural Services Treework
Manchester City Council,Manchester Leisure,Professional fees,16.01.2017,5100898476,"1,000.00",Arboricultural Services Treework
Manchester City Council,Manchester Leisure,Professional fees,16.01.2017,5100898464,"1,000.00",Arboricultural Services Treework
Manchester City Council,Manchester Leisure,Publications,16.01.2017,5100898624,573.75,Miles Newsagents
Manchester City Council,Manchester Leisure,Special Events,16.01.2017,5100897704,"9,703.00",Event Technical Support
Manchester City Council,Manchester Leisure,Special Events,16.01.2017,5100898159,"2,200.00",Biffa Municipal Limited
Manchester City Council,Manchester Leisure,Special Events,16.01.2017,5100897707,"1,260.00",Event Technical Support
Manchester City Council,Manchester Leisure,Variation Orders,16.01.2017,5100897770,"8,147.25",Biffa Municipal Limited
Manchester City Council,Manchester Leisure,Variation Orders,16.01.2017,5100898547,"4,937.39",Biffa Municipal Limited
Manchester City Council,Manchester Leisure,Variation Orders,16.01.2017,5100898547,"3,059.11",Biffa Municipal Limited
Manchester City Council,Hospitality + Trading Services,Agency staff provision,16.01.2017,5100898510,563.92,Redacted Personal Information
Manchester City Council,Hospitality + Trading Services,Books - Adult Fiction,16.01.2017,1905435750,675.00,WHICH?
Manchester City Council,Hospitality + Trading Services,Contract Cleaning External,16.01.2017,5100898149,"1,200.00",Biffa Municipal Limited
Manchester City Council,Hospitality + Trading Services,Contract Cleaning External,16.01.2017,5100898154,"1,100.00",Biffa Municipal Limited
Manchester City Council,Hospitality + Trading Services,Contract Cleaning External,16.01.2017,5100898153,500.00,Biffa Municipal Limited
Manchester City Council,Hospitality + Trading Services,Electricity,16.01.2017,5100897700,"5,322.45",Event Technical Support
Manchester City Council,Hospitality + Trading Services,Equipment,16.01.2017,5100898509,"1,068.50",Redacted Personal Information
Manchester City Council,Hospitality + Trading Services,Equipment,16.01.2017,1905435758,683.88,WRIGHTS OF LYMM LTD
Manchester City Council,Hospitality + Trading Services,Funeral and coroner related services,16.01.2017,5100898044,"1,535.00",ECE Consultancy
Manchester City Council,Hospitality + Trading Services,Funeral and coroner related services,16.01.2017,5100898043,684.90,ECE Consultancy
Manchester City Council,Hospitality + Trading Services,Professional fees,16.01.2017,5100898344,"9,502.00",Kensite Services Ltd
Manchester City Council,Hospitality + Trading Services,Professional fees,16.01.2017,5100898412,920.00,Knightsbridge Mechanical
Manchester City Council,Hospitality + Trading Services,Professional fees,16.01.2017,5100898345,836.00,Kensite Services Ltd
Manchester City Council,Hospitality + Trading Services,Professional fees,16.01.2017,5100898415,-920.00,Knightsbridge Mechanical
Manchester City Council,Hospitality + Trading Services,Vehicle Fuel Costs,16.01.2017,5100898493,"4,983.42",Carlton Fuels Ltd
Manchester City Council,Hospitality + Trading Services,Vehicle Fuel Costs,16.01.2017,5100898294,"4,768.40",John F Hunt Power Services
Manchester City Council,Hospitality + Trading Services,Vehicle Fuel Costs,16.01.2017,5100898295,"3,983.85",John F Hunt Power Services
Manchester City Council,Hospitality + Trading Services,Vehicle Hire Costs,16.01.2017,5100898773,"13,457.53",Manchester Van Hire Ltd
Manchester City Council,Hospitality + Trading Services,Vehicle Repairs,16.01.2017,5100897992,694.34,Winners Contract Hire Ltd
Manchester City Council,Hospitality + Trading Services,Vehicle Repairs,16.01.2017,5100897878,571.81,Winners Contract Hire Ltd
Manchester City Council,Environment and Operations,Construction Works,16.01.2017,5100898183,"154,779.11",Henry Boot Construction (Uk) Ltd
Manchester City Council,Environment and Operations,Construction Works,16.01.2017,5100897618,"1,622.00",Utilities Design & Planning Ltd
Manchester City Council,Environment and Operations,Construction Works,16.01.2017,5100898082,500.00,Utilities Design & Planning Ltd
Manchester City Council,Adult Social Care,Agency staff provision,16.01.2017,5100898608,"1,006.25",Capita  Resourcing Ltd
Manchester City Council,Adult Social Care,Bed and Breakfast Accommodation Expenditure,16.01.2017,5100898443,"14,804.00",Redacted Personal Information
Manchester City Council,Adult Social Care,Bed and Breakfast Accommodation Expenditure,16.01.2017,5100898593,"9,530.00",Redacted Personal Information
Manchester City Council,Adult Social Care,Bed and Breakfast Accommodation Expenditure,16.01.2017,5100898445,"7,550.00",Redacted Personal Information
Manchester City Council,Adult Social Care,Bed and Breakfast Accommodation Expenditure,16.01.2017,1905435656,650.00,PREMIER INN 44531690
Manchester City Council,Adult Social Care,Bed and Breakfast Accommodation Expenditure,16.01.2017,1905435662,-650.00,PREMIER INN44531690
Manchester City Council,Adult Social Care,Cleaning Equipment,16.01.2017,5100898529,"4,456.75",JLA Ltd
Manchester City Council,Adult Social Care,Contract Cleaning External,16.01.2017,5100898625,"1,098.00",Superkids Levenshulme Ltd
Manchester City Council,Adult Social Care,Contract Cleaning External,16.01.2017,5100898627,"1,098.00",Superkids Levenshulme Ltd
Manchester City Council,Adult Social Care,Equipment,16.01.2017,5100898451,"1,778.40",Invacare Limited
Manchester City Council,Adult Social Care,Equipment,16.01.2017,5100898428,"1,185.60",Drive Devilbiss Healthcare Ltd
Manchester City Council,Adult Social Care,Equipment,16.01.2017,5100897609,940.00,Sidhil Ltd
Manchester City Council,Adult Social Care,Equipment,16.01.2017,5100898279,534.00,Bentley Fielden Ltd
Manchester City Council,Adult Social Care,Equipment,16.01.2017,5100898705,"-1,283.10",Action on Hearing Loss
Manchester City Council,Adult Social Care,Funeral and coroner related services,16.01.2017,5100898046,"1,183.00",Funeral Prtnrs t/a Michael Kennedy
Manchester City Council,Adult Social Care,Furniture,16.01.2017,5100898596,752.99,Back Care Solutions Ltd
Manchester City Council,Adult Social Care,Grant and subscriptions awarded,16.01.2017,5100898137,"9,108.00",Path Yorkshire
Manchester City Council,Adult Social Care,Grant and subscriptions awarded,16.01.2017,5100898074,"4,554.00",St Vincent's Support Centre
Manchester City Council,Adult Social Care,Payments for services,16.01.2017,5100898585,"45,500.00",Social Care Services (Clayton) Ltd
Manchester City Council,Adult Social Care,Payments for services,16.01.2017,5100898583,"18,976.34",H.G. Care Services Ltd
Manchester City Council,Adult Social Care,Payments for services,16.01.2017,5100898584,"6,447.20",H.G. Care Services Ltd
Manchester City Council,Adult Social Care,Payments for services,16.01.2017,5100898595,"4,422.14",The Together Trust
Manchester City Council,Adult Social Care,Payments for services,16.01.2017,5100897631,"3,284.80",Enhance EHC Ltd
Manchester City Council,Adult Social Care,Payments for services,16.01.2017,5100897635,"2,305.60",Enhance EHC Ltd
Manchester City Council,Adult Social Care,Payments for services,16.01.2017,5100898597,"2,288.00",The Together Trust
Manchester City Council,Adult Social Care,Payments for services,16.01.2017,5100898602,763.22,The Together Trust
Manchester City Council,Adult Social Care,Payments for services,16.01.2017,5100898600,533.12,The Together Trust
Manchester City Council,Adult Social Care,Professional fees,16.01.2017,1905432694,"1,250.00",Redacted Personal Information
Manchester City Council,Adult Social Care,Professional fees,16.01.2017,5100898488,"1,160.00",Berrick Computing Limited
Manchester City Council,Adult Social Care,Professional fees,16.01.2017,1905425949,527.00,Advanced Child Care Assessments
Manchester City Council,Adult Social Care,Rents,16.01.2017,1905432697,"1,034.00",Manchester Letting
Manchester City Council,Adult Social Care,Rents,16.01.2017,1905432782,770.00,Happy Homes Uk Ltd
Manchester City Council,Adult Social Care,Rents,16.01.2017,1905432796,600.00,Redacted Personal Information
Manchester City Council,Adult Social Care,Stationery,16.01.2017,5100898698,634.80,Northgate Public Services (UK) Ltd
Manchester City Council,Adult Social Care,Supporting People Payments,16.01.2017,5100898579,"11,272.16",People First Housing Association
Manchester City Council,Adult Social Care,Supporting People Payments,16.01.2017,5100897543,"4,200.75",Praxis Care Group
Manchester City Council,Adult Social Care,Third party payments relating to Voluntary Organisations,16.01.2017,5100898481,"44,308.08",Lifeline Project Limited
Manchester City Council,Adult Social Care,Third party payments relating to Voluntary Organisations,16.01.2017,5100898605,"15,937.50",Pure Innovations Ltd
Manchester City Council,Adult Social Care,Third party payments relating to Voluntary Organisations,16.01.2017,5100898246,"4,275.00",Caritas Diocese of Salford
Manchester City Council,Adult Social Care,Third party payments relating to Voluntary Organisations,16.01.2017,5100898430,"3,832.00",Greenwich Leisure Limited
Manchester City Council,Adult Social Care,Third party payments relating to Voluntary Organisations,16.01.2017,5100897638,"1,650.00",Barlow Moor Community Association
Manchester City Council,Adult Social Care,Third party payments relating to Voluntary Organisations,16.01.2017,5100897582,"1,500.00",Ladybarn Community Association
Manchester City Council,Adult Social Care,Third party payments relating to Voluntary Organisations,16.01.2017,5100898611,"1,460.41",Ladybarn Community Centre
Manchester City Council,Adult Social Care,Third party payments relating to Voluntary Organisations,16.01.2017,5100897643,"1,414.50",Barlow Moor Community Association
Manchester City Council,Adult Social Care,Third party payments relating to Voluntary Organisations,16.01.2017,5100898322,"1,133.75",Royal Oak Community Centre
Manchester City Council,Adult Social Care,Third party payments relating to Voluntary Organisations,16.01.2017,5100897752,600.00,Manchester Black Health Forum
Manchester City Council,Adult Social Care,Third party payments to Health Authority,16.01.2017,5100898299,"18,949.25",Central Manchester University Hosp
Manchester City Council,Adult Social Care,Third party payments to Health Authority,16.01.2017,1905432777,"2,360.20",Chelsea & Westminster Hosp NHSFT
Manchester City Council,Adult Social Care,Third party payments to Health Authority,16.01.2017,1905432775,"1,447.65",Chelsea & Westminster Hosp NHSFT
Manchester City Council,Adult Social Care,Third party payments to Health Authority,16.01.2017,1905432778,"1,447.08",Chelsea & Westminster Hosp NHSFT
Manchester City Council,Adult Social Care,Third party payments to Health Authority,16.01.2017,1905432828,522.00,Sheffield Teaching Hospitals NHS FT
Manchester City Council,Adult Social Care,Third party payments to other Local Authorities,16.01.2017,5100898592,"81,602.63",Bolton Mbc
Manchester City Council,Adult Social Care,Third party payments to other Local Authorities,16.01.2017,5100898590,"68,415.88",Bolton Mbc
Manchester City Council,Adult Social Care,Third party payments to other Local Authorities,16.01.2017,5100898326,"17,143.00",Oldham Borough Council
Manchester City Council,Adult Social Care,Third party payments to other Local Authorities,16.01.2017,5100898588,"9,166.67",Barton Clough Primary School
Manchester City Council,Adult Social Care,Third party payments to other Local Authorities,16.01.2017,5100898672,"3,224.75",Ladywood School
Manchester City Council,Adult Social Care,Third party payments to other Local Authorities,16.01.2017,5100898594,"1,202.75",Cheadle Hulme High School
Manchester City Council,Adult Social Care,Third party payments to other Local Authorities,16.01.2017,5100898598,662.83,Cheadle Hulme High School
Manchester City Council,Adult Social Care,Training and Development,16.01.2017,5100898507,"2,757.00",Ncfe
Manchester City Council,Adult Social Care,Training and Development,16.01.2017,5100861482,"2,148.75",Edexcel
Manchester City Council,Adult Social Care,Training and Development,16.01.2017,5100898503,550.00,Council For Awards In Children'S Ca
Manchester City Council,Adult Social Care,Travel,16.01.2017,5100896791,"2,720.00",Transport for Greater Manchester
Manchester City Council,Adult Social Care,Travel,16.01.2017,5100896976,680.00,Transport for Greater Manchester
Manchester City Council,Adult Social Care,Travel,16.01.2017,5100898448,-680.00,Transport for Greater Manchester
Manchester City Council,Corporate Services,CRB Fees,16.01.2017,5100898609,"17,602.00",Disclosure & Barring Service
Manchester City Council,Corporate Services,Grant and subscriptions awarded,16.01.2017,5100898487,"1,095.00",I.R.R.V. Services Ltd
Manchester City Council,Corporate Services,Postage,16.01.2017,5100898270,"1,835.65",Royal Mail Group Plc
Manchester City Council,Corporate Services,Professional fees,16.01.2017,5100898331,"15,000.00",CLES
Manchester City Council,Corporate Services,Tracing fees,16.01.2017,5100898261,"1,948.50",Experian Limited
Manchester City Council,Corporate Services,Tracing fees,16.01.2017,5100898266,"1,906.50",Experian Limited
Manchester City Council,Corporate Services,Works and associated costs for Land and Buildings,16.01.2017,5100898679,"9,000.00",Five Plus Architects Limited
Manchester City Council,Corporate Services,Works and associated costs for Land and Buildings,16.01.2017,5100898681,"9,000.00",Five Plus Architects Limited
Manchester City Council,Corporate Services,Works and associated costs for Land and Buildings,16.01.2017,5100898218,688.16,Manchester Working Ltd
Manchester City Council,Corporate Services,Legal Fees,16.01.2017,5100898450,"13,402.00",Ward Hadaway Solicitors
Manchester City Council,Housing General Fund,Building Works,16.01.2017,1905435349,"30,499.24",UPS Building & Maintenance Ltd
Manchester City Council,Housing General Fund,Building Works,16.01.2017,1905435358,"10,697.00",Pollock Lifts Ltd
Manchester City Council,Housing General Fund,Building Works,16.01.2017,1905435372,"9,468.31",Pollock Lifts Ltd
Manchester City Council,Housing General Fund,Building Works,16.01.2017,1905435339,"8,426.94",UPS Building & Maintenance Ltd
Manchester City Council,Housing General Fund,Building Works,16.01.2017,1905435315,"7,856.60",UPS Building & Maintenance Ltd
Manchester City Council,Housing General Fund,Building Works,16.01.2017,1905435354,"5,353.00",Stannah Lift Services Ltd
Manchester City Council,Housing General Fund,Building Works,16.01.2017,1905435322,"5,262.70",UPS Building & Maintenance Ltd
Manchester City Council,Housing General Fund,Building Works,16.01.2017,1905435356,"5,072.00",Stannah Lift Services Ltd
Manchester City Council,Housing General Fund,Building Works,16.01.2017,1905435341,"5,000.38",UPS Building & Maintenance Ltd
Manchester City Council,Housing General Fund,Building Works,16.01.2017,1905435344,"4,876.53",UPS Building & Maintenance Ltd
Manchester City Council,Housing General Fund,Building Works,16.01.2017,1905435291,"4,516.00",Thyssenkrupp Encasa
Manchester City Council,Housing General Fund,Building Works,16.01.2017,1905435343,"4,442.14",UPS Building & Maintenance Ltd
Manchester City Council,Housing General Fund,Building Works,16.01.2017,1905435334,"4,389.84",Stannah Lift Services Ltd
Manchester City Council,Housing General Fund,Building Works,16.01.2017,1905435336,"4,178.04",UPS Building & Maintenance Ltd
Manchester City Council,Housing General Fund,Building Works,16.01.2017,1905435295,"3,836.06",Kier Services Ltd - Maint West
Manchester City Council,Housing General Fund,Building Works,16.01.2017,1905435306,"3,756.09",UPS Building & Maintenance Ltd
Manchester City Council,Housing General Fund,Building Works,16.01.2017,1905435326,"1,985.00",Hoist & Shower Chair Company
Manchester City Council,Housing General Fund,Building Works,16.01.2017,1905435352,"1,580.00",UPS Building & Maintenance Ltd
Manchester City Council,Housing General Fund,Building Works,16.01.2017,1905435301,"1,450.00",Kier Services Ltd - Maint West
Manchester City Council,Housing General Fund,Works and associated costs for Land and Buildings,16.01.2017,5100897850,"23,992.02",Keepmoat Regeneration Ltd
Manchester City Council,Housing Revenue Account,Council Dwelling Adaptations,16.01.2017,5100898427,"9,726.71",Pollock Lifts Ltd
Manchester City Council,Housing Revenue Account,Council Dwelling Adaptations,16.01.2017,5100898717,"1,462.21",SIG Roofing Supplies
Manchester City Council,Housing Revenue Account,Council Dwelling Adaptations,16.01.2017,5100898719,926.15,SIG Roofing Supplies
Manchester City Council,Housing Revenue Account,Compensation Payments,16.01.2017,1905432628,627.00,Department For Work & Pensions
Manchester City Council,Chief Executives,Agency staff provision,16.01.2017,5100898608,"27,645.00",Capita  Resourcing Ltd
Manchester City Council,Chief Executives,Agency staff provision,16.01.2017,5100897361,"27,490.36",Barker Ross Health & Social Care
Manchester City Council,Chief Executives,Agency staff provision,16.01.2017,5100897287,"17,690.85",P S Recruitment Specialists Ltd
Manchester City Council,Chief Executives,Agency staff provision,16.01.2017,5100898100,"17,682.00",Laudale Associates Limited
Manchester City Council,Chief Executives,Agency staff provision,16.01.2017,5100897295,"13,472.84",Protocol Education Ltd
Manchester City Council,Chief Executives,Agency staff provision,16.01.2017,5100898546,"13,340.00",Laudale Associates Limited
Manchester City Council,Chief Executives,Agency staff provision,16.01.2017,5100897299,"7,258.64",Morgan Hunt Public Sector Ltd
Manchester City Council,Chief Executives,Agency staff provision,16.01.2017,5100897298,"6,736.68",Deekay Technical Recruitment Ltd
Manchester City Council,Chief Executives,Agency staff provision,16.01.2017,5100898542,"4,513.13",Resolve Personnel Ltd
Manchester City Council,Chief Executives,Agency staff provision,16.01.2017,5100898711,"3,212.91",Network Ventures Ltd T/A Topcare
Manchester City Council,Chief Executives,Agency staff provision,16.01.2017,5100898187,"1,147.05",Spring Technology Staffing Services
Manchester City Council,Chief Executives,Data Links,16.01.2017,1905425962,"146,969.96",BT PLC
Manchester City Council,Chief Executives,Data Links,16.01.2017,1905425961,"25,341.02",BT PLC
Manchester City Council,Chief Executives,Examination Fees,16.01.2017,5100898241,905.00,ROAR Forensics Ltd
Manchester City Council,Chief Executives,Funeral and coroner related services,16.01.2017,1905432784,"2,493.75",Greenwood Medico Legal
Manchester City Council,Chief Executives,Funeral and coroner related services,16.01.2017,1905432787,875.00,Stephen Saltissi Medical
Manchester City Council,Chief Executives,Grant Payments,16.01.2017,5100898169,"5,521.00",Manchester Craft and Design Ltd
Manchester City Council,Chief Executives,I T Provision,16.01.2017,5100898521,676.84,Computacenter (UK) Ltd
Manchester City Council,Chief Executives,Landline Telephone Charges,16.01.2017,5100898220,"3,960.00",Digital Exchange Products Ltd
Manchester City Council,Chief Executives,Landline Telephone Charges,16.01.2017,1905417821,"1,397.50",BT PLC
Manchester City Council,Chief Executives,Landline Telephone Charges,16.01.2017,1905409904,976.87,Bt Featurenet Billing
Manchester City Council,Chief Executives,Mobilephone Charges,16.01.2017,1905401173,"21,491.22",EE/T-Mobile
Manchester City Council,Chief Executives,Mobilephone Charges,16.01.2017,1905426103,"20,748.57",EE/T-Mobile
Manchester City Council,Chief Executives,Mobilephone Charges,16.01.2017,1905423062,"2,235.00",EE / Orange
Manchester City Council,Chief Executives,Mobilephone Charges,16.01.2017,1905409921,"1,145.00",EE / Orange
Manchester City Council,Chief Executives,Mobilephone Charges,16.01.2017,1905411274,"1,145.00",EE / Orange
Manchester City Council,Chief Executives,Mobilephone Charges,16.01.2017,1905423063,"1,145.00",EE / Orange
Manchester City Council,Chief Executives,Mobilephone Charges,16.01.2017,1700067990,-500.00,EE / Orange
Manchester City Council,Chief Executives,Mobilephone Charges,16.01.2017,1700067989,-625.00,EE / Orange
Manchester City Council,Chief Executives,Training and Development,16.01.2017,5100897882,899.00,QA Ltd
Manchester City Council,Chief Executives,Vehicle Hire Costs,16.01.2017,5100898332,"1,521.00",CD Chauffeur Hire
Manchester City Council,Chief Executives,Compensation Payments,16.01.2017,1905432861,"2,962.00",Middleton Psychology Ltd
Manchester City Council,Regeneration Finance,Grounds Maintenance Costs,16.01.2017,5100898455,630.00,Countrywide Grounds Maintenance Ltd
Manchester City Council,Regeneration Finance,Payments to Sub-Contractors,16.01.2017,5100897654,"2,195.00",Wilde Consultants Ltd
Manchester City Council,Regeneration Finance,Printing,16.01.2017,5100898431,964.38,VIP-System Ltd
Manchester City Council,Regeneration Finance,Professional fees,16.01.2017,5100898591,"124,274.43",GVA Grimley Ltd
Manchester City Council,Regeneration Finance,Refuse Collection,16.01.2017,5100898467,"1,094.33",Restore Shred Limited
Manchester City Council,Regeneration Finance,Storage Costs,16.01.2017,5100898477,"1,313.08",Data Space Limited
Manchester City Council,Regeneration Finance,Training and Development,16.01.2017,5100898282,990.00,QA Ltd
Manchester City Council,Regeneration Finance,Training and Development,16.01.2017,5100898283,-990.00,QA Ltd
Manchester City Council,Highways Services,Building Materials for direct delivery,16.01.2017,5100898524,"1,058.26",TARMAC
Manchester City Council,Highways Services,Building Materials for direct delivery,16.01.2017,5100898614,900.00,Colas Limited
Manchester City Council,Highways Services,Building Materials for direct delivery,16.01.2017,5100898532,570.72,TARMAC
Manchester City Council,Highways Services,Payments to Sub-Contractors,16.01.2017,5100898006,"26,404.85",Rosgal Ltd
Manchester City Council,Highways Services,Payments to Sub-Contractors,16.01.2017,5100898197,"3,155.04",Rosgal Ltd
Manchester City Council,Highways Services,Payments to Sub-Contractors,16.01.2017,5100897655,"1,210.00",Wilde Consultants Ltd
Manchester City Council,Highways Services,Payments to Sub-Contractors,16.01.2017,5100898064,560.00,Groundwork Landscapes Ltd
Manchester City Council,Highways Services,Professional fees,16.01.2017,5100898545,"9,405.00",Mott Macdonald Uk Limited
Manchester City Council,Highways Services,Professional fees,16.01.2017,5100898687,"7,128.00",AECOM Limited
Manchester City Council,Highways Services,Professional fees,16.01.2017,5100898452,"4,266.00",AECOM Limited
Manchester City Council,Highways Services,Professional fees,16.01.2017,5100898678,"-7,910.00",AECOM Limited
Manchester City Council,GMIST (Greater Mcr Integrated),Printing,16.01.2017,5100898184,"7,499.75",Peoples Voice Media
Manchester City Council,GMIST (Greater Mcr Integrated),Professional fees,16.01.2017,5100898699,"26,250.00",University Of Salford
Manchester City Council,GMIST (Greater Mcr Integrated),Professional fees,16.01.2017,5100898702,"-26,250.00",University Of Salford
Manchester City Council,GMIST (Greater Mcr Integrated),Storage Costs,16.01.2017,5100898728,"2,712.28",DeepStore
Manchester City Council,GMIST (Greater Mcr Integrated),Storage Costs,16.01.2017,5100898725,595.15,DeepStore
Manchester City Council,Manchester Leisure,Building Materials for direct delivery,17.01.2017,5100898462,"12,000.00",Arboricultural Services Treework
Manchester City Council,Manchester Leisure,Contract Cleaning External,17.01.2017,5100898923,"2,082.26",Mitie Cleaning & Environmental
Manchester City Council,Manchester Leisure,I T Provision,17.01.2017,5100898692,"5,000.00",Public Sector Software Ltd
Manchester City Council,Manchester Leisure,I T Provision,17.01.2017,5100898692,"5,000.00",Public Sector Software Ltd
Manchester City Council,Manchester Leisure,Labour Charges,17.01.2017,5100898931,"15,305.36",Rochdale MBC
Manchester City Council,Manchester Leisure,Labour Charges,17.01.2017,5100898929,"7,365.92",Rochdale MBC
Manchester City Council,Manchester Leisure,Payments for services,17.01.2017,5100898877,"1,515.00",Dance and Fitness Agency Ltd
Manchester City Council,Manchester Leisure,Payments for services,17.01.2017,5100898878,"1,275.00",Dance and Fitness Agency Ltd
Manchester City Council,Manchester Leisure,Refuse Collection,17.01.2017,1905436482,"2,518.36",Enterprise Manchester TRADE
Manchester City Council,Manchester Leisure,Testing Fees,17.01.2017,5100898032,"1,060.00",County Scientific Services
Manchester City Council,Manchester Leisure,Transport Coach Hire,17.01.2017,5100898765,"1,130.00",Corporate & Sporting Events
Manchester City Council,Hospitality + Trading Services,Catering Provisions,17.01.2017,1905436272,863.13,Brake Bros Foodservice Ltd
Manchester City Council,Hospitality + Trading Services,Catering Provisions,17.01.2017,1905436251,819.77,Brake Bros Foodservice Ltd
Manchester City Council,Hospitality + Trading Services,Catering Provisions,17.01.2017,1905436195,716.68,Brake Bros Foodservice Ltd
Manchester City Council,Hospitality + Trading Services,Catering Provisions,17.01.2017,1905436320,687.73,Brake Bros Foodservice Ltd
Manchester City Council,Hospitality + Trading Services,Catering Provisions,17.01.2017,1905436306,680.70,Brake Bros Foodservice Ltd
Manchester City Council,Hospitality + Trading Services,Catering Provisions,17.01.2017,1905436279,570.98,Brake Bros Foodservice Ltd
Manchester City Council,Hospitality + Trading Services,Catering Provisions,17.01.2017,1905436416,531.14,Ralph Livesey Ltd
Manchester City Council,Hospitality + Trading Services,Catering Provisions,17.01.2017,1905436216,507.74,Brake Bros Foodservice Ltd
Manchester City Council,Hospitality + Trading Services,Catering Provisions,17.01.2017,1905436231,504.95,Brake Bros Foodservice Ltd
Manchester City Council,Hospitality + Trading Services,Catering Provisions,17.01.2017,1905436430,501.80,Ralph Livesey Ltd
Manchester City Council,Hospitality + Trading Services,Cleaning Equipment and Materials,17.01.2017,1905436211,526.63,Alliance Disposables Ltd
Manchester City Council,Hospitality + Trading Services,Hire of Machinery,17.01.2017,5100898997,702.24,Readyplant Ltd
Manchester City Council,Hospitality + Trading Services,Hire of Machinery,17.01.2017,5100899002,702.24,Readyplant Ltd
Manchester City Council,Hospitality + Trading Services,Hire of Machinery,17.01.2017,5100899003,702.24,Readyplant Ltd
Manchester City Council,Hospitality + Trading Services,Hire of Machinery,17.01.2017,5100898994,646.80,Readyplant Ltd
Manchester City Council,Hospitality + Trading Services,Hire of Machinery,17.01.2017,5100898998,646.80,Readyplant Ltd
Manchester City Council,Hospitality + Trading Services,Insurance,17.01.2017,1905432785,924.60,Zurich Municipal
Manchester City Council,Hospitality + Trading Services,Refuse Collection,17.01.2017,1905436483,"11,977.42",Enterprise Manchester TRADE
Manchester City Council,Hospitality + Trading Services,Refuse Collection,17.01.2017,1905436480,"5,791.24",Enterprise Manchester TRADE
Manchester City Council,Hospitality + Trading Services,Rents,17.01.2017,1905432698,"1,368.75",Booker Ltd
Manchester City Council,Hospitality + Trading Services,Compensation Payments,17.01.2017,1905432859,"14,391.48",Department For Work & Pensions
Manchester City Council,Adult Social Care,Bed and Breakfast Accommodation Expenditure,17.01.2017,5100898737,"42,654.57",Accommodation Links Ltd
Manchester City Council,Adult Social Care,Equipment,17.01.2017,5100898887,"1,995.00",After Adoption
Manchester City Council,Adult Social Care,Equipment,17.01.2017,5100898738,"1,490.00",NRS Healthcare
Manchester City Council,Adult Social Care,Funeral and coroner related services,17.01.2017,5100898790,"1,335.00",Funeral Prtnrs t/a Michael Kennedy
Manchester City Council,Adult Social Care,Funeral and coroner related services,17.01.2017,5100898435,"1,090.00",Funeral Prtnrs t/a Michael Kennedy
Manchester City Council,Adult Social Care,Funeral and coroner related services,17.01.2017,5100898543,698.00,Funeral Prtnrs t/a Michael Kennedy
Manchester City Council,Adult Social Care,Grant and subscriptions awarded,17.01.2017,5100898927,"7,676.88",Rochdale MBC
Manchester City Council,Adult Social Care,I T Provision,17.01.2017,5100898817,"2,475.00",Ethitec
Manchester City Council,Adult Social Care,Payments for services,17.01.2017,5100898458,"22,166.16",Seashell trust
Manchester City Council,Adult Social Care,Payments for services,17.01.2017,5100898763,"14,333.00",After Adoption
Manchester City Council,Adult Social Care,Payments for services,17.01.2017,5100898761,"2,940.00",The Together Trust
Manchester City Council,Adult Social Care,Payments for services,17.01.2017,5100898766,"2,940.00",The Together Trust
Manchester City Council,Adult Social Care,Payments for services,17.01.2017,5100898800,"2,205.00",The Together Trust
Manchester City Council,Adult Social Care,Payments for services,17.01.2017,5100898801,"2,205.00",The Together Trust
Manchester City Council,Adult Social Care,Payments for services,17.01.2017,5100898785,"2,013.15",The Together Trust
Manchester City Council,Adult Social Care,Payments for services,17.01.2017,5100898786,"2,013.15",The Together Trust
Manchester City Council,Adult Social Care,Payments for services,17.01.2017,5100898788,"2,013.15",The Together Trust
Manchester City Council,Adult Social Care,Payments for services,17.01.2017,5100898789,"2,013.15",The Together Trust
Manchester City Council,Adult Social Care,Payments for services,17.01.2017,5100898791,"2,013.15",The Together Trust
Manchester City Council,Adult Social Care,Payments for services,17.01.2017,5100898792,"2,013.15",The Together Trust
Manchester City Council,Adult Social Care,Payments for services,17.01.2017,5100898794,"2,013.15",The Together Trust
Manchester City Council,Adult Social Care,Payments for services,17.01.2017,5100898795,"2,013.15",The Together Trust
Manchester City Council,Adult Social Care,Payments for services,17.01.2017,5100898796,"2,013.15",The Together Trust
Manchester City Council,Adult Social Care,Payments for services,17.01.2017,5100898797,"2,013.15",The Together Trust
Manchester City Council,Adult Social Care,Payments for services,17.01.2017,5100898798,"2,013.15",The Together Trust
Manchester City Council,Adult Social Care,Payments for services,17.01.2017,5100898799,"2,013.15",The Together Trust
Manchester City Council,Adult Social Care,Payments for services,17.01.2017,5100898803,"2,013.15",The Together Trust
Manchester City Council,Adult Social Care,Payments for services,17.01.2017,5100898804,"2,013.15",The Together Trust
Manchester City Council,Adult Social Care,Payments for services,17.01.2017,5100898806,"2,013.15",The Together Trust
Manchester City Council,Adult Social Care,Payments for services,17.01.2017,5100898808,"2,013.15",The Together Trust
Manchester City Council,Adult Social Care,Payments for services,17.01.2017,5100898809,"2,013.15",The Together Trust
Manchester City Council,Adult Social Care,Payments for services,17.01.2017,5100898756,"1,144.83",The Together Trust
Manchester City Council,Adult Social Care,Payments for services,17.01.2017,5100898758,"1,144.83",The Together Trust
Manchester City Council,Adult Social Care,Payments for services,17.01.2017,5100898030,780.00,Prime Care Ambulance Service
Manchester City Council,Adult Social Care,Payments for services,17.01.2017,5100898755,744.24,The Together Trust
Manchester City Council,Adult Social Care,Payments for services,17.01.2017,5100898759,744.24,The Together Trust
Manchester City Council,Adult Social Care,Private Finance and Public Private partnership initiatives,17.01.2017,5100897940,"74,785.80",NU3PS
Manchester City Council,Adult Social Care,Refuse Collection,17.01.2017,1905436475,576.16,Enterprise Manchester TRADE
Manchester City Council,Adult Social Care,Refuse Collection,17.01.2017,1905436461,510.12,Enterprise Manchester TRADE
Manchester City Council,Adult Social Care,Rents,17.01.2017,5100898858,"2,416.78",Riverside ECHG
Manchester City Council,Adult Social Care,Stationery,17.01.2017,5100898704,"1,867.60",Northgate Public Services (UK) Ltd
Manchester City Council,Adult Social Care,Storage Costs,17.01.2017,5100898787,"2,971.32",PHS Records Management
Manchester City Council,Adult Social Care,Supported Accommodation,17.01.2017,5100898850,"1,914.70",Saheli
Manchester City Council,Adult Social Care,Supporting People Payments,17.01.2017,5100898574,"4,592.16",People First Housing Association
Manchester City Council,Adult Social Care,Third party payments relating to Voluntary Organisations,17.01.2017,5100887702,"105,450.25",Central Manchester University Hosp
Manchester City Council,Adult Social Care,Third party payments relating to Voluntary Organisations,17.01.2017,5100898805,"18,166.80",The Depaul Trust
Manchester City Council,Adult Social Care,Third party payments relating to Voluntary Organisations,17.01.2017,5100898582,"8,410.50",People First Housing Association
Manchester City Council,Adult Social Care,Third party payments relating to Voluntary Organisations,17.01.2017,5100898825,791.09,Wythenshawe Community Housing Group
Manchester City Council,Adult Social Care,Third party payments relating to Voluntary Organisations,17.01.2017,5100898932,745.50,TiddlyWinks Creche Provisions
Manchester City Council,Adult Social Care,Third party payments to other Local Authorities,17.01.2017,5100898814,"5,646.50",Fairfield High School for Girls
Manchester City Council,Adult Social Care,Transport Coach Hire,17.01.2017,5100897581,519.20,Cresta Car Hire
Manchester City Council,Adult Social Care,Transport Coach Hire,17.01.2017,5100898930,-519.20,Cresta Car Hire
Manchester City Council,Corporate Services,Car Parking Permits,17.01.2017,5100898751,"2,817.00",National Car Parks Ltd Season Ticke
Manchester City Council,Corporate Services,Car Parking Permits,17.01.2017,5100898760,"1,808.69",National Car Parks Ltd Season Ticke
Manchester City Council,Corporate Services,Car Parking Permits,17.01.2017,5100898750,693.13,National Car Parks Ltd Season Ticke
Manchester City Council,Corporate Services,Car Parking Permits,17.01.2017,5100898757,-675.79,National Car Parks Ltd Season Ticke
Manchester City Council,Corporate Services,Car Parking Permits,17.01.2017,5100898754,"-1,193.00",National Car Parks Ltd Season Ticke
Manchester City Council,Corporate Services,Car Parking Permits,17.01.2017,5100898762,"-2,826.89",National Car Parks Ltd Season Ticke
Manchester City Council,Corporate Services,Cash Collection,17.01.2017,1905436932,"19,430.41",Cardnet Merchant Services
Manchester City Council,Corporate Services,Works and associated costs for Land and Buildings,17.01.2017,5100898775,"5,233.50",Squire Patton Boggs (UK) LLP
Manchester City Council,Housing General Fund,Surplus property Fees,17.01.2017,1905430978,"2,909.00",Redacted Personal Information
Manchester City Council,Housing General Fund,Surplus property Fees,17.01.2017,1905432563,"1,209.00",W.T.Gunson
Manchester City Council,Housing Revenue Account,Council Dwelling Adaptations,17.01.2017,5100897956,"35,553.68",Northwards Housing Limited
Manchester City Council,Housing Revenue Account,Council Dwelling Adaptations,17.01.2017,5100896908,"3,859.85",Pts Plumbing Trade Supplies
Manchester City Council,Housing Revenue Account,Council Dwelling Fees,17.01.2017,5100897949,"25,256.87",Northwards Housing Limited
Manchester City Council,Housing Revenue Account,Council Dwelling Fees,17.01.2017,5100897950,"14,266.89",Northwards Housing Limited
Manchester City Council,Chief Executives,Advertising,17.01.2017,5100898831,"1,125.00",TES Global Ltd
Manchester City Council,Chief Executives,Advertising,17.01.2017,5100898830,877.50,TES Global Ltd
Manchester City Council,Chief Executives,Advertising,17.01.2017,5100898840,780.00,MediaCo Outdoor Limited
Manchester City Council,Chief Executives,Advertising,17.01.2017,5100898842,780.00,MediaCo Outdoor Limited
Manchester City Council,Chief Executives,Advertising,17.01.2017,5100898838,720.00,MediaCo Ltd
Manchester City Council,Chief Executives,Advertising,17.01.2017,5100898837,607.50,MediaCo Ltd
Manchester City Council,Chief Executives,Agency staff provision,17.01.2017,5100898988,"28,026.76",Caritas Recruitment
Manchester City Council,Chief Executives,Agency staff provision,17.01.2017,5100898731,"17,919.64",Capita  Resourcing Ltd
Manchester City Council,Chief Executives,Agency staff provision,17.01.2017,5100898746,"3,716.69",NonStop Recruitment Ltd
Manchester City Council,Chief Executives,Catering,17.01.2017,5100898846,"2,940.60",Manchester Central
Manchester City Council,Chief Executives,Examination Fees,17.01.2017,5100898813,"2,455.53",Central Manchester University Hosp
Manchester City Council,Chief Executives,Funeral and coroner related services,17.01.2017,5100898813,"32,415.06",Central Manchester University Hosp
Manchester City Council,Chief Executives,Funeral and coroner related services,17.01.2017,5100898813,"9,406.07",Central Manchester University Hosp
Manchester City Council,Chief Executives,Funeral and coroner related services,17.01.2017,5100898813,527.91,Central Manchester University Hosp
Manchester City Council,Regeneration Finance,Cleaning Equipment and Materials,17.01.2017,5100898630,659.70,Alliance Disposables Ltd
Manchester City Council,Regeneration Finance,Contract Cleaning External,17.01.2017,5100898822,"6,435.00",Mitie Cleaning & Environmental
Manchester City Council,Regeneration Finance,Consultants Fees,17.01.2017,5100898839,"4,000.00",Susan Woodward Creative Consultancy
Manchester City Council,Regeneration Finance,Professional Services Provision,17.01.2017,5100897711,"1,070.00",Integrated Water Services Ltd
Manchester City Council,Regeneration Finance,Refuse Collection,17.01.2017,1905436472,"4,822.77",Enterprise Manchester TRADE
Manchester City Council,Regeneration Finance,Refuse Collection,17.01.2017,1905436455,720.20,Enterprise Manchester TRADE
Manchester City Council,Highways Services,Bank Charges,17.01.2017,1905436932,827.61,Cardnet Merchant Services
Manchester City Council,Highways Services,Building Materials for direct delivery,17.01.2017,5100898660,"6,567.60",Marshalls Mono Ltd
Manchester City Council,Highways Services,Building Materials for direct delivery,17.01.2017,5100898657,"6,448.08",Marshalls Mono Ltd
Manchester City Council,Highways Services,Building Materials for direct delivery,17.01.2017,5100898658,"6,062.40",Marshalls Mono Ltd
Manchester City Council,Highways Services,Building Materials for direct delivery,17.01.2017,5100898659,565.20,Marshalls Mono Ltd
Manchester City Council,Highways Services,Building Materials for direct delivery,17.01.2017,5100898833,553.34,TARMAC
Manchester City Council,Highways Services,Compensation Payments,17.01.2017,1905432836,"13,550.00",Dorians Solicitors
Manchester City Council,Highways Services,Data Registration Fee,17.01.2017,1905432788,"3,912.00",HMCS Traffic EC
Manchester City Council,Highways Services,Data Registration Fee,17.01.2017,1905432786,"3,304.00",HMCS Traffic EC
Manchester City Council,Highways Services,Hire of Machinery,17.01.2017,5100898915,544.00,John Martin Devine Ltd
Manchester City Council,Highways Services,Payments to Sub-Contractors,17.01.2017,5100897411,"33,128.14",Bethell Construction Ltd
Manchester City Council,Highways Services,Payments to Sub-Contractors,17.01.2017,5100897116,"13,864.62",Utilities Design & Planning Ltd
Manchester City Council,Highways Services,Payments to Sub-Contractors,17.01.2017,5100897113,"13,464.77",Utilities Design & Planning Ltd
Manchester City Council,Highways Services,Payments to Sub-Contractors,17.01.2017,5100897204,"13,366.83",Utilities Design & Planning Ltd
Manchester City Council,Highways Services,Payments to Sub-Contractors,17.01.2017,5100897196,"12,605.73",Utilities Design & Planning Ltd
Manchester City Council,Highways Services,Payments to Sub-Contractors,17.01.2017,5100897192,"11,854.83",Utilities Design & Planning Ltd
Manchester City Council,Highways Services,Payments to Sub-Contractors,17.01.2017,5100897117,"11,649.06",Utilities Design & Planning Ltd
Manchester City Council,Highways Services,Payments to Sub-Contractors,17.01.2017,5100897124,"11,231.66",Utilities Design & Planning Ltd
Manchester City Council,Highways Services,Payments to Sub-Contractors,17.01.2017,5100897122,"11,080.68",Utilities Design & Planning Ltd
Manchester City Council,Highways Services,Payments to Sub-Contractors,17.01.2017,5100897123,"10,346.90",Utilities Design & Planning Ltd
Manchester City Council,Highways Services,Payments to Sub-Contractors,17.01.2017,5100898855,"10,320.00",Kenny Bros (Civil Eng) Ltd
Manchester City Council,Highways Services,Payments to Sub-Contractors,17.01.2017,5100898753,"10,311.74",Kenny Bros (Civil Eng) Ltd
Manchester City Council,Highways Services,Payments to Sub-Contractors,17.01.2017,5100898857,"5,230.00",Kenny Bros (Civil Eng) Ltd
Manchester City Council,Highways Services,Payments to Sub-Contractors,17.01.2017,5100898811,"1,288.00",Traffic Direct Ltd
Manchester City Council,Highways Services,Payments to Sub-Contractors,17.01.2017,5100898940,"-33,128.14",Bethell Construction Ltd
Manchester City Council,Highways Services,Compensation Payments,17.01.2017,1905432858,627.00,Department For Work & Pensions
Manchester City Council,Highways Services,Compensation Payments,17.01.2017,1905432860,637.00,Department For Work & Pensions
Manchester City Council,Highways Services,Compensation Payments,17.01.2017,1905432835,"1,344.00",Dorians Solicitors
Manchester City Council,GMIST (Greater Mcr Integrated),Agency staff provision,17.01.2017,5100898770,"5,465.70",The Skills Company
Manchester City Council,Manchester Leisure,Grounds Maintenance Costs,18.01.2017,5100898965,"6,749.36",Continental Landscapes Limited
Manchester City Council,Manchester Leisure,I T Provision,18.01.2017,5100898879,"10,172.79",Axiell Ltd
Manchester City Council,Manchester Leisure,Professional fees,18.01.2017,5100898964,"1,500.00",Arboricultural Services Treework
Manchester City Council,Manchester Leisure,Professional fees,18.01.2017,5100898963,"1,300.00",Arboricultural Services Treework
Manchester City Council,Manchester Leisure,Publications,18.01.2017,5100898918,950.00,Thompson Reuters
Manchester City Council,Manchester Leisure,Publications,18.01.2017,5100898913,712.00,Thompson Reuters
Manchester City Council,Manchester Leisure,Refuse Collection,18.01.2017,1905441329,"2,234.71",Enterprise Manchester TRADE
Manchester City Council,Manchester Leisure,Refuse Collection,18.01.2017,1905441331,818.44,Enterprise Manchester TRADE
Manchester City Council,Manchester Leisure,Subsistence and Conference Expenses,18.01.2017,5100899137,881.85,Cresta World Travel Ltd
Manchester City Council,Hospitality + Trading Services,Building Materials for direct delivery,18.01.2017,5100898968,567.80,Killgerm Chemicals Ltd
Manchester City Council,Hospitality + Trading Services,Catering Provisions,18.01.2017,1905441272,864.12,Brake Bros Foodservice Ltd
Manchester City Council,Hospitality + Trading Services,Catering Provisions,18.01.2017,1905441304,746.80,Brake Bros Foodservice Ltd
Manchester City Council,Hospitality + Trading Services,Catering Provisions,18.01.2017,1905441256,614.01,Brake Bros Foodservice Ltd
Manchester City Council,Hospitality + Trading Services,Equipment,18.01.2017,5100898951,"3,720.00",Ascot Wholesale Ltd
Manchester City Council,Hospitality + Trading Services,External repairs and maintenance for buildings,18.01.2017,5100899042,"3,543.61",Manchester Working Ltd
Manchester City Council,Hospitality + Trading Services,Goods purchased for resale in Council outlets,18.01.2017,5100898976,578.10,Treasured Memories Ltd
Manchester City Council,Hospitality + Trading Services,Hire of Equipment,18.01.2017,5100899012,"3,814.52",One Stop Hire Limited
Manchester City Council,Hospitality + Trading Services,Refuse Collection,18.01.2017,1905441325,"8,949.39",Enterprise Manchester TRADE
Manchester City Council,Hospitality + Trading Services,Refuse Collection,18.01.2017,1905441324,"4,340.72",Enterprise Manchester TRADE
Manchester City Council,Hospitality + Trading Services,Refuse Collection,18.01.2017,1905441323,"2,141.88",Enterprise Manchester TRADE
Manchester City Council,Hospitality + Trading Services,Refuse Collection,18.01.2017,1905441322,"1,464.57",Enterprise Manchester TRADE
Manchester City Council,Hospitality + Trading Services,Refuse Collection,18.01.2017,1905441320,967.90,Enterprise Manchester TRADE
Manchester City Council,Hospitality + Trading Services,Refuse Collection,18.01.2017,1905441321,815.95,Enterprise Manchester TRADE
Manchester City Council,Adult Social Care,Agency staff provision,18.01.2017,5100898676,"1,215.00",City Care Partnership Ltd
Manchester City Council,Adult Social Care,Bed and Breakfast Accommodation Expenditure,18.01.2017,5100899034,"17,006.08",G & A Taylor Hotels Ltd
Manchester City Council,Adult Social Care,Equipment,18.01.2017,5100899050,"3,000.00",Chrysalis Associates Ltd
Manchester City Council,Adult Social Care,Equipment,18.01.2017,5100893913,"2,889.96",Independent Life Solutions
Manchester City Council,Adult Social Care,Equipment,18.01.2017,5100898710,"1,283.10",Action on Hearing Loss
Manchester City Council,Adult Social Care,Furniture,18.01.2017,5100897953,758.00,Back Care Solutions Ltd
Manchester City Council,Adult Social Care,Payments for services,18.01.2017,5100899043,"5,290.06",Belmont School Ltd
Manchester City Council,Adult Social Care,Payments for services,18.01.2017,5100899009,"4,433.00",Cumberland & Westmorland
Manchester City Council,Adult Social Care,Payments for services,18.01.2017,5100897288,"3,822.12",Rossendale School Priory
Manchester City Council,Adult Social Care,Payments to Academies,18.01.2017,5100898985,"1,725.45",Sibcas Limited
Manchester City Council,Adult Social Care,Personal needs of client,18.01.2017,5100896898,"2,642.77",JCM Seating Solutions Ltd
Manchester City Council,Adult Social Care,Professional fees,18.01.2017,1905392371,"1,683.03",Howell Jones Cyfreithwyr Solicitors
Manchester City Council,Adult Social Care,Professional fees,18.01.2017,1905397847,583.87,Redacted Personal Information
Manchester City Council,Adult Social Care,Professional fees,18.01.2017,1905436189,551.40,Applied Psychology Services
Manchester City Council,Adult Social Care,Refuse Collection,18.01.2017,1905441319,586.32,Enterprise Manchester TRADE
Manchester City Council,Adult Social Care,Security,18.01.2017,5100898982,"1,610.89",Manchester Communication Academy
Manchester City Council,Adult Social Care,Supported Accommodation,18.01.2017,5100899053,"1,200.00",Manchester Settlement
Manchester City Council,Adult Social Care,Supporting People Payments,18.01.2017,5100899040,895.18,Child Action Northwest
Manchester City Council,Adult Social Care,Third party payments relating to Voluntary Organisations,18.01.2017,5100898070,"14,763.75",George House Trust
Manchester City Council,Adult Social Care,Third party payments relating to Voluntary Organisations,18.01.2017,5100898983,"1,888.00",Youth Project @ Apostles &
Manchester City Council,Adult Social Care,Third party payments relating to Voluntary Organisations,18.01.2017,5100898820,"1,629.13",Alzheimers Society (Mcr Branch)
Manchester City Council,Adult Social Care,Third party payments relating to Voluntary Organisations,18.01.2017,5100898819,673.00,Alzheimers Society (Mcr Branch)
Manchester City Council,Adult Social Care,Training and Development,18.01.2017,5100898771,"72,900.00",One Education Ltd
Manchester City Council,Adult Social Care,Transport Coach Hire,18.01.2017,5100897629,"1,666.00",Cresta Car Hire
Manchester City Council,Adult Social Care,Transport Coach Hire,18.01.2017,5100897585,"1,215.10",Cresta Car Hire
Manchester City Council,Adult Social Care,Transport Coach Hire,18.01.2017,5100897626,"1,212.10",Cresta Car Hire
Manchester City Council,Adult Social Care,Transport Coach Hire,18.01.2017,5100897634,"1,020.00",Cresta Car Hire
Manchester City Council,Adult Social Care,Transport Coach Hire,18.01.2017,5100897587,697.00,Cresta Car Hire
Manchester City Council,Adult Social Care,Transport Coach Hire,18.01.2017,5100897591,686.00,Cresta Car Hire
Manchester City Council,Adult Social Care,Transport Coach Hire,18.01.2017,5100897632,640.00,Cresta Car Hire
Manchester City Council,Adult Social Care,Transport Coach Hire,18.01.2017,5100897584,574.00,Cresta Car Hire
Manchester City Council,Adult Social Care,Transport Coach Hire,18.01.2017,5100897590,540.00,Cresta Car Hire
Manchester City Council,Adult Social Care,Transport Coach Hire,18.01.2017,5100898939,519.20,Cresta Car Hire
Manchester City Council,Adult Social Care,Legal Fees,18.01.2017,1905441558,510.00,Liberata
Manchester City Council,Adult Social Care,Legal Fees,18.01.2017,1905441554,"2,055.00",Liberata
Manchester City Council,Adult Social Care,Legal Fees,18.01.2017,1905441553,"3,930.00",Liberata
Manchester City Council,Adult Social Care,Legal Fees,18.01.2017,1905441555,"5,030.00",Liberata
Manchester City Council,Adult Social Care,Legal Fees,18.01.2017,1905441557,"7,605.00",Liberata
Manchester City Council,Housing Revenue Account,Compensation Payments,18.01.2017,1905432862,"2,000.00",Metamorph Law Ltd
Manchester City Council,Housing Revenue Account,Council Dwelling Adaptations,18.01.2017,5100899037,"6,247.49",Manchester Working Ltd
Manchester City Council,Chief Executives,Advertising,18.01.2017,5100899004,645.00,Mcr:Music Limited
Manchester City Council,Chief Executives,Agency staff provision,18.01.2017,5100899138,"80,024.66",Eden Brown Synergy
Manchester City Council,Chief Executives,Agency staff provision,18.01.2017,5100896957,"24,977.79",SRA Cover Staff Ltd
Manchester City Council,Chief Executives,Agency staff provision,18.01.2017,5100899145,"17,796.65",Hays Personnel
Manchester City Council,Chief Executives,Agency staff provision,18.01.2017,5100898522,"14,125.27",Reed Employment Plc
Manchester City Council,Chief Executives,Agency staff provision,18.01.2017,5100897319,"12,865.86",Sanctuary Social Care
Manchester City Council,Chief Executives,Agency staff provision,18.01.2017,5100898410,"9,875.00",HCL Social Care
Manchester City Council,Chief Executives,Agency staff provision,18.01.2017,5100899056,"6,629.65",Semester Recruitment Ltd
Manchester City Council,Chief Executives,Agency staff provision,18.01.2017,5100898519,"5,608.69",Ashberry Recruitment Ltd
Manchester City Council,Chief Executives,Agency staff provision,18.01.2017,5100898101,"2,760.82",Entrust Social Care
Manchester City Council,Chief Executives,Agency staff provision,18.01.2017,5100898346,"1,683.99",Bs Project Services Ltd T/A
Manchester City Council,Chief Executives,Agency staff provision,18.01.2017,5100899129,774.20,Randstad Care
Manchester City Council,Chief Executives,Agency staff provision,18.01.2017,5100898176,708.12,Bennett Staff Bureau
Manchester City Council,Chief Executives,Data Links,18.01.2017,5100898523,"2,733.00",The Loop t/a Gamma Telecom Ltd
Manchester City Council,Chief Executives,ICT Support & Maintenance,18.01.2017,5100898619,"48,775.75",Microsoft Ltd
Manchester City Council,Chief Executives,Printing,18.01.2017,5100898935,"1,614.81",Service Point
Manchester City Council,Chief Executives,Professional fees,18.01.2017,5100898689,"3,800.00",Sap (Uk) Ltd
Manchester City Council,Chief Executives,Subsistence and Conference Expenses,18.01.2017,5100899090,"2,976.54",Cresta World Travel Ltd
Manchester City Council,Chief Executives,Travel,18.01.2017,5100899059,"2,697.04",Cresta World Travel Ltd
Manchester City Council,Chief Executives,Travel,18.01.2017,5100899087,688.04,Cresta World Travel Ltd
Manchester City Council,Chief Executives,Legal Fees,18.01.2017,1905441551,"11,736.00",Liberata
Manchester City Council,Chief Executives,Compensation Payments,18.01.2017,1905441556,"9,905.00",Liberata
Manchester City Council,Regeneration Finance,Grounds Maintenance Costs,18.01.2017,5100898974,760.00,Countrywide Grounds Maintenance Ltd
Manchester City Council,Regeneration Finance,Refuse Collection,18.01.2017,1905441327,"9,261.72",Enterprise Manchester TRADE
Manchester City Council,Regeneration Finance,Refuse Collection,18.01.2017,1905441317,820.64,Enterprise Manchester TRADE
Manchester City Council,Regeneration Finance,Refuse Collection,18.01.2017,1905441338,628.55,Enterprise Manchester TRADE
Manchester City Council,Regeneration Finance,Rodent and Pest Control,18.01.2017,5100898984,680.00,Pro-Kill Environmental Services
Manchester City Council,Highways Services,Building Materials for direct delivery,18.01.2017,5100899091,"5,494.72",Marshalls Mono Ltd
Manchester City Council,Highways Services,Building Materials for direct delivery,18.01.2017,5100899035,648.38,TARMAC
Manchester City Council,Highways Services,Collection Commission,18.01.2017,5100898285,"6,912.08",Verrus (UK) T/A paybyphone
Manchester City Council,Highways Services,Contribution to PATROL,18.01.2017,5100899026,"13,862.40",PATROL
Manchester City Council,Highways Services,Equipment,18.01.2017,5100898273,"99,608.89",Carillion Civil Engineering
Manchester City Council,Highways Services,Hire of Machinery,18.01.2017,5100899014,"2,486.92",One Stop Hire Limited
Manchester City Council,Highways Services,Hire of Machinery,18.01.2017,5100899014,"2,486.92",One Stop Hire Limited
Manchester City Council,Highways Services,Payments to Sub-Contractors,18.01.2017,5100898944,"24,157.13",Bethell Construction Ltd
Manchester City Council,Highways Services,Payments to Sub-Contractors,18.01.2017,5100898944,"8,971.01",Bethell Construction Ltd
Manchester City Council,Highways Services,Compensation Payments,18.01.2017,1905436442,"1,566.00",Department For Work & Pensions
Manchester City Council,GMIST (Greater Mcr Integrated),Professional fees,18.01.2017,5100898991,"26,250.00",University Of Salford
Manchester City Council,Manchester Leisure,Agency staff provision,19.01.2017,5100899218,"1,756.50",Redacted Personal Information
Manchester City Council,Manchester Leisure,Catering,19.01.2017,5100899193,741.28,Manchester Central
Manchester City Council,Manchester Leisure,Construction Works,19.01.2017,5100899187,"4,418.30",Groundwork & Leisure Services Ltd
Manchester City Council,Manchester Leisure,Electricity,19.01.2017,1905442829,"1,554.17",Scottish & Southern Energy Plc
Manchester City Council,Manchester Leisure,Equipment,19.01.2017,5100898815,840.00,Groundwork & Leisure Services Ltd
Manchester City Council,Manchester Leisure,Equipment,19.01.2017,5100860345,500.00,Isaac Butterworth Ltd
Manchester City Council,Manchester Leisure,Grant and subscriptions awarded,19.01.2017,5100899126,"5,000.00",Wythenshawe Community Farm
Manchester City Council,Manchester Leisure,Grant Payments,19.01.2017,5100899221,"9,167.33",Harpurhey Neighbourhood Project
Manchester City Council,Manchester Leisure,Grant Payments,19.01.2017,5100899219,"5,725.00",Turkey Lane & Monsall Neighbourhood
Manchester City Council,Manchester Leisure,Grant Payments,19.01.2017,5100899190,"5,137.00",Northmoor Community Association
Manchester City Council,Manchester Leisure,Hire of Machinery,19.01.2017,5100898324,"1,950.00",Redgate Holdings Ltd
Manchester City Council,Manchester Leisure,Hire of Machinery,19.01.2017,5100899288,590.00,T.H. Horn Ltd
Manchester City Council,Manchester Leisure,Hire of Machinery,19.01.2017,5100899289,590.00,T.H. Horn Ltd
Manchester City Council,Manchester Leisure,Hire of Machinery,19.01.2017,5100899290,590.00,T.H. Horn Ltd
Manchester City Council,Manchester Leisure,Library Materials Acquisition,19.01.2017,1905435904,"1,591.12",Martin Lavell Limited
Manchester City Council,Manchester Leisure,Library Materials Acquisition,19.01.2017,1905435935,"1,339.43",Askews and Holts
Manchester City Council,Manchester Leisure,Library Materials Acquisition,19.01.2017,1905435901,999.92,Ruposhi Bangla Ltd
Manchester City Council,Manchester Leisure,Library Materials Acquisition,19.01.2017,1905435958,928.56,Peters Bookselling Services
Manchester City Council,Manchester Leisure,Library Materials Acquisition,19.01.2017,1905435931,564.36,Askews and Holts
Manchester City Council,Manchester Leisure,Library Materials Acquisition,19.01.2017,1905435926,536.48,Askews and Holts
Manchester City Council,Manchester Leisure,Library Materials Acquisition,19.01.2017,1905435957,519.81,Peters Bookselling Services
Manchester City Council,Manchester Leisure,Payments for services,19.01.2017,5100898869,854.60,Junior Water Sports
Manchester City Council,Manchester Leisure,Professional fees,19.01.2017,5100898945,"1,150.31",International Sport Group Limited
Manchester City Council,Manchester Leisure,Refuse Collection,19.01.2017,1905443129,"3,409.64",Enterprise Manchester TRADE
Manchester City Council,Hospitality + Trading Services,Catering Provisions,19.01.2017,1905442569,855.18,Brake Bros Foodservice Ltd
Manchester City Council,Hospitality + Trading Services,Catering Provisions,19.01.2017,1905442573,844.87,Chicken Joes Limited
Manchester City Council,Hospitality + Trading Services,Catering Provisions,19.01.2017,1905442607,664.57,Brake Bros Foodservice Ltd
Manchester City Council,Hospitality + Trading Services,Catering Provisions,19.01.2017,1905442604,640.41,Brake Bros Foodservice Ltd
Manchester City Council,Hospitality + Trading Services,Catering Provisions,19.01.2017,1905442609,629.81,Brake Bros Foodservice Ltd
Manchester City Council,Hospitality + Trading Services,Catering Provisions,19.01.2017,1905442570,588.74,Brake Bros Foodservice Ltd
Manchester City Council,Hospitality + Trading Services,Catering Provisions,19.01.2017,1905442603,571.74,Brake Bros Foodservice Ltd
Manchester City Council,Hospitality + Trading Services,Catering Provisions,19.01.2017,1905442529,563.47,Brake Bros Foodservice Ltd
Manchester City Council,Hospitality + Trading Services,Catering Provisions,19.01.2017,1905442536,562.30,Brake Bros Foodservice Ltd
Manchester City Council,Hospitality + Trading Services,Catering Provisions,19.01.2017,1905442567,540.67,Brake Bros Foodservice Ltd
Manchester City Council,Hospitality + Trading Services,Catering Provisions,19.01.2017,1905442580,522.40,Brake Bros Foodservice Ltd
Manchester City Council,Hospitality + Trading Services,Catering Provisions,19.01.2017,1905442563,517.73,Brake Bros Foodservice Ltd
Manchester City Council,Hospitality + Trading Services,Catering Provisions,19.01.2017,1905442533,511.81,Brake Bros Foodservice Ltd
Manchester City Council,Hospitality + Trading Services,Electricity,19.01.2017,1905442831,"4,694.84",Scottish & Southern Energy Plc
Manchester City Council,Hospitality + Trading Services,External repairs and maintenance for buildings,19.01.2017,5100899260,"2,538.90",Manchester Working Ltd
Manchester City Council,Hospitality + Trading Services,Hire of Equipment,19.01.2017,5100899306,841.60,Fast Hire UK
Manchester City Council,Hospitality + Trading Services,Hire of Machinery,19.01.2017,5100899307,"8,096.28",Fast Hire UK
Manchester City Council,Hospitality + Trading Services,Hire of Machinery,19.01.2017,5100899308,"6,993.50",H & C Plant Hire Ltd
Manchester City Council,Hospitality + Trading Services,Professional fees,19.01.2017,5100899220,"1,161.69",Triscan Systems Ltd
Manchester City Council,Hospitality + Trading Services,Vehicle Repairs,19.01.2017,5100898610,"1,834.03",LDS Motor Bodies Ltd
Manchester City Council,Hospitality + Trading Services,Vehicle Repairs,19.01.2017,5100898607,"1,625.97",LDS Motor Bodies Ltd
Manchester City Council,Hospitality + Trading Services,Vehicle Repairs,19.01.2017,5100898604,"1,160.86",LDS Motor Bodies Ltd
Manchester City Council,Environment and Operations,Construction Works,19.01.2017,5100899044,"3,169.69",GMCA
Manchester City Council,Environment and Operations,Levies,19.01.2017,1905115725,"2,706,200.00",GMWDA (LEVY)
Manchester City Council,Adult Social Care,Agency staff provision,19.01.2017,5100887315,"1,349.79",Rochdale Mbc
Manchester City Council,Adult Social Care,Electricity,19.01.2017,1905442623,"2,132.67",Scottish & Southern Energy Plc
Manchester City Council,Adult Social Care,Electricity,19.01.2017,1905442635,"1,422.49",Scottish & Southern Energy Plc
Manchester City Council,Adult Social Care,Electricity,19.01.2017,1905442863,"1,282.95",Scottish & Southern Energy Plc
Manchester City Council,Adult Social Care,Electricity,19.01.2017,1905442828,"1,135.22",Scottish & Southern Energy Plc
Manchester City Council,Adult Social Care,Electricity,19.01.2017,1905442645,"1,095.27",Scottish & Southern Energy Plc
Manchester City Council,Adult Social Care,Electricity,19.01.2017,1905442624,961.85,Scottish & Southern Energy Plc
Manchester City Council,Adult Social Care,Electricity,19.01.2017,1905442853,887.59,Scottish & Southern Energy Plc
Manchester City Council,Adult Social Care,Electricity,19.01.2017,1905442650,801.29,Scottish & Southern Energy Plc
Manchester City Council,Adult Social Care,Electricity,19.01.2017,1905442838,681.13,Scottish & Southern Energy Plc
Manchester City Council,Adult Social Care,Electricity,19.01.2017,1905442874,680.13,Scottish & Southern Energy Plc
Manchester City Council,Adult Social Care,Electricity,19.01.2017,1905442636,659.27,Scottish & Southern Energy Plc
Manchester City Council,Adult Social Care,Electricity,19.01.2017,1905442848,623.70,Scottish & Southern Energy Plc
Manchester City Council,Adult Social Care,Electricity,19.01.2017,1905442814,587.89,Scottish & Southern Energy Plc
Manchester City Council,Adult Social Care,Electricity,19.01.2017,1905442827,583.50,Scottish & Southern Energy Plc
Manchester City Council,Adult Social Care,Electricity,19.01.2017,1905442724,543.19,Scottish & Southern Energy Plc
Manchester City Council,Adult Social Care,Electricity,19.01.2017,1905442835,509.29,Scottish & Southern Energy Plc
Manchester City Council,Adult Social Care,Equipment,19.01.2017,5100896975,"2,975.00",Mangar International Ltd
Manchester City Council,Adult Social Care,Gas,19.01.2017,5100899183,"12,958.63",Manchester School Services Limited
Manchester City Council,Adult Social Care,Home Care ,19.01.2017,5100899261,826.00,Cooperative Childcare
Manchester City Council,Adult Social Care,Home Care ,19.01.2017,5100899257,-796.50,Cooperative Childcare
Manchester City Council,Adult Social Care,Payments for services,19.01.2017,5100899215,"217,545.12",Future Directions CIC
Manchester City Council,Adult Social Care,Payments for services,19.01.2017,5100899269,"8,369.18",Future Directions CIC
Manchester City Council,Adult Social Care,Payments for services,19.01.2017,5100897286,"6,919.00",Hulme Hall Grammar School
Manchester City Council,Adult Social Care,Professional fees,19.01.2017,5100896944,"39,448.00",Central Manchester University Hosp
Manchester City Council,Adult Social Care,Professional fees,19.01.2017,5100898903,"2,100.00",JBS-R Associates
Manchester City Council,Adult Social Care,Professional fees,19.01.2017,5100899245,960.00,MAV Youth Empowerment Programme
Manchester City Council,Adult Social Care,Professional fees,19.01.2017,5100899272,575.00,Redacted Personal Information
Manchester City Council,Adult Social Care,Rents,19.01.2017,5100898851,"4,715.69",Riverside ECHG
Manchester City Council,Adult Social Care,Rents,19.01.2017,5100898853,"4,715.69",Riverside ECHG
Manchester City Council,Adult Social Care,Rents,19.01.2017,5100898861,"2,416.78",Riverside ECHG
Manchester City Council,Adult Social Care,Rents,19.01.2017,5100898862,"2,416.78",Riverside ECHG
Manchester City Council,Adult Social Care,Supporting People Payments,19.01.2017,5100899155,"1,782.04",Child Action Northwest
Manchester City Council,Adult Social Care,Supporting People Payments,19.01.2017,5100899155,895.18,Child Action Northwest
Manchester City Council,Adult Social Care,Supporting People Payments,19.01.2017,5100899151,-895.18,Child Action Northwest
Manchester City Council,Adult Social Care,Third party payments relating to Voluntary Organisations,19.01.2017,5100898057,"2,395.00",Wai Yin Society
Manchester City Council,Adult Social Care,Third party payments relating to Voluntary Organisations,19.01.2017,5100897972,"2,281.00",LMCP Care Link
Manchester City Council,Adult Social Care,Third party payments relating to Voluntary Organisations,19.01.2017,5100899214,"1,539.08",Whiz Project
Manchester City Council,Adult Social Care,Third party payments relating to Voluntary Organisations,19.01.2017,5100897965,"1,430.00",LMCP Care Link
Manchester City Council,Adult Social Care,Third party payments to other Local Authorities,19.01.2017,5100898601,"3,338.50",Chatsworth High School & College
Manchester City Council,Adult Social Care,Compensation Payments,19.01.2017,1905425901,544.24,Barnardo's
Manchester City Council,Corporate Services,Collection Commission,19.01.2017,5100898186,808.63,Rossendales Ltd
Manchester City Council,Corporate Services,Collection Commission,19.01.2017,5100898185,562.59,Rossendales Ltd
Manchester City Council,Corporate Services,Electricity,19.01.2017,1905442630,"1,923.31",Scottish & Southern Energy Plc
Manchester City Council,Corporate Services,Electricity,19.01.2017,1905442843,"1,779.36",Scottish & Southern Energy Plc
Manchester City Council,Corporate Services,Electricity,19.01.2017,1905442633,"1,412.49",Scottish & Southern Energy Plc
Manchester City Council,Corporate Services,Electricity,19.01.2017,1905442819,"1,379.61",Scottish & Southern Energy Plc
Manchester City Council,Corporate Services,Electricity,19.01.2017,1905442655,"1,359.41",Scottish & Southern Energy Plc
Manchester City Council,Corporate Services,Electricity,19.01.2017,1905442839,"1,256.90",Scottish & Southern Energy Plc
Manchester City Council,Corporate Services,Electricity,19.01.2017,1905442849,"1,249.60",Scottish & Southern Energy Plc
Manchester City Council,Corporate Services,Electricity,19.01.2017,1905442862,"1,225.75",Scottish & Southern Energy Plc
Manchester City Council,Corporate Services,Electricity,19.01.2017,1905442825,"1,212.21",Scottish & Southern Energy Plc
Manchester City Council,Corporate Services,Electricity,19.01.2017,1905442868,"1,206.49",Scottish & Southern Energy Plc
Manchester City Council,Corporate Services,Electricity,19.01.2017,1905442815,"1,112.63",Scottish & Southern Energy Plc
Manchester City Council,Corporate Services,Electricity,19.01.2017,1905442660,"1,049.80",Scottish & Southern Energy Plc
Manchester City Council,Corporate Services,Electricity,19.01.2017,1905442661,"1,049.80",Scottish & Southern Energy Plc
Manchester City Council,Corporate Services,Electricity,19.01.2017,1905442658,"1,038.86",Scottish & Southern Energy Plc
Manchester City Council,Corporate Services,Electricity,19.01.2017,1905442629,921.46,Scottish & Southern Energy Plc
Manchester City Council,Corporate Services,Electricity,19.01.2017,1905442823,849.05,Scottish & Southern Energy Plc
Manchester City Council,Corporate Services,Electricity,19.01.2017,1905442634,778.76,Scottish & Southern Energy Plc
Manchester City Council,Corporate Services,Electricity,19.01.2017,1905442705,541.90,Scottish & Southern Energy Plc
Manchester City Council,Corporate Services,Electricity,19.01.2017,1905442632,524.97,Scottish & Southern Energy Plc
Manchester City Council,Corporate Services,Postage,19.01.2017,5100898885,"2,929.58",Royal Mail Group Plc
Manchester City Council,Corporate Services,Postage,19.01.2017,5100898882,"1,978.47",Royal Mail Group Plc
Manchester City Council,Corporate Services,Signers/Interpreters Fees,19.01.2017,5100898438,"1,190.00",Interpreting Solutions Ltd
Manchester City Council,Corporate Services,Training and Development,19.01.2017,5100898446,"1,699.00",Hbinfo Ltd
Manchester City Council,Corporate Services,Training and Development,19.01.2017,5100899239,624.00,Rossendales Ltd
Manchester City Council,Corporate Services,Transport Taxis,19.01.2017,1905443178,"9,351.02",Mantax Radio Taxis Ltd
Manchester City Council,Corporate Services,Works and associated costs for Land and Buildings,19.01.2017,5100899235,"48,685.67",Manchester Working Ltd
Manchester City Council,Corporate Services,Works and associated costs for Land and Buildings,19.01.2017,5100899231,"14,920.47",Manchester Working Ltd
Manchester City Council,Housing General Fund,Surplus property Acquisitions,19.01.2017,1905443179,"142,000.00",PLS
Manchester City Council,Housing General Fund,Surplus property Fees,19.01.2017,1905443179,636.00,PLS
Manchester City Council,Housing Revenue Account,I T Provision,19.01.2017,5100899199,885.00,Aareon UK Ltd
Manchester City Council,Housing Revenue Account,I T Provision,19.01.2017,5100899210,885.00,Aareon UK Ltd
Manchester City Council,Housing Revenue Account,I T Provision,19.01.2017,5100899198,750.00,Aareon UK Ltd
Manchester City Council,Housing Revenue Account,I T Provision,19.01.2017,5100899209,750.00,Aareon UK Ltd
Manchester City Council,Housing Revenue Account,Compensation Payments,19.01.2017,1905415227,"2,567.00",Driscoll Kingston Solicitors
Manchester City Council,Chief Executives,Advertising,19.01.2017,5100898250,"6,500.00",Clicky Media Ltd
Manchester City Council,Chief Executives,Advertising,19.01.2017,5100899179,900.00,Guardian News and Media Limited
Manchester City Council,Chief Executives,Advertising,19.01.2017,5100899273,877.50,TES Global Ltd
Manchester City Council,Chief Executives,Advertising,19.01.2017,5100899274,710.10,TES Global Ltd
Manchester City Council,Chief Executives,Agency staff provision,19.01.2017,5100897805,"68,347.75",Sellick Partnership (Legal) Ltd
Manchester City Council,Chief Executives,Agency staff provision,19.01.2017,5100897806,"24,225.10",Capita  Resourcing Ltd
Manchester City Council,Chief Executives,Agency staff provision,19.01.2017,5100897461,"17,809.03",NonStop Recruitment Ltd
Manchester City Council,Chief Executives,Agency staff provision,19.01.2017,5100897894,"10,174.11",TeacherActive Ltd
Manchester City Council,Chief Executives,Agency staff provision,19.01.2017,5100897815,"5,914.80",Medicare First
Manchester City Council,Chief Executives,Agency staff provision,19.01.2017,5100898319,"5,614.39",TeacherActive Ltd
Manchester City Council,Chief Executives,Expenditure re Internal Trading Ordered Externally,19.01.2017,5100899266,"24,152.93",Electoral Reform Services Ltd
Manchester City Council,Chief Executives,Expenditure re Internal Trading Ordered Externally,19.01.2017,5100899259,"3,751.18",Electoral Reform Services Ltd
Manchester City Council,Chief Executives,Expenditure re Internal Trading Ordered Externally,19.01.2017,5100899263,"1,641.26",Electoral Reform Services Ltd
Manchester City Council,Chief Executives,Printing,19.01.2017,5100899205,500.00,Silk Group Ltd
Manchester City Council,Chief Executives,Training and Development,19.01.2017,5100897832,"1,725.00",Indigo Training & Consultancy
Manchester City Council,Chief Executives,Works and associated costs for Land and Buildings,19.01.2017,5100893971,"1,200.00",EEG Contracts Ltd
Manchester City Council,Chief Executives,Works and associated costs for Land and Buildings,19.01.2017,5100893972,"1,200.00",EEG Contracts Ltd
Manchester City Council,Regeneration Finance,Car Parking Permits,19.01.2017,5100898735,678.26,National Car Parks Ltd Season Ticke
Manchester City Council,Regeneration Finance,Electricity,19.01.2017,1905442637,"3,658.48",Scottish & Southern Energy Plc
Manchester City Council,Regeneration Finance,Electricity,19.01.2017,1905442640,"2,318.39",Scottish & Southern Energy Plc
Manchester City Council,Regeneration Finance,Electricity,19.01.2017,1905442638,"2,074.28",Scottish & Southern Energy Plc
Manchester City Council,Regeneration Finance,Electricity,19.01.2017,1905442820,"1,950.81",Scottish & Southern Energy Plc
Manchester City Council,Regeneration Finance,Electricity,19.01.2017,1905442851,"1,809.92",Scottish & Southern Energy Plc
Manchester City Council,Regeneration Finance,Electricity,19.01.2017,1905442652,"1,749.30",Scottish & Southern Energy Plc
Manchester City Council,Regeneration Finance,Electricity,19.01.2017,1905442845,"1,308.75",Scottish & Southern Energy Plc
Manchester City Council,Regeneration Finance,Electricity,19.01.2017,1905442855,"1,201.81",Scottish & Southern Energy Plc
Manchester City Council,Regeneration Finance,Electricity,19.01.2017,1905442642,"1,164.62",Scottish & Southern Energy Plc
Manchester City Council,Regeneration Finance,Electricity,19.01.2017,1905442816,"1,156.78",Scottish & Southern Energy Plc
Manchester City Council,Regeneration Finance,Electricity,19.01.2017,1905442659,"1,049.80",Scottish & Southern Energy Plc
Manchester City Council,Regeneration Finance,Electricity,19.01.2017,1905442657,"1,038.86",Scottish & Southern Energy Plc
Manchester City Council,Regeneration Finance,Electricity,19.01.2017,1905442641,835.32,Scottish & Southern Energy Plc
Manchester City Council,Regeneration Finance,Electricity,19.01.2017,1905442643,769.79,Scottish & Southern Energy Plc
Manchester City Council,Regeneration Finance,Electricity,19.01.2017,1905442852,712.31,Scottish & Southern Energy Plc
Manchester City Council,Regeneration Finance,Electricity,19.01.2017,1905442631,576.88,Scottish & Southern Energy Plc
Manchester City Council,Regeneration Finance,Electricity,19.01.2017,1905442656,562.53,Scottish & Southern Energy Plc
Manchester City Council,Regeneration Finance,Electricity,19.01.2017,1905442644,528.58,Scottish & Southern Energy Plc
Manchester City Council,Regeneration Finance,Professional Services Provision,19.01.2017,5100898330,"3,598.00",Hertel Solutions Ltd
Manchester City Council,Highways Services,Building Materials for direct delivery,19.01.2017,5100899271,908.40,TARMAC
Manchester City Council,Highways Services,Electricity,19.01.2017,1905442647,"1,091.14",Scottish & Southern Energy Plc
Manchester City Council,Highways Services,Electricity,19.01.2017,1905442859,728.98,Scottish & Southern Energy Plc
Manchester City Council,Highways Services,Payments to Sub-Contractors,19.01.2017,5100898749,"45,000.00",Kenny Bros (Civil Eng) Ltd
Manchester City Council,Highways Services,Payments to Sub-Contractors,19.01.2017,5100898906,"12,015.00",Utilities Design & Planning Ltd
Manchester City Council,Highways Services,Payments to Sub-Contractors,19.01.2017,5100898743,"1,813.43",Kenny Bros (Civil Eng) Ltd
Manchester City Council,Highways Services,Payments to Sub-Contractors,19.01.2017,5100898559,"1,116.50",Utilities Design & Planning Ltd
Manchester City Council,Highways Services,Payments to Sub-Contractors,19.01.2017,5100898553,"1,026.50",Utilities Design & Planning Ltd
Manchester City Council,Highways Services,Professional fees,19.01.2017,5100898480,"4,264.82",Wilde Consultants Ltd
Manchester City Council,Highways Services,Professional fees,19.01.2017,5100898485,"4,196.37",Wilde Consultants Ltd
Manchester City Council,Highways Services,Professional fees,19.01.2017,5100898482,"3,579.75",Wilde Consultants Ltd
Manchester City Council,Highways Services,Professional fees,19.01.2017,5100898466,"3,140.65",Wilde Consultants Ltd
Manchester City Council,Highways Services,Professional fees,19.01.2017,5100898463,"2,708.16",Wilde Consultants Ltd
Manchester City Council,Highways Services,Professional fees,19.01.2017,5100898486,"1,580.00",Wilde Consultants Ltd
Manchester City Council,Highways Services,Professional fees,19.01.2017,5100898479,"1,185.00",Wilde Consultants Ltd
Manchester City Council,Highways Services,Legal Fees,19.01.2017,1905432627,531.00,Sterling Costs
Manchester City Council,Collection Fund,Business Rates - Preceptor Payments,19.01.2017,1905066159,"257,514.00",Greater Manchester Fire & Rescue
Manchester City Council,Collection Fund,Ctax - Preceptor Payments,19.01.2017,1905066405,"1,383,847.00",GMPCC (PRECEPTS)
Manchester City Council,Collection Fund,Ctax - Preceptor Payments,19.01.2017,1905066159,"517,117.00",Greater Manchester Fire & Rescue
Manchester City Council,Mersey Valley Joint Committee,Electricity,19.01.2017,1905442842,878.69,Scottish & Southern Energy Plc
Manchester City Council,Manchester Leisure,I T Provision,20.01.2017,5100879822,"10,172.91",Axiell Ltd
Manchester City Council,Manchester Leisure,Professional fees,20.01.2017,5100899055,"3,357.87",Redacted Personal Information
Manchester City Council,Manchester Leisure,Professional fees,20.01.2017,1905443152,"1,600.00",Redacted Personal Information
Manchester City Council,Libraries and Theatres,Vehicle Plant Furniture and Equipment,20.01.2017,5100898626,595.00,Opening The Book Furniture Ltd
Manchester City Council,Hospitality + Trading Services,Catering Provisions,20.01.2017,1905443287,"1,057.73",Brake Bros Foodservice Ltd
Manchester City Council,Hospitality + Trading Services,Catering Provisions,20.01.2017,1905443274,669.31,Brake Bros Foodservice Ltd
Manchester City Council,Hospitality + Trading Services,Electricity,20.01.2017,5100898914,800.00,FTS Event Power Ltd
Manchester City Council,Hospitality + Trading Services,Funeral and coroner related services,20.01.2017,5100898823,876.00,Teleshore (Uk) Ltd
Manchester City Council,Hospitality + Trading Services,Rents,20.01.2017,1905441416,"5,521.62",CBRE Ltd
Manchester City Council,Hospitality + Trading Services,Vehicle Fuel Costs,20.01.2017,5100899236,"19,236.00",Carlton Fuels Ltd
Manchester City Council,Hospitality + Trading Services,Vehicle Fuel Costs,20.01.2017,5100896861,"19,000.00",Carlton Fuels Ltd
Manchester City Council,Hospitality + Trading Services,Vehicle Fuel Costs,20.01.2017,5100896856,"14,250.00",Carlton Fuels Ltd
Manchester City Council,Hospitality + Trading Services,Vehicle Fuel Costs,20.01.2017,5100898874,"9,703.94",Carlton Fuels Ltd
Manchester City Council,Hospitality + Trading Services,Vehicle Fuel Costs,20.01.2017,5100897514,"9,572.87",Carlton Fuels Ltd
Manchester City Council,Hospitality + Trading Services,Vehicle Fuel Costs,20.01.2017,5100897512,"9,570.96",Carlton Fuels Ltd
Manchester City Council,Hospitality + Trading Services,Vehicle Fuel Costs,20.01.2017,5100897202,"9,501.90",Carlton Fuels Ltd
Manchester City Council,Hospitality + Trading Services,Vehicle Fuel Costs,20.01.2017,5100897198,"9,500.95",Carlton Fuels Ltd
Manchester City Council,Hospitality + Trading Services,Vehicle Fuel Costs,20.01.2017,5100899246,"9,410.00",Carlton Fuels Ltd
Manchester City Council,Hospitality + Trading Services,Compensation Payments,20.01.2017,1905443135,596.00,OP Law Limited
Manchester City Council,Environment and Operations,Construction Works,20.01.2017,5100899176,"32,283.33",J.Hopkins (Contractors) Ltd.
Manchester City Council,Environment and Operations,Construction Works,20.01.2017,5100896793,"5,673.29",GMCA
Manchester City Council,Environment and Operations,Construction Works,20.01.2017,5100899256,"2,080.23",GMCA
Manchester City Council,Environment and Operations,Construction Works,20.01.2017,5100899250,"1,683.51",GMCA
Manchester City Council,Environment and Operations,Construction Works,20.01.2017,5100899255,"1,226.95",GMCA
Manchester City Council,Environment and Operations,Construction Works,20.01.2017,5100899243,"1,075.28",GMCA
Manchester City Council,Environment and Operations,Construction Works,20.01.2017,5100899254,933.32,GMCA
Manchester City Council,Environment and Operations,Construction Works,20.01.2017,5100899233,725.94,GMCA
Manchester City Council,Environment and Operations,Construction Works,20.01.2017,5100899230,582.44,GMCA
Manchester City Council,Adult Social Care,Bed and Breakfast Accommodation Expenditure,20.01.2017,5100898769,"60,175.43",Accommodation Links Ltd
Manchester City Council,Adult Social Care,Bed and Breakfast Accommodation Expenditure,20.01.2017,5100898715,"6,722.00",Redacted Personal Information
Manchester City Council,Adult Social Care,I T Provision,20.01.2017,1905442954,"1,231.06",Redacted Personal Information
Manchester City Council,Adult Social Care,Payment of School Budget Share,20.01.2017,5100896024,"13,152.00",Lancasterian School
Manchester City Council,Adult Social Care,Payment of School Budget Share,20.01.2017,5100898920,"5,280.00",Lancasterian School
Manchester City Council,Adult Social Care,Payment of School Budget Share,20.01.2017,5100898924,"5,280.00",Lancasterian School
Manchester City Council,Adult Social Care,Payment of School Budget Share,20.01.2017,5100899244,"-40,128.00",Lancasterian School
Manchester City Council,Adult Social Care,Private Finance and Public Private partnership initiatives,20.01.2017,5100898033,"383,155.42",Manchester School Services Limited
Manchester City Council,Adult Social Care,Signers/Interpreters Fees,20.01.2017,5100899322,-510.95,Language Line Ltd
Manchester City Council,Adult Social Care,Stationery,20.01.2017,5100899283,932.00,Rotadex
Manchester City Council,Adult Social Care,Supported Accommodation,20.01.2017,5100899305,"1,200.00",Manchester Settlement
Manchester City Council,Adult Social Care,Third party payments relating to Voluntary Organisations,20.01.2017,5100899366,"47,769.50",Family Action
Manchester City Council,Adult Social Care,Third party payments relating to Voluntary Organisations,20.01.2017,5100899359,"32,092.00",Family Action
Manchester City Council,Adult Social Care,Third party payments relating to Voluntary Organisations,20.01.2017,5100899212,"7,000.00",Altrincham Girls Grammar School
Manchester City Council,Adult Social Care,Third party payments relating to Voluntary Organisations,20.01.2017,5100899292,536.25,The Big Life Company
Manchester City Council,Adult Social Care,Third party payments relating to Voluntary Organisations,20.01.2017,5100899294,519.75,The Big Life Company
Manchester City Council,Adult Social Care,Third party payments to Health Authority,20.01.2017,5100898714,"276,011.00",NHS Central Manchester CCG
Manchester City Council,Adult Social Care,Transport Coach Hire,20.01.2017,5100897038,"14,522.80",Taxi Team Limited
Manchester City Council,Adult Social Care,Transport Coach Hire,20.01.2017,5100898981,"13,314.00",Taxi Team Limited
Manchester City Council,Adult Social Care,Transport Coach Hire,20.01.2017,5100899304,"-1,236.00",Redacted Personal Information
Manchester City Council,Adult Social Care,Transport Coach Hire,20.01.2017,5100898975,"-14,522.80",Taxi Team Limited
Manchester City Council,Childrens Services,Building Works,20.01.2017,5100898684,"874,437.00",Manchester Enterprise Academy
